Workbook

Sheet はじめに
C2: 定期報告書作成支援ツール
B3: ＜特定事業者・特定連鎖化事業者用＞
A6: 1 | B6: マクロが有効になっているかのテストをして下さい。 | G6: =IF(F7=FALSE,"↓のチェックボックスをマウスでクリックして下さい。","") -> 
B7: TRUE | F7: TRUE | H7: =IF(F7=TRUE,"マクロは有効になっています。特定第１表～第１２表の作成に移って下さい","クリックしても何も変わらなければ、「マクロを有効にする方法」シートに進んで下さい。") -> マクロは有効になっています。特定第１表～第１２表の作成に移って下さい
A16: 2 | B16: このファイルでは、特定－第１表～第１２表まで作成できます。
B17: 「特定-第１・２表」、「特定-第３表」、「特定-第４表～」の3つのワークシートに分かれています。
B18: それぞれのシートの■色、■色、又は■色の箇所に入力 又は ▼の箇所は該当するものを選択して下さい。
B19: 過去５ヶ年値ならびに都市ガス、その他の燃料、電気については入力・計算補助シートに入力してください。
B20: 「特定-第１表」、「特定-第２表」、「特定-第３表」、「特定-第４表」、「CO2計算」の該当項目に自動編集されます。
B21: 記入漏れ等があると赤字で注意文が出ますので、必要項目を全て入力して下さい。（記入漏れが無くなると赤字の注意文が消えます）
B22: 行の追加が必要となる場合がある箇所には ボタンが配置してありますので、適宜行を追加してください。
B23: ボタン以外で列や行を追加・削除すると正しく処理されませんので、ご注意下さい！
A30: 3 | B30: 貴社に指定工場がある場合は、別途定期報告書作成支援ツール＜工場・事業場用＞にて「指定－第１表」～「指定－第１０表」を
B31: 作成して下さい。
A38: 4 | B38: このシートの印刷ボタンを押して下さい。
B44: 貴社の主たる事務所（本社）所在地を管轄する経済産業局及び事業の所管省庁宛に提出して下さい。
B45: （なお、貴工場の主な事業が経済産業省所管の事業であれば、経済産業局長宛を１通作成すれば結構です。）
A49: 5 | B49: このシートのXML出力ボタンを押して下さい。
B55: 電子申請の際に、XMLファイルを添付して下さい。
B56: 指定工場がある場合は、指定工場用EXCELから出力したXMLファイルも添付して下さい。

Sheet マクロを有効にする方法
A1: マクロを有効にする手順
A3: Excel2000,2003の場合
A4: 1 | B4: ツール(T)－マクロ(M)－セキュリティ(S) をクリック
A24: 2 | B24: セキュリティ レベルを「中」にし、「OK」をクリック
A45: 3 | B45: Excelを終了し、再度ファイルを開く
B46: 本ファイルの変更を保存しますか？の問いには「いいえ」をクリック
A48: 4 | B48: ファイルを開いた時にセキュリティ警告が表示されたら、「マクロを有効にする」をクリック
B60: Excel2000、2003の場合は以上
A62: Excel2007以降の場合（1～4の画面については、Excel2010、Ｅｘｃｅｌ2013もほぼ同じ）
A63: 1 | B63: キーボードで「Alt」－「T」－「O」 を入力し、「セキュリティ センター」を選択し、表示し
B64: （Excelのオプション表示）
A65: 2 | B65: 「セキュリティ センターの設定」をクリック
A105: 3 | B105: 「マクロの設定」で「警告を表示してすべてのマクロを無効にする」を選択し、OKをクリック
A145: 4 | B145: Excelを終了し、再度ファイルを開く
B146: 本ファイルの変更を保存しますか？の問いには「いいえ」をクリック
A148: Excel2007の場合
A149: 5 | B149: ファイルを開いて表示されたセキュリティ警告の「オプション」をクリック
A173: 6 | B173: 「このコンテンツを有効にする」をクリックし、OKをクリックする
B199: Excel2007の場合は以上
A201: Excel2010の場合
A202: 5 | B202: ファイルを開いて表示されたセキュリティ警告の「コンテンツの有効化」をクリック
B225: Excel2010の場合は以上
A227: Excel2013の場合
A228: 5 | B228: ファイルを開いて表示されたセキュリティ警告の「コンテンツの有効化」をクリック
B251: Excel2013の場合は以上

Sheet 入力・計算補助
B1: 1 | C1: 報告年度の入力
C3: =元号 -> 平成 | D3: 27 | E3: 年度報告書の作成 | I3: （対象年度（報告日の前年度）を入力して下さい）
I4: （例：平成28年7月末日締め切りの定期報告書の場合は平成「27」年度 ）
B5: 2 | C5: 過去４ヵ年値の入力 | G5: （過去に提出された定期報告書の数値を入力して下さい）
C7: 「特定－第２表 原油換算（Kl）」
D8: =元号 -> 平成 | E8: =IF(D3=0,"",D3-1) -> 26 | F8: 年度 | H8: （前年提出された定期報告書「特定－第２表」の数値を入力して下さい）
D9: 2386
C11: 「特定－第３表 生産数量等 （使用量と密接な関係をもつ値）」 | M11: ※事業者全体の原単位が算出可能な場合
D12: =元号 -> 平成 | E12: =IF(D3=0,"",D3-1) -> 26 | F12: 年度
C13: 名称 | H13: 単位 | L13: 数値
C15: 「特定－第４表１ エネルギーの使用に係る原単位」
D16: =元号 -> 平成 | E16: =IF(D3="","",D3-4) -> 23 | F16: 年度 | G16: =元号 -> 平成 | H16: =IF(D3="","",D3-3) -> 24 | I16: 年度 | J16: =元号 -> 平成 | K16: =IF(D3="","",D3-2) -> 25 | L16: 年度 | M16: =元号 -> 平成 | N16: =IF(D3="","",D3-1) -> 26 | O16: 年度
D17: 0.1078 | G17: 0.1003 | J17: 0.0826 | M17: 0.0678
D18: （過去4ヵ年に提出された定期報告書「特定－第４表１」の数値を入力して下さい）
C20: 「特定－第４表２ 電気需要平準化評価原単位」
D21: =元号 -> 平成 | E21: =IF(D3="","",D3-4) -> 23 | F21: 年度 | G21: =元号 -> 平成 | H21: =IF(D3="","",D3-3) -> 24 | I21: 年度 | J21: =元号 -> 平成 | K21: =IF(D3="","",D3-2) -> 25 | L21: 年度 | M21: =元号 -> 平成 | N21: =IF(D3="","",D3-1) -> 26 | O21: 年度
M22: 0.0800
D23: （過去4ヵ年に提出された定期報告書「特定－第４表２」の数値を入力して下さい）
B25: 3 | C25: 使用したエネルギーの入力 | I25: ="（"&元号&FIXED(D3,0)&"年度実績）" -> （平成27年度実績）
C27: ① | D27: その他の燃料（単位発熱係数と二酸化炭素排出係数） | AD27: 係数（上：熱換算 下：CO2排出）
D28: 都市ガスは、規格（例：１３Ａ）と単位発熱量の実数を各ガス会社に確認し、必ずそれを入力して下さい。 | Y28: 0 | Z28: 換算係数件数 | AA28: =IF(COUNTA(I34:I53)=0,1,COUNTA(I34:I53)) -> 1 | AB28: 換算係数合計 | AC28: =IF(SUMIF(I34:I53,">"&Y28)=0,I34,SUMIF(I34:I53,">"&Y28)) -> 0 | AD28: =IF(AND(I34="",J34=""),"N/A",IF(AC28/AA28=I34,I34,"N/A")) -> N/A
D29: ＊ 施行規則で定めた係数以外に電気やガス事業者等から提供された単位発熱量を用いることができます | AB29: 排出係数合計 | AC29: =IF(SUMIF(I34:I53,">"&Y28,M34:O53)=0,M34,SUMIF(I34:I53,">"&Y28,M34:O53)) -> 0.0136 | AD29: =IF(AC29/AA28=M34,M34,"N/A") -> 0.0136
D30: 都市ガス以外の「その他の燃料」は、入力がない場合はデフォルト値を使用して計算するよう設定しています。
I31: デフォルト値以外を使用する | Y31: 使用量 千m3 | Z31: 使用量 熱量GJ | AA31: 販売量 千m3 | AB31: 販売量 熱量GJ | AC31: 使用CO2排出量 t-GJ | AD31: 販売CO2排出量 t-GJ | AF31: CO2排出量 t-GJ
D32: エネルギー名 | I32: 単位発熱 | K32: 単位 | M32: CO2排出係数
D33: 都市ガス | F33: ↓ガス会社名を記入 | I33: 係数 | J33: （規格） | M33: (t-GJ） | V33: ※ここにガス会社・規格ごとの →
K34: GＪ/千ｍ３ | M34: 0.0136 | V34: 使用量・販売量を入力して下さい。 | Z34: =Y34*I34 -> 0 | AB34: =AA34*I34 -> 0 | AC34: =Y34*I34*M34*44/12 -> 0 | AD34: =AA34*I34*M34*44/12 -> 0 | AF34: =AC34-AD34 -> 0
K35: GＪ/千ｍ３ | M35: 0.0136 | Z35: =Y35*I35 -> 0 | AB35: 0 | AC35: 0 | AD35: 0 | AF35: =AC35-AD35 -> 0
K36: GＪ/千ｍ３ | M36: 0.0136 | Z36: 0 | AB36: 0 | AC36: 0 | AD36: 0 | AF36: 0
K37: GＪ/千ｍ３ | M37: 0.0136 | Z37: 0 | AB37: 0 | AC37: 0 | AD37: 0 | AF37: 0
K38: GＪ/千ｍ３ | M38: 0.0136 | Z38: 0 | AB38: 0 | AC38: 0 | AD38: 0 | AF38: 0
K39: GＪ/千ｍ３ | M39: 0.0136 | Z39: 0 | AB39: 0 | AC39: 0 | AD39: 0 | AF39: 0
K40: GＪ/千ｍ３ | M40: 0.0136 | Z40: 0 | AB40: 0 | AC40: 0 | AD40: 0 | AF40: 0
K41: GＪ/千ｍ３ | M41: 0.0136 | Z41: 0 | AB41: 0 | AC41: 0 | AD41: 0 | AF41: 0
K42: GＪ/千ｍ３ | M42: 0.0136 | Z42: 0 | AB42: 0 | AC42: 0 | AD42: 0 | AF42: 0
K43: GＪ/千ｍ３ | M43: 0.0136 | Z43: 0 | AB43: 0 | AC43: 0 | AD43: 0 | AF43: 0
K44: GＪ/千ｍ３ | M44: 0.0136 | Z44: 0 | AB44: 0 | AC44: 0 | AD44: 0 | AF44: 0
K45: GＪ/千ｍ３ | M45: 0.0136 | Z45: 0 | AB45: 0 | AC45: 0 | AD45: 0 | AF45: 0
K46: GＪ/千ｍ３ | M46: 0.0136 | Z46: 0 | AB46: 0 | AC46: 0 | AD46: 0 | AF46: 0
K47: GＪ/千ｍ３ | M47: 0.0136 | Z47: 0 | AB47: 0 | AC47: 0 | AD47: 0 | AF47: 0
K48: GＪ/千ｍ３ | M48: 0.0136 | Z48: 0 | AB48: 0 | AC48: 0 | AD48: 0 | AF48: 0
K49: GＪ/千ｍ３ | M49: 0.0136 | Z49: 0 | AB49: 0 | AC49: 0 | AD49: 0 | AF49: 0
K50: GＪ/千ｍ３ | M50: 0.0136 | Z50: 0 | AB50: 0 | AC50: 0 | AD50: 0 | AF50: 0
K51: GＪ/千ｍ３ | M51: 0.0136 | Z51: 0 | AB51: 0 | AC51: 0 | AD51: 0 | AF51: 0
K52: GＪ/千ｍ３ | M52: 0.0136 | Z52: 0 | AB52: 0 | AC52: 0 | AD52: 0 | AF52: 0
K53: GＪ/千ｍ３ | M53: 0.0136 | Z53: 0 | AB53: 0 | AC53: 0 | AD53: 0 | AF53: 0
D55: =IF(COUNTIF(I34:I53,"")=COUNTIF(J34:J53,""),"","都市ガスは「係数」｢規格」両方に記入して下さい") ->  | X55: （合計） | Y55: =SUM(Y34:Y53) -> 0 | Z55: 0 | AA55: 0 | AB55: 0 | AC55: 0 | AD55: 0 | AF55: =SUM(AF34:AF53) -> 0
D56: エネルギー名 | I56: 単位発熱 係数 | K56: 単位 ▼から選択 | M56: CO2排出係数 | Z56: ↓ | AB56: ↓ | AC56: ↓
I57: =IF(RIGHT(D57,3)="推計値",CO2計算!U$27,IF(OR(LEFT(D57,6)="ジェット燃料",LEFT(D57,5)="航空機燃料"),CO2計算!U$28,IF(D57="ガソリン",CO2計算!U$6,""))) ->  | J57: - | K57: =IF(RIGHT(D57,3)="推計値","GJ/GJ",IF(OR(LEFT(D57,6)="ジェット燃料",LEFT(D57,5)="航空機燃料",D57="ガソリン"),"GJ/kl","")) ->  | M57: =IF(RIGHT(D57,3)="推計値",0.057,IF(OR(LEFT(D57,6)="ジェット燃料",LEFT(D57,5)="航空機燃料"),CO2計算!W$28,IF(D57="ガソリン",CO2計算!W$6,"－"))) -> － | P57: =IF(OR(RIGHT(D57,3)="推計値",LEFT(D57,6)="ジェット燃料",LEFT(D57,5)="航空機燃料",D57="ガソリン"),"CO2排出報告対象です","") ->  | V57: =IF(RIGHT(D57,3)="推計値",CO2計算!U$27,IF(OR(LEFT(D57,6)="ジェット燃料",LEFT(D57,5)="航空機燃料"),CO2計算!U$28,IF(D57="ガソリン",CO2計算!U$6,""))) ->  | W57: =IF(RIGHT(D57,3)="推計値","GJ/GJ",IF(OR(LEFT(D57,6)="ジェット燃料",LEFT(D57,5)="航空機燃料",D57="ガソリン"),"GJ/kl","")) ->  | X57: =IF(RIGHT(D57,3)="推計値",0.057,IF(OR(LEFT(D57,6)="ジェット燃料",LEFT(D57,5)="航空機燃料"),CO2計算!W$28,IF(D57="ガソリン",CO2計算!W$6,"－"))) -> － | Z57: 特定-第２表およびCO2計算シートに計算結果が反映されます。
I58: =IF(RIGHT(D58,3)="推計値",CO2計算!U$27,IF(OR(LEFT(D58,6)="ジェット燃料",LEFT(D58,5)="航空機燃料"),CO2計算!U$28,IF(D58="ガソリン",CO2計算!U$6,""))) ->  | J58: - | K58: =IF(RIGHT(D58,3)="推計値","GJ/GJ",IF(OR(LEFT(D58,6)="ジェット燃料",LEFT(D58,5)="航空機燃料",D58="ガソリン"),"GJ/kl","")) ->  | M58: =IF(RIGHT(D58,3)="推計値",0.057,IF(OR(LEFT(D58,6)="ジェット燃料",LEFT(D58,5)="航空機燃料"),CO2計算!W$28,IF(D58="ガソリン",CO2計算!W$6,"－"))) -> － | P58: =IF(OR(RIGHT(D58,3)="推計値",LEFT(D58,6)="ジェット燃料",LEFT(D58,5)="航空機燃料",D58="ガソリン"),"CO2排出報告対象です","") ->  | V58: =IF(RIGHT(D58,3)="推計値",CO2計算!U$27,IF(OR(LEFT(D58,6)="ジェット燃料",LEFT(D58,5)="航空機燃料"),CO2計算!U$28,IF(D58="ガソリン",CO2計算!U$6,""))) ->  | W58: =IF(RIGHT(D58,3)="推計値","GJ/GJ",IF(OR(LEFT(D58,6)="ジェット燃料",LEFT(D58,5)="航空機燃料",D58="ガソリン"),"GJ/kl","")) ->  | X58: =IF(RIGHT(D58,3)="推計値",0.057,IF(OR(LEFT(D58,6)="ジェット燃料",LEFT(D58,5)="航空機燃料"),CO2計算!W$28,IF(D58="ガソリン",CO2計算!W$6,"－"))) -> －
I59: =IF(RIGHT(D59,3)="推計値",CO2計算!U$27,IF(OR(LEFT(D59,6)="ジェット燃料",LEFT(D59,5)="航空機燃料"),CO2計算!U$28,IF(D59="ガソリン",CO2計算!U$6,""))) ->  | J59: - | M59: =IF(RIGHT(D59,3)="推計値",0.057,IF(OR(LEFT(D59,6)="ジェット燃料",LEFT(D59,5)="航空機燃料"),CO2計算!W$28,IF(D59="ガソリン",CO2計算!W$6,"－"))) -> － | V59: =IF(RIGHT(D59,3)="推計値",CO2計算!U$27,IF(OR(LEFT(D59,6)="ジェット燃料",LEFT(D59,5)="航空機燃料"),CO2計算!U$28,IF(D59="ガソリン",CO2計算!U$6,""))) ->  | X59: =IF(RIGHT(D59,3)="推計値",0.057,IF(OR(LEFT(D59,6)="ジェット燃料",LEFT(D59,5)="航空機燃料"),CO2計算!W$28,IF(D59="ガソリン",CO2計算!W$6,"－"))) -> －
I60: =IF(RIGHT(D60,3)="推計値",CO2計算!U$27,IF(OR(LEFT(D60,6)="ジェット燃料",LEFT(D60,5)="航空機燃料"),CO2計算!U$28,IF(D60="ガソリン",CO2計算!U$6,""))) ->  | J60: - | M60: =IF(RIGHT(D60,3)="推計値",0.057,IF(OR(LEFT(D60,6)="ジェット燃料",LEFT(D60,5)="航空機燃料"),CO2計算!W$28,IF(D60="ガソリン",CO2計算!W$6,"－"))) -> － | V60: =IF(RIGHT(D60,3)="推計値",CO2計算!U$27,IF(OR(LEFT(D60,6)="ジェット燃料",LEFT(D60,5)="航空機燃料"),CO2計算!U$28,IF(D60="ガソリン",CO2計算!U$6,""))) ->  | X60: =IF(RIGHT(D60,3)="推計値",0.057,IF(OR(LEFT(D60,6)="ジェット燃料",LEFT(D60,5)="航空機燃料"),CO2計算!W$28,IF(D60="ガソリン",CO2計算!W$6,"－"))) -> －
I61: =IF(RIGHT(D61,3)="推計値",CO2計算!U$27,IF(OR(LEFT(D61,6)="ジェット燃料",LEFT(D61,5)="航空機燃料"),CO2計算!U$28,IF(D61="ガソリン",CO2計算!U$6,""))) ->  | J61: - | M61: =IF(RIGHT(D61,3)="推計値",0.057,IF(OR(LEFT(D61,6)="ジェット燃料",LEFT(D61,5)="航空機燃料"),CO2計算!W$28,IF(D61="ガソリン",CO2計算!W$6,"－"))) -> － | V61: =IF(RIGHT(D61,3)="推計値",CO2計算!U$27,IF(OR(LEFT(D61,6)="ジェット燃料",LEFT(D61,5)="航空機燃料"),CO2計算!U$28,IF(D61="ガソリン",CO2計算!U$6,""))) ->  | X61: =IF(RIGHT(D61,3)="推計値",0.057,IF(OR(LEFT(D61,6)="ジェット燃料",LEFT(D61,5)="航空機燃料"),CO2計算!W$28,IF(D61="ガソリン",CO2計算!W$6,"－"))) -> －
I62: =IF(RIGHT(D62,3)="推計値",CO2計算!U$27,IF(OR(LEFT(D62,6)="ジェット燃料",LEFT(D62,5)="航空機燃料"),CO2計算!U$28,IF(D62="ガソリン",CO2計算!U$6,""))) ->  | J62: - | M62: =IF(RIGHT(D62,3)="推計値",0.057,IF(OR(LEFT(D62,6)="ジェット燃料",LEFT(D62,5)="航空機燃料"),CO2計算!W$28,IF(D62="ガソリン",CO2計算!W$6,"－"))) -> － | V62: =IF(RIGHT(D62,3)="推計値",CO2計算!U$27,IF(OR(LEFT(D62,6)="ジェット燃料",LEFT(D62,5)="航空機燃料"),CO2計算!U$28,IF(D62="ガソリン",CO2計算!U$6,""))) ->  | X62: =IF(RIGHT(D62,3)="推計値",0.057,IF(OR(LEFT(D62,6)="ジェット燃料",LEFT(D62,5)="航空機燃料"),CO2計算!W$28,IF(D62="ガソリン",CO2計算!W$6,"－"))) -> －
I63: =IF(RIGHT(D63,3)="推計値",CO2計算!U$27,IF(OR(LEFT(D63,6)="ジェット燃料",LEFT(D63,5)="航空機燃料"),CO2計算!U$28,IF(D63="ガソリン",CO2計算!U$6,""))) ->  | J63: - | M63: =IF(RIGHT(D63,3)="推計値",0.057,IF(OR(LEFT(D63,6)="ジェット燃料",LEFT(D63,5)="航空機燃料"),CO2計算!W$28,IF(D63="ガソリン",CO2計算!W$6,"－"))) -> － | V63: =IF(RIGHT(D63,3)="推計値",CO2計算!U$27,IF(OR(LEFT(D63,6)="ジェット燃料",LEFT(D63,5)="航空機燃料"),CO2計算!U$28,IF(D63="ガソリン",CO2計算!U$6,""))) ->  | X63: =IF(RIGHT(D63,3)="推計値",0.057,IF(OR(LEFT(D63,6)="ジェット燃料",LEFT(D63,5)="航空機燃料"),CO2計算!W$28,IF(D63="ガソリン",CO2計算!W$6,"－"))) -> －
I64: =IF(RIGHT(D64,3)="推計値",CO2計算!U$27,IF(OR(LEFT(D64,6)="ジェット燃料",LEFT(D64,5)="航空機燃料"),CO2計算!U$28,IF(D64="ガソリン",CO2計算!U$6,""))) ->  | J64: - | M64: =IF(RIGHT(D64,3)="推計値",0.057,IF(OR(LEFT(D64,6)="ジェット燃料",LEFT(D64,5)="航空機燃料"),CO2計算!W$28,IF(D64="ガソリン",CO2計算!W$6,"－"))) -> － | V64: =IF(RIGHT(D64,3)="推計値",CO2計算!U$27,IF(OR(LEFT(D64,6)="ジェット燃料",LEFT(D64,5)="航空機燃料"),CO2計算!U$28,IF(D64="ガソリン",CO2計算!U$6,""))) ->  | X64: =IF(RIGHT(D64,3)="推計値",0.057,IF(OR(LEFT(D64,6)="ジェット燃料",LEFT(D64,5)="航空機燃料"),CO2計算!W$28,IF(D64="ガソリン",CO2計算!W$6,"－"))) -> －
I65: =IF(RIGHT(D65,3)="推計値",CO2計算!U$27,IF(OR(LEFT(D65,6)="ジェット燃料",LEFT(D65,5)="航空機燃料"),CO2計算!U$28,IF(D65="ガソリン",CO2計算!U$6,""))) ->  | J65: - | M65: =IF(RIGHT(D65,3)="推計値",0.057,IF(OR(LEFT(D65,6)="ジェット燃料",LEFT(D65,5)="航空機燃料"),CO2計算!W$28,IF(D65="ガソリン",CO2計算!W$6,"－"))) -> － | V65: =IF(RIGHT(D65,3)="推計値",CO2計算!U$27,IF(OR(LEFT(D65,6)="ジェット燃料",LEFT(D65,5)="航空機燃料"),CO2計算!U$28,IF(D65="ガソリン",CO2計算!U$6,""))) ->  | X65: =IF(RIGHT(D65,3)="推計値",0.057,IF(OR(LEFT(D65,6)="ジェット燃料",LEFT(D65,5)="航空機燃料"),CO2計算!W$28,IF(D65="ガソリン",CO2計算!W$6,"－"))) -> －
I66: =IF(RIGHT(D66,3)="推計値",CO2計算!U$27,IF(OR(LEFT(D66,6)="ジェット燃料",LEFT(D66,5)="航空機燃料"),CO2計算!U$28,IF(D66="ガソリン",CO2計算!U$6,""))) ->  | J66: - | M66: =IF(RIGHT(D66,3)="推計値",0.057,IF(OR(LEFT(D66,6)="ジェット燃料",LEFT(D66,5)="航空機燃料"),CO2計算!W$28,IF(D66="ガソリン",CO2計算!W$6,"－"))) -> － | V66: =IF(RIGHT(D66,3)="推計値",CO2計算!U$27,IF(OR(LEFT(D66,6)="ジェット燃料",LEFT(D66,5)="航空機燃料"),CO2計算!U$28,IF(D66="ガソリン",CO2計算!U$6,""))) ->  | X66: =IF(RIGHT(D66,3)="推計値",0.057,IF(OR(LEFT(D66,6)="ジェット燃料",LEFT(D66,5)="航空機燃料"),CO2計算!W$28,IF(D66="ガソリン",CO2計算!W$6,"－"))) -> －
I67: =IF(RIGHT(D67,3)="推計値",CO2計算!U$27,IF(OR(LEFT(D67,6)="ジェット燃料",LEFT(D67,5)="航空機燃料"),CO2計算!U$28,IF(D67="ガソリン",CO2計算!U$6,""))) ->  | J67: - | M67: =IF(RIGHT(D67,3)="推計値",0.057,IF(OR(LEFT(D67,6)="ジェット燃料",LEFT(D67,5)="航空機燃料"),CO2計算!W$28,IF(D67="ガソリン",CO2計算!W$6,"－"))) -> － | V67: =IF(RIGHT(D67,3)="推計値",CO2計算!U$27,IF(OR(LEFT(D67,6)="ジェット燃料",LEFT(D67,5)="航空機燃料"),CO2計算!U$28,IF(D67="ガソリン",CO2計算!U$6,""))) ->  | X67: =IF(RIGHT(D67,3)="推計値",0.057,IF(OR(LEFT(D67,6)="ジェット燃料",LEFT(D67,5)="航空機燃料"),CO2計算!W$28,IF(D67="ガソリン",CO2計算!W$6,"－"))) -> －
D69: =IF(AND(COUNTIF(D57:D67,"")=COUNTIF(I57:I67,""),COUNTIF(I57:I67,"")=COUNTIF(K57:K67,"")),"","入力欄の記入もれはありませんか 確認して下さい") ->  | M69: ↓ | O69: ↓
D70: ※「その他の燃料」に「推計値」等の排出報告対象がある場合は、特定－第２表とCO２計算シートの使用量、排出量を確認して下さい。
C72: ② | D72: 電気（二酸化炭素排出係数） | AF72: 係数（上：実排出 下：調整後排出）
D73: 電気事業者（一般電気事業者及び特定規模電気事業者（PPS））から供給された電気を使用している場合は、国が公表する電気事業者 | AA73: 0 | AB73: 電気会社件数 | AC73: =IF(COUNTA(I79:I118)=0,1,COUNTA(I79:I118)) -> 1 | AD73: 実排出合計 | AF73: =IF(SUMIF(I79:I118,">"&Z73,L79:L118)=0,L79,SUMIF(I79:I118,">"&Z73,L79:L118)) -> 0.579 | AG73: =IF(AF73/AC73=L79,L79,"N/A") -> 0.579
D74: ごとの排出係数を入力してください。それ以外の者から供給された電気を使用している場合は、実測等に基づく適切な排出係数を入力してください。 | AD74: 調整後合計 | AF74: =IF(SUMIF(I79:I118,">"&Z73,AH79:AH118)=0,0,SUMIF(I79:I118,">"&Z73,AH79:AH118)) -> 0 | AG74: =IF(AF74/AC73=AH79,AH79,"N/A") -> N/A
D75: 排出係数を算定することができない場合は、環境大臣・経済産業大臣が公表する係数（代替値） | S75: 0.579 | U75: tCO２/千kWhを入力して下さい。
I76: 電気事業者ごとの排出係数を入力してください | Y76: 買電量 千kWh | Z76: うち電気需要 平準化時間帯 | AA76: 買電 熱量GJ | AB76: うち電気需要 平準化時間帯 | AC76: CO2 排出量 | AD76: うち電気需要 平準化時間帯 | AF76: 調整後 CO2排出量 | AG76: うち電気 需要平準化 時間帯 | AH76: 調整後 排出係数
D77: エネルギー名 | V77: ※ここに電気事業者ごとの
I78: （▼から事業者を選択） | L78: 二酸化炭素（tCO2/千kWh） | V78: 買電量を入力して下さい。 →
D79: 昼間買電 | L79: =IF(I79=0,S75,VLOOKUP(I79,電気事業者係数,2,FALSE)) -> 0.579 | P79: =IF(I79>0,1,0) -> 0 | Q79: =IF(L79="",S75,L79) -> 0.579 | R79: =IF(I79>0,IF(I79="代替値","代替値"&FIXED(L79,3)&"を使用します","事業者から提供されたCO2排出係数"&FIXED(L79,3)&"を使用します")) -> FALSE | X79: 昼間 | AA79: =IF(Y79*VLOOKUP(D79,係数,2,FALSE)=0,"",Y79*VLOOKUP(D79,係数,2,FALSE)) ->  | AB79: =IF(Z79*VLOOKUP(D79,係数,2,FALSE)=0,"",Z79*VLOOKUP(D79,係数,2,FALSE)) ->  | AC79: =IF(Y79="","",Y79*L79) ->  | AD79: =IF(Z79="","",Z79*L79) ->  | AF79: =IF(Y79="","",IF(AH79="","",Y79*AH79)) ->  | AG79: =IF(Z79="","",IF(AH79="","",Z79*AH79)) ->  | AH79: =IF(I79=0,S75,VLOOKUP(I79,電気事業者係数,3,FALSE)) -> 0.579
D80: 夜間買電 | X80: 夜間 | AC80: =IF(Y80="","",Y80*L79) ->  | AF80: =IF(Y80="","",IF(AH79="","",Y80*AH79)) -> 
D81: 昼間買電 | L81: =IF(I81=0,S75,VLOOKUP(I81,電気事業者係数,2,FALSE)) -> 0.579 | P81: =IF(I81>0,1,0) -> 0 | Q81: =IF(L81="",S75,L81) -> 0.579 | R81: =IF(I81>0,IF(I81="代替値","代替値"&FIXED(L81,3)&"を使用します","事業者から提供されたCO2排出係数"&FIXED(L81,3)&"を使用します")) -> FALSE | X81: 昼間 | AB81: =IF(Z81*VLOOKUP(D81,係数,2,FALSE)=0,"",Z81*VLOOKUP(D81,係数,2,FALSE)) ->  | AC81: =IF(Y81="","",Y81*L81) ->  | AD81: =IF(Z81="","",Z81*L81) ->  | AF81: =IF(Y81="","",IF(AH81="","",Y81*AH81)) ->  | AG81: =IF(Z81="","",IF(AH81="","",Z81*AH81)) ->  | AH81: =IF(I81=0,S75,VLOOKUP(I81,電気事業者係数,3,FALSE)) -> 0.579
D82: 夜間買電 | X82: 夜間 | AC82: =IF(Y82="","",Y82*L81) ->  | AF82: =IF(Y82="","",IF(AH81="","",Y82*AH81)) -> 
D83: 昼間買電 | L83: =IF(I83=0,S75,VLOOKUP(I83,電気事業者係数,2,FALSE)) -> 0.579 | P83: =IF(I83>0,1,0) -> 0 | Q83: =IF(L83="",S75,L83) -> 0.579 | R83: =IF(I83>0,IF(I83="代替値","代替値"&FIXED(L83,3)&"を使用します","事業者から提供されたCO2排出係数"&FIXED(L83,3)&"を使用します")) -> FALSE | X83: 昼間 | AB83: =IF(Z83*VLOOKUP(D83,係数,2,FALSE)=0,"",Z83*VLOOKUP(D83,係数,2,FALSE)) ->  | AC83: =IF(Y83="","",Y83*L83) ->  | AD83: =IF(Z83="","",Z83*L83) ->  | AF83: =IF(Y83="","",IF(AH83="","",Y83*AH83)) ->  | AG83: =IF(Z83="","",IF(AH83="","",Z83*AH83)) ->  | AH83: =IF(I83=0,S75,VLOOKUP(I83,電気事業者係数,3,FALSE)) -> 0.579
D84: 夜間買電 | X84: 夜間 | AC84: =IF(Y84="","",Y84*L83) ->  | AF84: =IF(Y84="","",IF(AH83="","",Y84*AH83)) -> 
D85: 昼間買電 | L85: =IF(I85=0,S75,VLOOKUP(I85,電気事業者係数,2,FALSE)) -> 0.579 | P85: =IF(I85>0,1,0) -> 0 | Q85: =IF(L85="",S75,L85) -> 0.579 | R85: =IF(I85>0,IF(I85="代替値","代替値"&FIXED(L85,3)&"を使用します","事業者から提供されたCO2排出係数"&FIXED(L85,3)&"を使用します")) -> FALSE | X85: 昼間 | AB85: =IF(Z85*VLOOKUP(D85,係数,2,FALSE)=0,"",Z85*VLOOKUP(D85,係数,2,FALSE)) ->  | AC85: =IF(Y85="","",Y85*L85) ->  | AD85: =IF(Z85="","",Z85*L85) ->  | AF85: =IF(Y85="","",IF(AH85="","",Y85*AH85)) ->  | AG85: =IF(Z85="","",IF(AH85="","",Z85*AH85)) ->  | AH85: =IF(I85=0,S75,VLOOKUP(I85,電気事業者係数,3,FALSE)) -> 0.579
D86: 夜間買電 | X86: 夜間 | AC86: =IF(Y86="","",Y86*L85) ->  | AF86: =IF(Y86="","",IF(AH85="","",Y86*AH85)) -> 
D87: 昼間買電 | L87: =IF(I87=0,S75,VLOOKUP(I87,電気事業者係数,2,FALSE)) -> 0.579 | P87: =IF(I87>0,1,0) -> 0 | Q87: =IF(L87="",S75,L87) -> 0.579 | R87: =IF(I87>0,IF(I87="代替値","代替値"&FIXED(L87,3)&"を使用します","事業者から提供されたCO2排出係数"&FIXED(L87,3)&"を使用します")) -> FALSE | X87: 昼間 | AB87: =IF(Z87*VLOOKUP(D87,係数,2,FALSE)=0,"",Z87*VLOOKUP(D87,係数,2,FALSE)) ->  | AC87: =IF(Y87="","",Y87*L87) ->  | AD87: =IF(Z87="","",Z87*L87) ->  | AF87: =IF(Y87="","",IF(AH87="","",Y87*AH87)) ->  | AG87: =IF(Z87="","",IF(AH87="","",Z87*AH87)) ->  | AH87: =IF(I87=0,S75,VLOOKUP(I87,電気事業者係数,3,FALSE)) -> 0.579
D88: 夜間買電 | X88: 夜間 | AC88: =IF(Y88="","",Y88*L87) ->  | AF88: =IF(Y88="","",IF(AH87="","",Y88*AH87)) -> 
D89: 昼間買電 | L89: =IF(I89=0,S75,VLOOKUP(I89,電気事業者係数,2,FALSE)) -> 0.579 | P89: =IF(I89>0,1,0) -> 0 | Q89: =IF(L89="",S75,L89) -> 0.579 | R89: =IF(I89>0,IF(I89="代替値","代替値"&FIXED(L89,3)&"を使用します","事業者から提供されたCO2排出係数"&FIXED(L89,3)&"を使用します")) -> FALSE | X89: 昼間 | AB89: =IF(Z89*VLOOKUP(D89,係数,2,FALSE)=0,"",Z89*VLOOKUP(D89,係数,2,FALSE)) ->  | AC89: =IF(Y89="","",Y89*L89) ->  | AD89: =IF(Z89="","",Z89*L89) ->  | AF89: =IF(Y89="","",IF(AH89="","",Y89*AH89)) ->  | AG89: =IF(Z89="","",IF(AH89="","",Z89*AH89)) ->  | AH89: =IF(I89=0,S75,VLOOKUP(I89,電気事業者係数,3,FALSE)) -> 0.579
D90: 夜間買電 | X90: 夜間 | AC90: =IF(Y90="","",Y90*L89) ->  | AF90: =IF(Y90="","",IF(AH89="","",Y90*AH89)) -> 
D91: 昼間買電 | L91: =IF(I91=0,S75,VLOOKUP(I91,電気事業者係数,2,FALSE)) -> 0.579 | P91: =IF(I91>0,1,0) -> 0 | Q91: =IF(L91="",S75,L91) -> 0.579 | R91: =IF(I91>0,IF(I91="代替値","代替値"&FIXED(L91,3)&"を使用します","事業者から提供されたCO2排出係数"&FIXED(L91,3)&"を使用します")) -> FALSE | X91: 昼間 | AB91: =IF(Z91*VLOOKUP(D91,係数,2,FALSE)=0,"",Z91*VLOOKUP(D91,係数,2,FALSE)) ->  | AC91: =IF(Y91="","",Y91*L91) ->  | AD91: =IF(Z91="","",Z91*L91) ->  | AF91: =IF(Y91="","",IF(AH91="","",Y91*AH91)) ->  | AG91: =IF(Z91="","",IF(AH91="","",Z91*AH91)) ->  | AH91: =IF(I91=0,S75,VLOOKUP(I91,電気事業者係数,3,FALSE)) -> 0.579
D92: 夜間買電 | X92: 夜間 | AC92: =IF(Y92="","",Y92*L91) ->  | AF92: =IF(Y92="","",IF(AH91="","",Y92*AH91)) -> 
D93: 昼間買電 | L93: =IF(I93=0,S75,VLOOKUP(I93,電気事業者係数,2,FALSE)) -> 0.579 | P93: =IF(I93>0,1,0) -> 0 | Q93: =IF(L93="",S75,L93) -> 0.579 | R93: =IF(I93>0,IF(I93="代替値","代替値"&FIXED(L93,3)&"を使用します","事業者から提供されたCO2排出係数"&FIXED(L93,3)&"を使用します")) -> FALSE | X93: 昼間 | AB93: =IF(Z93*VLOOKUP(D93,係数,2,FALSE)=0,"",Z93*VLOOKUP(D93,係数,2,FALSE)) ->  | AC93: =IF(Y93="","",Y93*L93) ->  | AD93: =IF(Z93="","",Z93*L93) ->  | AF93: =IF(Y93="","",IF(AH93="","",Y93*AH93)) ->  | AG93: =IF(Z93="","",IF(AH93="","",Z93*AH93)) ->  | AH93: =IF(I93=0,S75,VLOOKUP(I93,電気事業者係数,3,FALSE)) -> 0.579
D94: 夜間買電 | X94: 夜間 | AC94: =IF(Y94="","",Y94*L93) ->  | AF94: =IF(Y94="","",IF(AH93="","",Y94*AH93)) -> 
D95: 昼間買電 | L95: =IF(I95=0,S75,VLOOKUP(I95,電気事業者係数,2,FALSE)) -> 0.579 | P95: =IF(I95>0,1,0) -> 0 | Q95: =IF(L95="",S75,L95) -> 0.579 | R95: =IF(I95>0,IF(I95="代替値","代替値"&FIXED(L95,3)&"を使用します","事業者から提供されたCO2排出係数"&FIXED(L95,3)&"を使用します")) -> FALSE | X95: 昼間 | AB95: =IF(Z95*VLOOKUP(D95,係数,2,FALSE)=0,"",Z95*VLOOKUP(D95,係数,2,FALSE)) ->  | AC95: =IF(Y95="","",Y95*L95) ->  | AD95: =IF(Z95="","",Z95*L95) ->  | AF95: =IF(Y95="","",IF(AH95="","",Y95*AH95)) ->  | AG95: =IF(Z95="","",IF(AH95="","",Z95*AH95)) ->  | AH95: =IF(I95=0,S75,VLOOKUP(I95,電気事業者係数,3,FALSE)) -> 0.579
D96: 夜間買電 | X96: 夜間 | AC96: =IF(Y96="","",Y96*L95) ->  | AF96: =IF(Y96="","",IF(AH95="","",Y96*AH95)) -> 
D97: 昼間買電 | L97: =IF(I97=0,S75,VLOOKUP(I97,電気事業者係数,2,FALSE)) -> 0.579 | P97: =IF(I97>0,1,0) -> 0 | Q97: =IF(L97="",S75,L97) -> 0.579 | R97: =IF(I97>0,IF(I97="代替値","代替値"&FIXED(L97,3)&"を使用します","事業者から提供されたCO2排出係数"&FIXED(L97,3)&"を使用します")) -> FALSE | X97: 昼間 | AB97: =IF(Z97*VLOOKUP(D97,係数,2,FALSE)=0,"",Z97*VLOOKUP(D97,係数,2,FALSE)) ->  | AC97: =IF(Y97="","",Y97*L97) ->  | AD97: =IF(Z97="","",Z97*L97) ->  | AF97: =IF(Y97="","",IF(AH97="","",Y97*AH97)) ->  | AG97: =IF(Z97="","",IF(AH97="","",Z97*AH97)) ->  | AH97: =IF(I97=0,S75,VLOOKUP(I97,電気事業者係数,3,FALSE)) -> 0.579
D98: 夜間買電 | X98: 夜間 | AC98: =IF(Y98="","",Y98*L97) ->  | AF98: =IF(Y98="","",IF(AH97="","",Y98*AH97)) -> 
D99: 昼間買電 | L99: =IF(I99=0,S75,VLOOKUP(I99,電気事業者係数,2,FALSE)) -> 0.579 | P99: =IF(I99>0,1,0) -> 0 | Q99: =IF(L99="",S75,L99) -> 0.579 | R99: =IF(I99>0,IF(I99="代替値","代替値"&FIXED(L99,3)&"を使用します","事業者から提供されたCO2排出係数"&FIXED(L99,3)&"を使用します")) -> FALSE | X99: 昼間 | AB99: =IF(Z99*VLOOKUP(D99,係数,2,FALSE)=0,"",Z99*VLOOKUP(D99,係数,2,FALSE)) ->  | AC99: =IF(Y99="","",Y99*L99) ->  | AD99: =IF(Z99="","",Z99*L99) ->  | AF99: =IF(Y99="","",IF(AH99="","",Y99*AH99)) ->  | AG99: =IF(Z99="","",IF(AH99="","",Z99*AH99)) ->  | AH99: =IF(I99=0,S75,VLOOKUP(I99,電気事業者係数,3,FALSE)) -> 0.579
D100: 夜間買電 | X100: 夜間 | AC100: =IF(Y100="","",Y100*L99) ->  | AF100: =IF(Y100="","",IF(AH99="","",Y100*AH99)) -> 
D101: 昼間買電 | L101: =IF(I101=0,S75,VLOOKUP(I101,電気事業者係数,2,FALSE)) -> 0.579 | P101: =IF(I101>0,1,0) -> 0 | Q101: =IF(L101="",S75,L101) -> 0.579 | R101: =IF(I101>0,IF(I101="代替値","代替値"&FIXED(L101,3)&"を使用します","事業者から提供されたCO2排出係数"&FIXED(L101,3)&"を使用します")) -> FALSE | X101: 昼間 | AB101: =IF(Z101*VLOOKUP(D101,係数,2,FALSE)=0,"",Z101*VLOOKUP(D101,係数,2,FALSE)) ->  | AC101: =IF(Y101="","",Y101*L101) ->  | AD101: =IF(Z101="","",Z101*L101) ->  | AF101: =IF(Y101="","",IF(AH101="","",Y101*AH101)) ->  | AG101: =IF(Z101="","",IF(AH101="","",Z101*AH101)) ->  | AH101: =IF(I101=0,S75,VLOOKUP(I101,電気事業者係数,3,FALSE)) -> 0.579
D102: 夜間買電 | X102: 夜間 | AC102: =IF(Y102="","",Y102*L101) ->  | AF102: =IF(Y102="","",IF(AH101="","",Y102*AH101)) -> 
D103: 昼間買電 | L103: =IF(I103=0,S75,VLOOKUP(I103,電気事業者係数,2,FALSE)) -> 0.579 | P103: =IF(I103>0,1,0) -> 0 | Q103: =IF(L103="",S75,L103) -> 0.579 | R103: =IF(I103>0,IF(I103="代替値","代替値"&FIXED(L103,3)&"を使用します","事業者から提供されたCO2排出係数"&FIXED(L103,3)&"を使用します")) -> FALSE | X103: 昼間 | AB103: =IF(Z103*VLOOKUP(D103,係数,2,FALSE)=0,"",Z103*VLOOKUP(D103,係数,2,FALSE)) ->  | AC103: =IF(Y103="","",Y103*L103) ->  | AD103: =IF(Z103="","",Z103*L103) ->  | AF103: =IF(Y103="","",IF(AH103="","",Y103*AH103)) ->  | AG103: =IF(Z103="","",IF(AH103="","",Z103*AH103)) ->  | AH103: =IF(I103=0,S75,VLOOKUP(I103,電気事業者係数,3,FALSE)) -> 0.579
D104: 夜間買電 | X104: 夜間 | AC104: =IF(Y104="","",Y104*L103) ->  | AF104: =IF(Y104="","",IF(AH103="","",Y104*AH103)) -> 
D105: 昼間買電 | L105: =IF(I105=0,S75,VLOOKUP(I105,電気事業者係数,2,FALSE)) -> 0.579 | P105: =IF(I105>0,1,0) -> 0 | Q105: =IF(L105="",S75,L105) -> 0.579 | R105: =IF(I105>0,IF(I105="代替値","代替値"&FIXED(L105,3)&"を使用します","事業者から提供されたCO2排出係数"&FIXED(L105,3)&"を使用します")) -> FALSE | X105: 昼間 | AB105: =IF(Z105*VLOOKUP(D105,係数,2,FALSE)=0,"",Z105*VLOOKUP(D105,係数,2,FALSE)) ->  | AC105: =IF(Y105="","",Y105*L105) ->  | AD105: =IF(Z105="","",Z105*L105) ->  | AF105: =IF(Y105="","",IF(AH105="","",Y105*AH105)) ->  | AG105: =IF(Z105="","",IF(AH105="","",Z105*AH105)) ->  | AH105: =IF(I105=0,S75,VLOOKUP(I105,電気事業者係数,3,FALSE)) -> 0.579
D106: 夜間買電 | X106: 夜間 | AC106: =IF(Y106="","",Y106*L105) ->  | AF106: =IF(Y106="","",IF(AH105="","",Y106*AH105)) -> 
D107: 昼間買電 | L107: =IF(I107=0,S75,VLOOKUP(I107,電気事業者係数,2,FALSE)) -> 0.579 | P107: =IF(I107>0,1,0) -> 0 | Q107: =IF(L107="",S75,L107) -> 0.579 | R107: =IF(I107>0,IF(I107="代替値","代替値"&FIXED(L107,3)&"を使用します","事業者から提供されたCO2排出係数"&FIXED(L107,3)&"を使用します")) -> FALSE | X107: 昼間 | AB107: =IF(Z107*VLOOKUP(D107,係数,2,FALSE)=0,"",Z107*VLOOKUP(D107,係数,2,FALSE)) ->  | AC107: =IF(Y107="","",Y107*L107) ->  | AD107: =IF(Z107="","",Z107*L107) ->  | AF107: =IF(Y107="","",IF(AH107="","",Y107*AH107)) ->  | AG107: =IF(Z107="","",IF(AH107="","",Z107*AH107)) ->  | AH107: =IF(I107=0,S75,VLOOKUP(I107,電気事業者係数,3,FALSE)) -> 0.579
D108: 夜間買電 | X108: 夜間 | AC108: =IF(Y108="","",Y108*L107) ->  | AF108: =IF(Y108="","",IF(AH107="","",Y108*AH107)) -> 
D109: 昼間買電 | L109: =IF(I109=0,S75,VLOOKUP(I109,電気事業者係数,2,FALSE)) -> 0.579 | P109: =IF(I109>0,1,0) -> 0 | Q109: =IF(L109="",S75,L109) -> 0.579 | R109: =IF(I109>0,IF(I109="代替値","代替値"&FIXED(L109,3)&"を使用します","事業者から提供されたCO2排出係数"&FIXED(L109,3)&"を使用します")) -> FALSE | X109: 昼間 | AB109: =IF(Z109*VLOOKUP(D109,係数,2,FALSE)=0,"",Z109*VLOOKUP(D109,係数,2,FALSE)) ->  | AC109: =IF(Y109="","",Y109*L109) ->  | AD109: =IF(Z109="","",Z109*L109) ->  | AF109: =IF(Y109="","",IF(AH109="","",Y109*AH109)) ->  | AG109: =IF(Z109="","",IF(AH109="","",Z109*AH109)) ->  | AH109: =IF(I109=0,S75,VLOOKUP(I109,電気事業者係数,3,FALSE)) -> 0.579
D110: 夜間買電 | X110: 夜間 | AC110: =IF(Y110="","",Y110*L109) ->  | AF110: =IF(Y110="","",IF(AH109="","",Y110*AH109)) -> 
D111: 昼間買電 | L111: =IF(I111=0,S75,VLOOKUP(I111,電気事業者係数,2,FALSE)) -> 0.579 | P111: =IF(I111>0,1,0) -> 0 | Q111: =IF(L111="",S75,L111) -> 0.579 | R111: =IF(I111>0,IF(I111="代替値","代替値"&FIXED(L111,3)&"を使用します","事業者から提供されたCO2排出係数"&FIXED(L111,3)&"を使用します")) -> FALSE | X111: 昼間 | AB111: =IF(Z111*VLOOKUP(D111,係数,2,FALSE)=0,"",Z111*VLOOKUP(D111,係数,2,FALSE)) ->  | AC111: =IF(Y111="","",Y111*L111) ->  | AD111: =IF(Z111="","",Z111*L111) ->  | AF111: =IF(Y111="","",IF(AH111="","",Y111*AH111)) ->  | AG111: =IF(Z111="","",IF(AH111="","",Z111*AH111)) ->  | AH111: =IF(I111=0,S75,VLOOKUP(I111,電気事業者係数,3,FALSE)) -> 0.579
D112: 夜間買電 | X112: 夜間 | AC112: =IF(Y112="","",Y112*L111) ->  | AF112: =IF(Y112="","",IF(AH111="","",Y112*AH111)) -> 
D113: 昼間買電 | L113: =IF(I113=0,S75,VLOOKUP(I113,電気事業者係数,2,FALSE)) -> 0.579 | P113: =IF(I113>0,1,0) -> 0 | Q113: =IF(L113="",S75,L113) -> 0.579 | R113: =IF(I113>0,IF(I113="代替値","代替値"&FIXED(L113,3)&"を使用します","事業者から提供されたCO2排出係数"&FIXED(L113,3)&"を使用します")) -> FALSE | X113: 昼間 | AB113: =IF(Z113*VLOOKUP(D113,係数,2,FALSE)=0,"",Z113*VLOOKUP(D113,係数,2,FALSE)) ->  | AC113: =IF(Y113="","",Y113*L113) ->  | AD113: =IF(Z113="","",Z113*L113) ->  | AF113: =IF(Y113="","",IF(AH113="","",Y113*AH113)) ->  | AG113: =IF(Z113="","",IF(AH113="","",Z113*AH113)) ->  | AH113: =IF(I113=0,S75,VLOOKUP(I113,電気事業者係数,3,FALSE)) -> 0.579
D114: 夜間買電 | X114: 夜間 | AC114: =IF(Y114="","",Y114*L113) ->  | AF114: =IF(Y114="","",IF(AH113="","",Y114*AH113)) -> 
D115: 昼間買電 | L115: =IF(I115=0,S75,VLOOKUP(I115,電気事業者係数,2,FALSE)) -> 0.579 | P115: =IF(I115>0,1,0) -> 0 | Q115: =IF(L115="",S75,L115) -> 0.579 | R115: =IF(I115>0,IF(I115="代替値","代替値"&FIXED(L115,3)&"を使用します","事業者から提供されたCO2排出係数"&FIXED(L115,3)&"を使用します")) -> FALSE | X115: 昼間 | AB115: =IF(Z115*VLOOKUP(D115,係数,2,FALSE)=0,"",Z115*VLOOKUP(D115,係数,2,FALSE)) ->  | AC115: =IF(Y115="","",Y115*L115) ->  | AD115: =IF(Z115="","",Z115*L115) ->  | AF115: =IF(Y115="","",IF(AH115="","",Y115*AH115)) ->  | AG115: =IF(Z115="","",IF(AH115="","",Z115*AH115)) ->  | AH115: =IF(I115=0,S75,VLOOKUP(I115,電気事業者係数,3,FALSE)) -> 0.579
D116: 夜間買電 | X116: 夜間 | AC116: =IF(Y116="","",Y116*L115) ->  | AF116: =IF(Y116="","",IF(AH115="","",Y116*AH115)) -> 
D117: 昼間買電 | L117: =IF(I117=0,S75,VLOOKUP(I117,電気事業者係数,2,FALSE)) -> 0.579 | P117: =IF(I117>0,1,0) -> 0 | Q117: =IF(L117="",S75,L117) -> 0.579 | R117: =IF(I117>0,IF(I117="代替値","代替値"&FIXED(L117,3)&"を使用します","事業者から提供されたCO2排出係数"&FIXED(L117,3)&"を使用します")) -> FALSE | X117: 昼間 | AB117: =IF(Z117*VLOOKUP(D117,係数,2,FALSE)=0,"",Z117*VLOOKUP(D117,係数,2,FALSE)) ->  | AC117: =IF(Y117="","",Y117*L117) ->  | AD117: =IF(Z117="","",Z117*L117) ->  | AF117: =IF(Y117="","",IF(AH117="","",Y117*AH117)) ->  | AG117: =IF(Z117="","",IF(AH117="","",Z117*AH117)) ->  | AH117: =IF(I117=0,S75,VLOOKUP(I117,電気事業者係数,3,FALSE)) -> 0.579
D118: 夜間買電 | X118: 夜間 | AC118: =IF(Y118="","",Y118*L117) ->  | AF118: =IF(Y118="","",IF(AH117="","",Y118*AH117)) -> 
X119: (合計)
D120: 上記以外の買電 | P120: =IF(I120>0,1,0) -> 0 | Q120: =IF(L120="",S75,L120) -> 0.579 | R120: =IF(I120>0,"事業者から提供されたCO2排出係数"&FIXED(L120,3)&"を使用します") -> FALSE | X120: 昼間 | Y120: =SUM(Y79,Y81,Y83,Y85,Y87,Y89,Y91,Y93,Y95,Y97,Y99,Y101,Y103,Y105,Y107,Y109,Y111,Y113,Y115,Y117) -> 0 | Z120: 0 | AA120: 0 | AB120: 0 | AC120: 0 | AD120: 0 | AF120: =SUM(AF79,AF81,AF83,AF85,AF87,AF89,AF91,AF93,AF95,AF97,AF99,AF101,AF103,AF105,AF107,AF109,AF111,AF113,AF115,AF117) -> 0 | AG120: =SUM(AG79,AG81,AG83,AG85,AG87,AG89,AG91,AG93,AG95,AG97,AG99,AG101,AG103,AG105,AG107,AG109,AG111,AG113,AG115,AG117) -> 0
D121: =IF(AND(I120="",L120=""),"",IF(AND(I120<>"",L120<>""),"","入力欄の記入もれはありませんか 確認して下さい")) ->  | Q121: 買電量 千kWh | X121: 夜間 | Y121: =SUM(Y80,Y82,Y84,Y86,Y88,Y90,Y92,Y94,Y96,Y98,Y100,Y102,Y104,Y106,Y108,Y110,Y112,Y114,Y116,Y118) -> 0 | AA121: =SUM(AA80,AA82,AA84,AA86,AA88,AA90,AA92,AA94,AA96,AA98,AA100,AA102,AA104,AA106,AA108,AA110,AA112,AA114,AA116,AA118) -> 0 | AC121: =SUM(AC80,AC82,AC84,AC86,AC88,AC90,AC92,AC94,AC96,AC98,AC100,AC102,AC104,AC106,AC108,AC110,AC112,AC114,AC116,AC118) -> 0 | AF121: =SUM(AF80,AF82,AF84,AF86,AF88,AF90,AF92,AF94,AF96,AF98,AF100,AF102,AF104,AF106,AF108,AF110,AF112,AF114,AF116,AF118) -> 0
Q122: 熱量 GJ | T122: =IF(T121*VLOOKUP(D120,係数,2,FALSE)=0,"",T121*VLOOKUP(D120,係数,2,FALSE)) ->  | Z122: ↓ | AB122: ↓ | AC122: ↓
Q123: CO2排出量 | T123: =IF(T121="","",T121*Q120) ->  | X123: → | Z123: 特定-第２表およびCO2計算シートに計算結果が反映されます。
B124: 4 | C124: 他人に供給（又は使用）した電気又は熱の入力
C126: ★ | D126: 下記表の熱/電気は、法定換算係数に代えて当該熱/電気を発生させるために使用された燃料の発熱量を算定する上で適切と認められるものを用いることができます。
D127: その場合は、係数の根拠となる資料を添付して下さい。
C128: ★ | D128: 他人に電気又は熱を供給した場合、エネルギー起源ＣＯ２排出量から控除する必要があります。 | V128: に下記算出式から求めた係数を必ず入力して下さい。
F129: =IF(L124="発電所である",2,IF(L124="熱供給事業者である",3,1)) -> 1
C130: ① | D130: 一般事業者 | H130: （熱の換算係数をデフォルト値以外の値を使用する場合や熱を販売した（無償含む）量がある場合）
I131: 法定係数以外を使用する場合の発熱係数 | M131: CO2の排出係数
D132: エネルギー名
I133: 係数 | K133: 単位 | M133: 二酸化炭素 （ｔＣ/GJ, tCO2/千kWh）
D134: 都市ガス | K134: GＪ/千ｍ３
D135: 産業用蒸気 | K135: GＪ/GＪ | O135: =IF(M135="","","tCO2/GJ") ->  | S135: =COUNT(I135,I150,I167) -> 0 | T135: =COUNT(M135,M150) -> 0
D136: 産業用以外の蒸気 | K136: GＪ/GＪ | O136: =IF(M136="","","tCO2/GJ") ->  | S136: =COUNT(I136,I151) -> 0 | T136: =COUNT(M136,M151) -> 0
D137: 温水 | K137: GＪ/GＪ | O137: =IF(M137="","","tCO2/GJ") ->  | S137: =COUNT(I137,I152) -> 0 | T137: =COUNT(M137,M152) -> 0
D138: 冷水 | K138: GＪ/GＪ | O138: =IF(M138="","","tCO2/GJ") ->  | S138: =COUNT(I138,I153) -> 0 | T138: =COUNT(M138,M153) -> 0
D139: 自家発電 | K139: GJ/千ｋWh | O139: =IF(M139="","","tCO2/千kWh") -> 
I141: =IF(COUNT(I135:J139)=COUNT(M135:N139),"","入力欄の記入もれはありませんか 確認して下さい") -> 
C143: ② | D143: 発電所
D144: 発電所の場合は、他人に供給した電気に伴う排出量を控除した
D145: 排出量に加え、燃料の使用に伴う排出量も報告する義務があります
I146: 法定係数値以外を使用する場合の発熱係数 | M146: CO2の排出係数
D147: エネルギー名
I148: 係数 | K148: 単位 | M148: 二酸化炭素 （ｔＣ/GJ, tCO2/千kWh）
D149: 都市ガス | K149: GＪ/千ｍ３
D150: 産業用蒸気 | I150: z | K150: GＪ/GＪ | O150: =IF(M150="","","tCO2/GJ") -> 
D151: 産業用以外の蒸気 | K151: GＪ/GＪ | O151: =IF(M151="","","tCO2/GJ") -> 
D152: 温水 | K152: GＪ/GＪ | O152: =IF(M152="","","tCO2/GJ") -> 
D153: 冷水 | K153: GＪ/GＪ | O153: =IF(M153="","","tCO2/GJ") -> 
I155: 販売電気量 | M155: CO2の排出係数
D156: 販売電気量（自家発電による販売量含む） | K156: 千KWh | O156: tCO2/千kWh
I158: =IF(COUNTA(I150:J153)=COUNTA(M150:N153),"","入力欄の記入もれはありませんか 確認して下さい") -> 入力欄の記入もれはありませんか 確認して下さい
C160: ③ | D160: 熱供給事業者
D161: 熱供給業を行う事業所の場合は、他人に供給した熱に伴う排出量を控除した
D162: 排出量に加え、燃料の使用に伴う排出量も報告する義務があります | O162: =COUNTA(K163:M164) -> 1
I163: 法定係数以外を使用する場合の発熱係数 | M163: CO2の排出係数
D164: エネルギー名
I165: 係数 | K165: 単位 | M165: 二酸化炭素 （ｔＣ/GJ, tCO2/千kWh）
D166: 都市ガス | K166: GＪ/千ｍ３
D167: 産業用蒸気 | K167: GＪ/GＪ | O167: =IF(M167="","","tCO2/GJ") -> 
D168: 産業用以外の蒸気 | K168: GＪ/GＪ | O168: =IF(M168="","","tCO2/GJ") -> 
D169: 温水 | K169: GＪ/GＪ | O169: =IF(M169="","","tCO2/GJ") -> 
D170: 冷水 | K170: GＪ/GＪ | O170: =IF(M170="","","tCO2/GJ") -> 
D171: 自家発電 | K171: GJ/千ｋWh | O171: tCO2/千kWh
I172: 販売した熱の量 | M172: CO2の排出係数
D173: 販売熱量 | K173: ＧＪ | O173: tCO2/GJ
C176: ④ | D176: 発電所、熱供給業
D177: 熱供給業を行う事業所の場合は、他人に供給した熱に伴う排出量を控除した
D178: 排出量に加え、燃料の使用に伴う排出量も報告する義務があります | O178: =COUNTA(K179:M180) -> 1
I179: 法定係数以外を使用する場合の発熱係数 | M179: CO2の排出係数
D180: エネルギー名
I181: 係数 | K181: 単位 | M181: 二酸化炭素 （ｔＣ/GJ, tCO2/千kWh）
D182: 都市ガス | I182: =IF(#REF!="","",#REF!) ->  | K182: GＪ/千ｍ３
D183: 産業用蒸気 | I183: 1.2 | K183: GＪ/GＪ | O183: =IF(M183="","","tCO2/GJ") -> 
D184: 産業用以外の蒸気 | K184: GＪ/GＪ | O184: =IF(M184="","","tCO2/GJ") -> 
D185: 温水 | K185: GＪ/GＪ | O185: =IF(M185="","","tCO2/GJ") -> 
D186: 冷水 | K186: GＪ/GＪ | O186: =IF(M186="","","tCO2/GJ") -> 
D187: 販売電気量（自家発電による販売量含む） | K187: 千KWh | O187: tCO2/千kWh
I188: 販売した熱の量 | M188: CO2の排出係数
D189: 販売熱量 | K189: ＧＪ | O189: tCO2/GJ
L194: 発電所、熱供給業は、ＳＴＥＰ２へ進んで下さい。
B195: 他人に販売（無償含む）した電気又は熱の排出係数の算出
C197: 下記黄色の箇所に数値を入力すれば計算されます。
I198: (A)
A199: 1 | B199: 単位電気販売量当たりの排出量＝ | I199: =ROUND(O207/C209,4) ->  | L199: tCo2/千kWh | S199: （参考）
T200: 燃料種 | W200: 単位発熱量 | Y200: 排出係数
C201: 燃料種類 | F201: 使用量 | H201: 単位 | I201: 単位発熱量 | L201: 排出係数 | O201: ｔCO2 | S201: 揮発油 | W201: =VLOOKUP(S201,係数,2,FALSE) -> 34.6 | X201: GＪ/ｋｌ | Y201: =VLOOKUP(S201,係数,4,FALSE) -> 0.0183 | Z201: tC/GJ
O202: =F202*I202*L202*44/12 -> 0 | S202: ナフサ | W202: 33.6 | X202: GＪ/ｋｌ | Y202: 0.0182 | Z202: tC/GJ
O203: =F203*I203*L203*44/12 -> 0 | S203: 灯油 | W203: 36.7 | X203: GＪ/ｋｌ | Y203: 0.0185 | Z203: tC/GJ
O204: =F204*I204*L204*44/12 -> 0 | S204: 軽油 | W204: 37.7 | X204: GＪ/ｋｌ | Y204: 0.0187 | Z204: tC/GJ
O205: =F205*I205*L205*44/12 -> 0 | S205: Ａ重油 | W205: 39.1 | X205: GＪ/ｋｌ | Y205: 0.0189 | Z205: tC/GJ
O206: =F206*I206*L206*44/12 -> 0 | S206: Ｂ・Ｃ重油 | W206: 41.9 | X206: GＪ/ｋｌ | Y206: 0.0195 | Z206: tC/GJ
N207: 計 | O207: =SUM(O202:O206) -> 0 | S207: 石油アスファルト | W207: 40.9 | X207: GＪ/ｔ | Y207: 0.0208 | Z207: tC/GJ
C208: 発電量 | S208: 石油コークス | W208: 29.9 | X208: GＪ/ｔ | Y208: 0.0254 | Z208: tC/GJ
H209: 千kWh | S209: 液化石油ガス (ＬＰＧ) | X209: GＪ/ｔ | Z209: tC/GJ
I210: (B) | S210: 石油系炭化水素 ガス | W210: 44.9 | X210: GＪ/千ｍ３ | Y210: 0.0142 | Z210: tC/GJ
A211: 2 | B211: 単位熱販売量当たりの排出量＝ | I211: =ROUND((SUM(O214:P218)+O221+O222+O223)/F226,4) ->  | L211: tCO2/GJ | S211: 液化天然ガス （ＬＮＧ） | W211: 54.6 | X211: GＪ/ｔ | Y211: 0.0135 | Z211: tC/GJ
S212: その他可燃性天然ガス | X212: GＪ/千ｍ３ | Z212: tC/GJ
C213: 燃料種類 | F213: 使用量 | H213: 単位 | I213: 単位発熱量 | L213: 排出係数 | O213: ｔCO2 | S213: 原料炭 | W213: 29 | X213: GＪ/ｔ | Y213: 0.0245 | Z213: tC/GJ
O214: =F214*I214*L214*44/12 -> 0 | S214: 一般炭 | W214: 25.7 | X214: GＪ/ｔ | Y214: 0.0247 | Z214: tC/GJ
O215: =F215*I215*L215*44/12 -> 0 | S215: 無煙炭 | W215: 26.9 | X215: GＪ/ｔ | Y215: 0.0255 | Z215: tC/GJ
O216: =F216*I216*L216*44/12 -> 0 | S216: 石炭コークス | W216: 29.4 | X216: GＪ/ｔ | Y216: 0.0294 | Z216: tC/GJ
O217: =F217*I217*L217*44/12 -> 0 | S217: コールタール | W217: 37.3 | X217: GＪ/ｔ | Y217: 0.0209 | Z217: tC/GJ
O218: =F218*I218*L218*44/12 -> 0 | S218: コークス炉ガス | W218: 21.1 | X218: GＪ/千ｍ３ | Y218: 0.011 | Z218: tC/GJ
S219: 高炉ガス | W219: 3.41 | X219: GＪ/千ｍ３ | Y219: 0.0263 | Z219: tC/GJ
C220: 燃料種類 | F220: 使用量 | L220: 排出係数 | O220: ｔCO2 | S220: 転炉ガス | W220: 8.41 | X220: GＪ/千ｍ３ | Y220: 0.0384 | Z220: tC/GJ
C221: 熱の発生のために使用した電力 | J221: 千kWh | O221: =F221*L221 -> 0 | S221: 都市ガス | X221: GＪ/千ｍ３ | Y221: 0.0136 | Z221: tC/GJ
C222: 熱の発生のために使用した電力 | J222: 千kWh | O222: =F222*L222 -> 0 | S222: 購入した電気の係数 | W222: 北海道電力（株） | Y222: 0.683 | Z222: ｔCO2/千kWh
C223: 熱の発生のために使用した電力 | J223: 千kWh | O223: =F223*L223 -> 0 | S223: （平成２7年11月30日公表） | W223: 東北電力（株） | Y223: 0.571 | Z223: ｔCO2/千kWh
... 77 more rows

Sheet 特定-第１・２表
B1: 様式第９（第１７条関係）
AL3: ※受理年月日
AL4: ※処理年月日
B6: 定 期 報 告 書
B10: 関東経済産業局 | W10: 殿 | BK10: 北海道経済産業局長
BK11: 東北経済産業局長
BK12: 関東経済産業局長
BK13: 中部経済産業局長 | BP13: 月 | BQ13: 日 | BR13: 西暦年 | BS13: 西暦年月日
AI14: 平成 | AL14: =入力・計算補助!D3+1 -> 28 | AP14: 年 | AS14: 7 | AV14: 月 | AZ14: 22 | BC14: 日 | BK14: 近畿経済産業局長 | BP14: =IF(AS14="","00",IF(AS14<10,"0"&AS14,AS14)) -> 07 | BQ14: =IF(AZ14="","00",IF(AZ14<10,"0"&AZ14,AZ14)) -> 22 | BR14: =AL14+1988 -> 2016 | BS14: =BR14&BP14&BQ14 -> 20160722 | BV14: =(DATEVALUE(BR14&"/"&BP14&"/"&BQ14)) -> 42573
BK15: 中国経済産業局長
BK16: 四国経済産業局長
BK17: 九州経済産業局長
AB18: 住 所 | AK18: 東京都港区虎ノ門４－３－１３ ヒューリック神谷町ビル ５F | BK18: 沖縄総合事務局長
AB20: 法人名 | AK20: Aｓ‐meエステール株式会社
AB21: 代表者の役職名 | AK21: 代表取締役社長
AB22: 代表者の氏名 | AK22: 丸山 雅史 | BD22: 印
AB23: （代理）役職名
AB24: （代理）氏名 | BD24: 印
B26: エネルギーの使用の合理化等に関する法律第１５条第１項の規定（法第１９条の２第１項において準用する場合を含む。）に基づき、次のとおり報告します。
B29: 事業者単位の報告
B30: 特定－第１表 事業者の名称等
B31: 特定事業者番号又は 特定連鎖化事業者番号 | T31: 0 | Y31: 6 | AD31: 2 | AI31: 7 | AN31: 8 | AS31: 3 | AX31: 1
B32: 特定排出者番号 | T32: 9 | X32: 8 | AB32: 5 | AF32: 3 | AJ32: 3 | AN32: 0 | AR32: 6 | AV32: 2 | AZ32: 0
B33: 事業者の名称 | T33: ○○株式会社
B34: 主たる事務所の 所在地 | T34: 〒 | V34: 1050001
T35: 東京都港区
B36: 主たる事業 | T36: ジュエリー製品小売業
B37: 細分類番号 | T37: 6 | X37: 0 | AB37: 9 | AF37: 5
B38: エネルギー管理統括者の職名・氏名 | T38: 職名 | W38: 取締役 管理本部長
T39: 氏名 | W39: ○
B40: エネルギー管理統括者の職名・氏名 | T40: 職名
T41: 氏名
B42: エネルギー管理統括者の職名・氏名 | T42: 職名
T43: 氏名
B44: エネルギー管理統括者の職名・氏名 | T44: 職名
T45: 氏名
B46: エネルギー管理統括者の職名・氏名 | T46: 職名
T47: 氏名
B48: エネルギー管理企画推進者の 職名・氏名・勤務地・連絡先 | T48: 職名 | W48: 人事総務部 部長
T49: 氏名 | W49: ○○
T50: エネルギー管理士免状番号又は講習修了番号
T52: 勤務地 〒 | Y52: 1050001
T53: 東京都港区
T54: 電話（ | X54: 03 | AF54: － | AQ54: － | BB54: ）
T55: ＦＡＸ（ | X55: 03 | AF55: － | AQ55: － | BB55: ）
T56: メールアドレス | AB56: nosaka@as-estelle.com
B57: エネルギー管理企画推進者の 職名・氏名・勤務地・連絡先 | T57: 職名
T58: 氏名
T59: エネルギー管理士免状番号又は講習修了番号
T61: 勤務地 〒
T63: 電話（ | AF63: － | AQ63: － | BB63: ）
T64: ＦＡＸ（ | AF64: － | AQ64: － | BB64: ）
T65: メールアドレス
B66: エネルギー管理企画推進者の 職名・氏名・勤務地・連絡先 | T66: 職名
T67: 氏名
T68: エネルギー管理士免状番号又は講習修了番号
T70: 勤務地 〒
T72: 電話（ | AF72: － | AQ72: － | BB72: ）
T73: ＦＡＸ（ | AF73: － | AQ73: － | BB73: ）
T74: メールアドレス
B75: エネルギー管理企画推進者の 職名・氏名・勤務地・連絡先 | T75: 職名
T76: 氏名
T77: エネルギー管理士免状番号又は講習修了番号
T79: 勤務地 〒
T81: 電話（ | AF81: － | AQ81: － | BB81: ）
T82: ＦＡＸ（ | AF82: － | AQ82: － | BB82: ）
T83: メールアドレス
B84: エネルギー管理企画推進者の 職名・氏名・勤務地・連絡先 | T84: 職名
T85: 氏名
T86: エネルギー管理士免状番号又は講習修了番号
T88: 勤務地 〒
T90: 電話（ | AF90: － | AQ90: － | BB90: ）
T91: ＦＡＸ（ | AF91: － | AQ91: － | BB91: ）
T92: メールアドレス
B93: エネルギー管理企画推進者の 職名・氏名・勤務地・連絡先 | T93: 職名
T94: 氏名
T95: エネルギー管理士免状番号又は講習修了番号
T97: 勤務地 〒
T99: 電話（ | AF99: － | AQ99: － | BB99: ）
T100: ＦＡＸ（ | AF100: － | AQ100: － | BB100: ）
T101: メールアドレス
B102: エネルギー管理企画推進者の 職名・氏名・勤務地・連絡先 | T102: 職名
T103: 氏名
T104: エネルギー管理士免状番号又は講習修了番号
T106: 勤務地 〒
T108: 電話（ | AF108: － | AQ108: － | BB108: ）
T109: ＦＡＸ（ | AF109: － | AQ109: － | BB109: ）
T110: メールアドレス
B111: エネルギー管理企画推進者の 職名・氏名・勤務地・連絡先 | T111: 職名
T112: 氏名
T113: エネルギー管理士免状番号又は講習修了番号
T115: 勤務地 〒
T117: 電話（ | AF117: － | AQ117: － | BB117: ）
T118: ＦＡＸ（ | AF118: － | AQ118: － | BB118: ）
T119: メールアドレス
B120: エネルギー管理企画推進者の 職名・氏名・勤務地・連絡先 | T120: 職名
T121: 氏名
T122: エネルギー管理士免状番号又は講習修了番号
T124: 勤務地 〒
T126: 電話（ | AF126: － | AQ126: － | BB126: ）
T127: ＦＡＸ（ | AF127: － | AQ127: － | BB127: ）
T128: メールアドレス
B129: エネルギー管理企画推進者の 職名・氏名・勤務地・連絡先 | T129: 職名
T130: 氏名
T131: エネルギー管理士免状番号又は講習修了番号
T133: 勤務地 〒
T135: 電話（ | AF135: － | AQ135: － | BB135: ）
T136: ＦＡＸ（ | AF136: － | AQ136: － | BB136: ）
T137: メールアドレス
B138: 前回報告から事業者の名称及び所在地についての変更の有無 | AN138: 有・無
C139: 有の場合
C140: 変更前の事業者の名称：
C141: 変更前の事業者の所在地：
B144: 備考 「主たる事業」及び「細分類番号」の欄には、行っている事業について、日本標準産業分類の細分類に従い、
B145: 分類の名称及び番号を記入すること。
B147: 特定－第２表 事業者のエネルギーの使用量及び販売した副生エネルギーの量
B148: エネルギーの種類 | Q148: 単位 | U148: 平成 | AL148: =入力・計算補助!D3 -> 27 | AN148: 年度
U149: 使用量 | AM149: 販売した副生エネルギーの量
U151: 数値 | AD151: 熱量GJ | AM151: 数値 | AV151: 熱量GJ | BL151: 換算係数 | BM151: 排出係数 | BN151: CO2使用 | BO151: CO2販売 | BP151: 排出量 | BS151: 分子 | BT151: 分母
B152: 燃 料 及 び 熱 | D152: 原油(コンデンセートを除く。) | Q152: ｋｌ | AD152: =IF(U152=0,"",U152*IF($AD$151="熱量GJ",1,IF($AD$151="熱量TJ",10^(-3),10^(-6)))*VLOOKUP(D152,係数!$D$12:$E$43,2,FALSE)) ->  | AV152: =IF(AM152=0,"",AM152*IF($AV$151="熱量GJ",1,IF($AV$151="熱量TJ",10^(-3),10^(-6)))*VLOOKUP(D152,係数!$D$12:$E$43,2,FALSE)) ->  | BK152: =AL148 -> 27 | BL152: =VLOOKUP(D152,係数!$D$12:$E$43,2,FALSE) -> 38.2 | BM152: =VLOOKUP(D152,係数!$D$12:$G$43,4,FALSE) -> 0.0187 | BN152: =IF(ISERROR(AD152*BM152*BS152/BT152),0,AD152*BM152*BS152/BT152) -> 0 | BO152: =IF(ISERROR(AV152*BM152*BS152/BT152),0,AV152*BM152*BS152/BT152) -> 0 | BP152: =ROUND(BN152-BO152,1) -> 0 | BS152: 44 | BT152: 12
D153: 原油のうちコンデンセート(NGL) | Q153: ｋｌ | AD153: =IF(U153=0,"",U153*IF($AD$151="熱量GJ",1,IF($AD$151="熱量TJ",10^(-3),10^(-6)))*VLOOKUP(D153,係数!$D$12:$E$43,2,FALSE)) ->  | AV153: =IF(AM153=0,"",AM153*IF($AV$151="熱量GJ",1,IF($AV$151="熱量TJ",10^(-3),10^(-6)))*VLOOKUP(D153,係数!$D$12:$E$43,2,FALSE)) ->  | BL153: =VLOOKUP(D153,係数!$D$12:$E$43,2,FALSE) -> 35.3 | BM153: =VLOOKUP(D153,係数!$D$12:$G$43,4,FALSE) -> 0.0184 | BN153: =IF(ISERROR(AD153*BM153*BS153/BT153),0,AD153*BM153*BS153/BT153) -> 0 | BO153: =IF(ISERROR(AV153*BM153*BS153/BT153),0,AV153*BM153*BS153/BT153) -> 0 | BP153: =ROUND(BN153-BO153,1) -> 0 | BS153: 44 | BT153: 12
D154: 揮発油 | Q154: ｋｌ | AD154: =IF(U154=0,"",U154*IF($AD$151="熱量GJ",1,IF($AD$151="熱量TJ",10^(-3),10^(-6)))*VLOOKUP(D154,係数!$D$12:$E$43,2,FALSE)) ->  | AV154: =IF(AM154=0,"",AM154*IF($AV$151="熱量GJ",1,IF($AV$151="熱量TJ",10^(-3),10^(-6)))*VLOOKUP(D154,係数!$D$12:$E$43,2,FALSE)) ->  | BL154: =VLOOKUP(D154,係数!$D$12:$E$43,2,FALSE) -> 34.6 | BM154: =VLOOKUP(D154,係数!$D$12:$G$43,4,FALSE) -> 0.0183 | BN154: 0 | BO154: 0 | BP154: 0 | BS154: 44 | BT154: 12
D155: ナフサ | Q155: ｋｌ | AD155: =IF(U155=0,"",U155*IF($AD$151="熱量GJ",1,IF($AD$151="熱量TJ",10^(-3),10^(-6)))*VLOOKUP(D155,係数!$D$12:$E$43,2,FALSE)) ->  | AV155: =IF(AM155=0,"",AM155*IF($AV$151="熱量GJ",1,IF($AV$151="熱量TJ",10^(-3),10^(-6)))*VLOOKUP(D155,係数!$D$12:$E$43,2,FALSE)) ->  | BL155: =VLOOKUP(D155,係数!$D$12:$E$43,2,FALSE) -> 33.6 | BM155: =VLOOKUP(D155,係数!$D$12:$G$43,4,FALSE) -> 0.0182 | BN155: 0 | BO155: 0 | BP155: 0 | BS155: 44 | BT155: 12
D156: 灯油 | Q156: ｋｌ | AD156: =IF(U156=0,"",U156*IF($AD$151="熱量GJ",1,IF($AD$151="熱量TJ",10^(-3),10^(-6)))*VLOOKUP(D156,係数!$D$12:$E$43,2,FALSE)) ->  | AV156: =IF(AM156=0,"",AM156*IF($AV$151="熱量GJ",1,IF($AV$151="熱量TJ",10^(-3),10^(-6)))*VLOOKUP(D156,係数!$D$12:$E$43,2,FALSE)) ->  | BL156: =VLOOKUP(D156,係数!$D$12:$E$43,2,FALSE) -> 36.7 | BM156: =VLOOKUP(D156,係数!$D$12:$G$43,4,FALSE) -> 0.0185 | BN156: 0 | BO156: 0 | BP156: 0 | BS156: 44 | BT156: 12
D157: 軽油 | Q157: ｋｌ | AD157: =IF(U157=0,"",U157*IF($AD$151="熱量GJ",1,IF($AD$151="熱量TJ",10^(-3),10^(-6)))*VLOOKUP(D157,係数!$D$12:$E$43,2,FALSE)) ->  | AV157: =IF(AM157=0,"",AM157*IF($AV$151="熱量GJ",1,IF($AV$151="熱量TJ",10^(-3),10^(-6)))*VLOOKUP(D157,係数!$D$12:$E$43,2,FALSE)) ->  | BL157: =VLOOKUP(D157,係数!$D$12:$E$43,2,FALSE) -> 37.7 | BM157: =VLOOKUP(D157,係数!$D$12:$G$43,4,FALSE) -> 0.0187 | BN157: 0 | BO157: 0 | BP157: 0 | BS157: 44 | BT157: 12
D158: Ａ重油 | Q158: ｋｌ | AD158: =IF(U158=0,"",U158*IF($AD$151="熱量GJ",1,IF($AD$151="熱量TJ",10^(-3),10^(-6)))*VLOOKUP(D158,係数!$D$12:$E$43,2,FALSE)) ->  | AV158: =IF(AM158=0,"",AM158*IF($AV$151="熱量GJ",1,IF($AV$151="熱量TJ",10^(-3),10^(-6)))*VLOOKUP(D158,係数!$D$12:$E$43,2,FALSE)) ->  | BL158: =VLOOKUP(D158,係数!$D$12:$E$43,2,FALSE) -> 39.1 | BM158: =VLOOKUP(D158,係数!$D$12:$G$43,4,FALSE) -> 0.0189 | BN158: 0 | BO158: 0 | BP158: 0 | BS158: 44 | BT158: 12
D159: Ｂ・Ｃ重油 | Q159: ｋｌ | AD159: =IF(U159=0,"",U159*IF($AD$151="熱量GJ",1,IF($AD$151="熱量TJ",10^(-3),10^(-6)))*VLOOKUP(D159,係数!$D$12:$E$43,2,FALSE)) ->  | AV159: =IF(AM159=0,"",AM159*IF($AV$151="熱量GJ",1,IF($AV$151="熱量TJ",10^(-3),10^(-6)))*VLOOKUP(D159,係数!$D$12:$E$43,2,FALSE)) ->  | BL159: =VLOOKUP(D159,係数!$D$12:$E$43,2,FALSE) -> 41.9 | BM159: =VLOOKUP(D159,係数!$D$12:$G$43,4,FALSE) -> 0.0195 | BN159: 0 | BO159: 0 | BP159: 0 | BS159: 44 | BT159: 12
D160: 石油アスファルト | Q160: ｔ | AD160: =IF(U160=0,"",U160*IF($AD$151="熱量GJ",1,IF($AD$151="熱量TJ",10^(-3),10^(-6)))*VLOOKUP(D160,係数!$D$12:$E$43,2,FALSE)) ->  | AV160: =IF(AM160=0,"",AM160*IF($AV$151="熱量GJ",1,IF($AV$151="熱量TJ",10^(-3),10^(-6)))*VLOOKUP(D160,係数!$D$12:$E$43,2,FALSE)) ->  | BL160: =VLOOKUP(D160,係数!$D$12:$E$43,2,FALSE) -> 40.9 | BM160: =VLOOKUP(D160,係数!$D$12:$G$43,4,FALSE) -> 0.0208 | BN160: 0 | BO160: 0 | BP160: 0 | BS160: 44 | BT160: 12
D161: 石油コークス | Q161: ｔ | AD161: =IF(U161=0,"",U161*IF($AD$151="熱量GJ",1,IF($AD$151="熱量TJ",10^(-3),10^(-6)))*VLOOKUP(D161,係数!$D$12:$E$43,2,FALSE)) ->  | AV161: =IF(AM161=0,"",AM161*IF($AV$151="熱量GJ",1,IF($AV$151="熱量TJ",10^(-3),10^(-6)))*VLOOKUP(D161,係数!$D$12:$E$43,2,FALSE)) ->  | BL161: =VLOOKUP(D161,係数!$D$12:$E$43,2,FALSE) -> 29.9 | BM161: =VLOOKUP(D161,係数!$D$12:$G$43,4,FALSE) -> 0.0254 | BN161: 0 | BO161: 0 | BP161: 0 | BS161: 44 | BT161: 12
D162: 石油ガス | I162: 液化石油ガス （ＬＰＧ） | Q162: ｔ | AD162: =IF(U162=0,"",U162*IF($AD$151="熱量GJ",1,IF($AD$151="熱量TJ",10^(-3),10^(-6)))*VLOOKUP(I162,係数!$D$12:$E$43,2,FALSE)) ->  | AV162: =IF(AM162=0,"",AM162*IF($AV$151="熱量GJ",1,IF($AV$151="熱量TJ",10^(-3),10^(-6)))*VLOOKUP(I162,係数!$D$12:$E$43,2,FALSE)) ->  | BL162: =VLOOKUP(I162,係数!$D$12:$E$43,2,FALSE) -> 50.8 | BM162: =VLOOKUP(I162,係数!$D$12:$G$43,4,FALSE) -> 0.0161 | BN162: 0 | BO162: 0 | BP162: 0 | BS162: 44 | BT162: 12
I163: 石油系炭化水素 ガス | Q163: 千ｍ３ | AD163: =IF(U163=0,"",U163*IF($AD$151="熱量GJ",1,IF($AD$151="熱量TJ",10^(-3),10^(-6)))*VLOOKUP(I163,係数!$D$12:$E$43,2,FALSE)) ->  | AV163: =IF(AM163=0,"",AM163*IF($AV$151="熱量GJ",1,IF($AV$151="熱量TJ",10^(-3),10^(-6)))*VLOOKUP(I163,係数!$D$12:$E$43,2,FALSE)) ->  | BL163: =VLOOKUP(I163,係数!$D$12:$E$43,2,FALSE) -> 44.9 | BM163: =VLOOKUP(I163,係数!$D$12:$G$43,4,FALSE) -> 0.0142 | BN163: 0 | BO163: 0 | BP163: 0 | BS163: 44 | BT163: 12
D164: 可 燃 性 天然ガス | I164: 液化天然ガス （ＬＮＧ） | Q164: ｔ | AD164: =IF(U164=0,"",U164*IF($AD$151="熱量GJ",1,IF($AD$151="熱量TJ",10^(-3),10^(-6)))*VLOOKUP(I164,係数!$D$12:$E$43,2,FALSE)) ->  | AV164: =IF(AM164=0,"",AM164*IF($AV$151="熱量GJ",1,IF($AV$151="熱量TJ",10^(-3),10^(-6)))*VLOOKUP(I164,係数!$D$12:$E$43,2,FALSE)) ->  | BL164: =VLOOKUP(I164,係数!$D$12:$E$43,2,FALSE) -> 54.6 | BM164: =VLOOKUP(I164,係数!$D$12:$G$43,4,FALSE) -> 0.0135 | BN164: 0 | BO164: 0 | BP164: 0 | BS164: 44 | BT164: 12
I165: その他可燃性 天然ガス | Q165: 千ｍ３ | AD165: =IF(U165=0,"",U165*IF($AD$151="熱量GJ",1,IF($AD$151="熱量TJ",10^(-3),10^(-6)))*VLOOKUP(I165,係数!$D$12:$E$43,2,FALSE)) ->  | AV165: =IF(AM165=0,"",AM165*IF($AV$151="熱量GJ",1,IF($AV$151="熱量TJ",10^(-3),10^(-6)))*VLOOKUP(I165,係数!$D$12:$E$43,2,FALSE)) ->  | BL165: =VLOOKUP(I165,係数!$D$12:$E$43,2,FALSE) -> 43.5 | BM165: =VLOOKUP(I165,係数!$D$12:$G$43,4,FALSE) -> 0.0139 | BN165: 0 | BO165: 0 | BP165: 0 | BS165: 44 | BT165: 12
D166: 石炭 | I166: 原料炭 | Q166: ｔ | AD166: =IF(U166=0,"",U166*IF($AD$151="熱量GJ",1,IF($AD$151="熱量TJ",10^(-3),10^(-6)))*VLOOKUP(I166,係数!$D$12:$E$43,2,FALSE)) ->  | AV166: =IF(AM166=0,"",AM166*IF($AV$151="熱量GJ",1,IF($AV$151="熱量TJ",10^(-3),10^(-6)))*VLOOKUP(I166,係数!$D$12:$E$43,2,FALSE)) ->  | BL166: =VLOOKUP(I166,係数!$D$12:$E$43,2,FALSE) -> 29 | BM166: =VLOOKUP(I166,係数!$D$12:$G$43,4,FALSE) -> 0.0245 | BN166: 0 | BO166: 0 | BP166: 0 | BS166: 44 | BT166: 12
I167: 一般炭 | Q167: ｔ | AD167: =IF(U167=0,"",U167*IF($AD$151="熱量GJ",1,IF($AD$151="熱量TJ",10^(-3),10^(-6)))*VLOOKUP(I167,係数!$D$12:$E$43,2,FALSE)) ->  | AV167: =IF(AM167=0,"",AM167*IF($AV$151="熱量GJ",1,IF($AV$151="熱量TJ",10^(-3),10^(-6)))*VLOOKUP(I167,係数!$D$12:$E$43,2,FALSE)) ->  | BL167: =VLOOKUP(I167,係数!$D$12:$E$43,2,FALSE) -> 25.7 | BM167: =VLOOKUP(I167,係数!$D$12:$G$43,4,FALSE) -> 0.0247 | BN167: 0 | BO167: 0 | BP167: 0 | BS167: 44 | BT167: 12
I168: 無煙炭 | Q168: ｔ | AD168: =IF(U168=0,"",U168*IF($AD$151="熱量GJ",1,IF($AD$151="熱量TJ",10^(-3),10^(-6)))*VLOOKUP(I168,係数!$D$12:$E$43,2,FALSE)) ->  | AV168: =IF(AM168=0,"",AM168*IF($AV$151="熱量GJ",1,IF($AV$151="熱量TJ",10^(-3),10^(-6)))*VLOOKUP(I168,係数!$D$12:$E$43,2,FALSE)) ->  | BL168: =VLOOKUP(I168,係数!$D$12:$E$43,2,FALSE) -> 26.9 | BM168: =VLOOKUP(I168,係数!$D$12:$G$43,4,FALSE) -> 0.0255 | BN168: 0 | BO168: 0 | BP168: 0 | BS168: 44 | BT168: 12
D169: 石炭コークス | Q169: ｔ | AD169: =IF(U169=0,"",U169*IF($AD$151="熱量GJ",1,IF($AD$151="熱量TJ",10^(-3),10^(-6)))*VLOOKUP(D169,係数!$D$12:$E$43,2,FALSE)) ->  | AV169: =IF(AM169=0,"",AM169*IF($AV$151="熱量GJ",1,IF($AV$151="熱量TJ",10^(-3),10^(-6)))*VLOOKUP(D169,係数!$D$12:$E$43,2,FALSE)) ->  | BL169: =VLOOKUP(D169,係数!$D$12:$E$43,2,FALSE) -> 29.4 | BM169: =VLOOKUP(D169,係数!$D$12:$G$43,4,FALSE) -> 0.0294 | BN169: 0 | BO169: 0 | BP169: 0 | BS169: 44 | BT169: 12
D170: コールタール | Q170: ｔ | AD170: =IF(U170=0,"",U170*IF($AD$151="熱量GJ",1,IF($AD$151="熱量TJ",10^(-3),10^(-6)))*VLOOKUP(D170,係数!$D$12:$E$43,2,FALSE)) ->  | AV170: =IF(AM170=0,"",AM170*IF($AV$151="熱量GJ",1,IF($AV$151="熱量TJ",10^(-3),10^(-6)))*VLOOKUP(D170,係数!$D$12:$E$43,2,FALSE)) ->  | BL170: =VLOOKUP(D170,係数!$D$12:$E$43,2,FALSE) -> 37.3 | BM170: =VLOOKUP(D170,係数!$D$12:$G$43,4,FALSE) -> 0.0209 | BN170: 0 | BO170: 0 | BP170: 0 | BS170: 44 | BT170: 12
D171: コークス炉ガス | Q171: 千ｍ３ | AD171: =IF(U171=0,"",U171*IF($AD$151="熱量GJ",1,IF($AD$151="熱量TJ",10^(-3),10^(-6)))*VLOOKUP(D171,係数!$D$12:$E$43,2,FALSE)) ->  | AV171: =IF(AM171=0,"",AM171*IF($AV$151="熱量GJ",1,IF($AV$151="熱量TJ",10^(-3),10^(-6)))*VLOOKUP(D171,係数!$D$12:$E$43,2,FALSE)) ->  | BL171: =VLOOKUP(D171,係数!$D$12:$E$43,2,FALSE) -> 21.1 | BM171: =VLOOKUP(D171,係数!$D$12:$G$43,4,FALSE) -> 0.011 | BN171: 0 | BO171: 0 | BP171: 0 | BS171: 44 | BT171: 12
D172: 高炉ガス | Q172: 千ｍ３ | AD172: =IF(U172=0,"",U172*IF($AD$151="熱量GJ",1,IF($AD$151="熱量TJ",10^(-3),10^(-6)))*VLOOKUP(D172,係数!$D$12:$E$43,2,FALSE)) ->  | AV172: =IF(AM172=0,"",AM172*IF($AV$151="熱量GJ",1,IF($AV$151="熱量TJ",10^(-3),10^(-6)))*VLOOKUP(D172,係数!$D$12:$E$43,2,FALSE)) ->  | BL172: =VLOOKUP(D172,係数!$D$12:$E$43,2,FALSE) -> 3.41 | BM172: =VLOOKUP(D172,係数!$D$12:$G$43,4,FALSE) -> 0.0263 | BN172: 0 | BO172: 0 | BP172: 0 | BS172: 44 | BT172: 12
D173: 転炉ガス | Q173: 千ｍ３ | AD173: =IF(U173=0,"",U173*IF($AD$151="熱量GJ",1,IF($AD$151="熱量TJ",10^(-3),10^(-6)))*VLOOKUP(D173,係数!$D$12:$E$43,2,FALSE)) ->  | AV173: =IF(AM173=0,"",AM173*IF($AV$151="熱量GJ",1,IF($AV$151="熱量TJ",10^(-3),10^(-6)))*VLOOKUP(D173,係数!$D$12:$E$43,2,FALSE)) ->  | BL173: =VLOOKUP(D173,係数!$D$12:$E$43,2,FALSE) -> 8.41 | BM173: =VLOOKUP(D173,係数!$D$12:$G$43,4,FALSE) -> 0.0384 | BN173: 0 | BO173: 0 | BP173: 0 | BS173: 44 | BT173: 12
D174: その他の 燃 料 | I174: 都市ガス | Q174: 千ｍ３ | U174: =IF(入力・計算補助!Y55=0,"",入力・計算補助!Y55) ->  | AD174: =IF(入力・計算補助!Z55=0,"",入力・計算補助!Z55) ->  | AM174: =IF(入力・計算補助!AA55=0,"",入力・計算補助!AA55) ->  | AV174: =IF(入力・計算補助!AB55=0,"",入力・計算補助!AB55) ->  | BL174: =入力・計算補助!AD28 -> N/A | BM174: =入力・計算補助!AD29 -> 0.0136 | BN174: =IF(ISERROR(AD174*BM174*BS174/BT174),入力・計算補助!AC55,AD174*BM174*BS174/BT174) -> 0 | BO174: =IF(ISERROR(AV174*BM174*BS174/BT174),入力・計算補助!AD55,AV174*BM174*BS174/BT174) -> 0 | BP174: =ROUND(入力・計算補助!AF55,1) -> 0 | BS174: 44 | BT174: 12
A175: =IF(入力・計算補助!I57<>"",IF(OR(LEFT(入力・計算補助!D57,5)="航空機燃料",LEFT(入力・計算補助!D57,6)="ジェット燃料"),2,IF(RIGHT(入力・計算補助!D57,3)="推計値",1,IF(入力・計算補助!D57="ガソリン",3,9))),0) -> 0 | I175: （ | J175: =IF(入力・計算補助!D57="","",入力・計算補助!D57) ->  | P175: ） | Q175: 空調 | AD175: 2445 | AV175: =IF(AM175=0,"",AM175*IF($AV$151="熱量GJ",1,IF($AV$151="熱量TJ",10^(-3),10^(-6)))*入力・計算補助!I57) ->  | BL175: =入力・計算補助!I57 ->  | BM175: =IF(RIGHT(J175,3)="推計値",入力・計算補助!M57,IF(OR(LEFT(J175,6)="ジェット燃料",LEFT(J175,5)="航空機燃料"),係数!G$35,IF(J175="ガソリン",係数!G$14,"N/A"))) -> N/A | BN175: =IF(U175="",0,IF(RIGHT(J175,3)="推計値",AD175*BM175,IF(OR(LEFT(J175,6)="ジェット燃料",LEFT(J175,5)="航空機燃料",J175="ガソリン"),AD175*BM175*BS175/BT175,""))) -> 0 | BO175: =IF(AM175="",0,IF(RIGHT(J175,3)="推計値",AV175*BM175,IF(OR(LEFT(J175,6)="ジェット燃料",LEFT(J175,5)="航空機燃料",J175="ガソリン"),AV175*BM175*BS175/BT175,""))) -> 0 | BP175: =IF(OR(RIGHT(J175,3)="推計値",LEFT(J175,6)="ジェット燃料",LEFT(J175,5)="航空機燃料",J175="ガソリン"),IF(ISERROR(BN175-BO175),"",ROUND(BN175-BO175,1)),"") ->  | BQ175: 控除量 | BS175: =IF(RIGHT(J175,3)="推計値",1,IF(OR(LEFT(J175,6)="ジェット燃料",LEFT(J175,5)="航空機燃料",J175="ガソリン"),44,"")) ->  | BT175: =IF(RIGHT(J175,3)="推計値",1,IF(OR(LEFT(J175,6)="ジェット燃料",LEFT(J175,5)="航空機燃料",J175="ガソリン"),12,"")) -> 
A176: =IF(入力・計算補助!I58<>"",IF(OR(LEFT(入力・計算補助!D58,5)="航空機燃料",LEFT(入力・計算補助!D58,6)="ジェット燃料"),2,IF(RIGHT(入力・計算補助!D58,3)="推計値",1,IF(入力・計算補助!D58="ガソリン",3,9))),0) -> 0 | I176: （ | J176: =IF(入力・計算補助!D58="","",入力・計算補助!D58) ->  | P176: ） | Q176: =IF(入力・計算補助!K58="","",MID(入力・計算補助!K58,4,LEN(入力・計算補助!K58)-3)) ->  | AD176: =IF(U176=0,"",U176*IF($AD$151="熱量GJ",1,IF($AD$151="熱量TJ",10^(-3),10^(-6)))*入力・計算補助!I58) ->  | AV176: =IF(AM176=0,"",AM176*IF($AV$151="熱量GJ",1,IF($AV$151="熱量TJ",10^(-3),10^(-6)))*入力・計算補助!I58) ->  | BL176: =入力・計算補助!I58 ->  | BM176: =IF(RIGHT(J176,3)="推計値",入力・計算補助!M58,IF(OR(LEFT(J176,6)="ジェット燃料",LEFT(J176,5)="航空機燃料"),係数!G$35,IF(J176="ガソリン",係数!G$14,"N/A"))) -> N/A | BN176: =IF(U176="",0,IF(RIGHT(J176,3)="推計値",AD176*BM176,IF(OR(LEFT(J176,6)="ジェット燃料",LEFT(J176,5)="航空機燃料",J176="ガソリン"),AD176*BM176*BS176/BT176,""))) -> 0 | BO176: =IF(AM176="",0,IF(RIGHT(J176,3)="推計値",AV176*BM176,IF(OR(LEFT(J176,6)="ジェット燃料",LEFT(J176,5)="航空機燃料",J176="ガソリン"),AV176*BM176*BS176/BT176,""))) -> 0 | BP176: =IF(OR(RIGHT(J176,3)="推計値",LEFT(J176,6)="ジェット燃料",LEFT(J176,5)="航空機燃料",J176="ガソリン"),IF(ISERROR(BN176-BO176),"",ROUND(BN176-BO176,1)),"") ->  | BS176: =IF(RIGHT(J176,3)="推計値",1,IF(OR(LEFT(J176,6)="ジェット燃料",LEFT(J176,5)="航空機燃料",J176="ガソリン"),44,"")) ->  | BT176: =IF(RIGHT(J176,3)="推計値",1,IF(OR(LEFT(J176,6)="ジェット燃料",LEFT(J176,5)="航空機燃料",J176="ガソリン"),12,"")) -> 
A177: =IF(入力・計算補助!I59<>"",IF(OR(LEFT(入力・計算補助!D59,5)="航空機燃料",LEFT(入力・計算補助!D59,6)="ジェット燃料"),2,IF(RIGHT(入力・計算補助!D59,3)="推計値",1,IF(入力・計算補助!D59="ガソリン",3,9))),0) -> 0 | I177: （ | J177: =IF(入力・計算補助!D59="","",入力・計算補助!D59) ->  | P177: ） | Q177: =IF(入力・計算補助!K59="","",MID(入力・計算補助!K59,4,LEN(入力・計算補助!K59)-3)) ->  | AD177: =IF(U177=0,"",U177*IF($AD$151="熱量GJ",1,IF($AD$151="熱量TJ",10^(-3),10^(-6)))*入力・計算補助!I59) ->  | AV177: =IF(AM177=0,"",AM177*IF($AV$151="熱量GJ",1,IF($AV$151="熱量TJ",10^(-3),10^(-6)))*入力・計算補助!I59) ->  | BL177: =入力・計算補助!I59 ->  | BM177: =IF(RIGHT(J177,3)="推計値",入力・計算補助!M59,IF(OR(LEFT(J177,6)="ジェット燃料",LEFT(J177,5)="航空機燃料"),係数!G$35,IF(J177="ガソリン",係数!G$14,"N/A"))) -> N/A | BN177: =IF(U177="",0,IF(RIGHT(J177,3)="推計値",AD177*BM177,IF(OR(LEFT(J177,6)="ジェット燃料",LEFT(J177,5)="航空機燃料",J177="ガソリン"),AD177*BM177*BS177/BT177,""))) -> 0 | BO177: =IF(AM177="",0,IF(RIGHT(J177,3)="推計値",AV177*BM177,IF(OR(LEFT(J177,6)="ジェット燃料",LEFT(J177,5)="航空機燃料",J177="ガソリン"),AV177*BM177*BS177/BT177,""))) -> 0
A178: =IF(入力・計算補助!I60<>"",IF(OR(LEFT(入力・計算補助!D60,5)="航空機燃料",LEFT(入力・計算補助!D60,6)="ジェット燃料"),2,IF(RIGHT(入力・計算補助!D60,3)="推計値",1,IF(入力・計算補助!D60="ガソリン",3,9))),0) -> 0 | I178: （ | J178: =IF(入力・計算補助!D60="","",入力・計算補助!D60) ->  | P178: ） | Q178: =IF(入力・計算補助!K60="","",MID(入力・計算補助!K60,4,LEN(入力・計算補助!K60)-3)) ->  | AD178: =IF(U178=0,"",U178*IF($AD$151="熱量GJ",1,IF($AD$151="熱量TJ",10^(-3),10^(-6)))*入力・計算補助!I60) ->  | AV178: =IF(AM178=0,"",AM178*IF($AV$151="熱量GJ",1,IF($AV$151="熱量TJ",10^(-3),10^(-6)))*入力・計算補助!I60) ->  | BL178: =入力・計算補助!I60 ->  | BM178: =IF(RIGHT(J178,3)="推計値",入力・計算補助!M60,IF(OR(LEFT(J178,6)="ジェット燃料",LEFT(J178,5)="航空機燃料"),係数!G$35,IF(J178="ガソリン",係数!G$14,"N/A"))) -> N/A | BN178: 0 | BO178: 0
A179: =IF(入力・計算補助!I61<>"",IF(OR(LEFT(入力・計算補助!D61,5)="航空機燃料",LEFT(入力・計算補助!D61,6)="ジェット燃料"),2,IF(RIGHT(入力・計算補助!D61,3)="推計値",1,IF(入力・計算補助!D61="ガソリン",3,9))),0) -> 0 | I179: （ | J179: =IF(入力・計算補助!D61="","",入力・計算補助!D61) ->  | P179: ） | Q179: =IF(入力・計算補助!K61="","",MID(入力・計算補助!K61,4,LEN(入力・計算補助!K61)-3)) ->  | AD179: =IF(U179=0,"",U179*IF($AD$151="熱量GJ",1,IF($AD$151="熱量TJ",10^(-3),10^(-6)))*入力・計算補助!I61) ->  | AV179: =IF(AM179=0,"",AM179*IF($AV$151="熱量GJ",1,IF($AV$151="熱量TJ",10^(-3),10^(-6)))*入力・計算補助!I61) ->  | BL179: =入力・計算補助!I61 ->  | BM179: =IF(RIGHT(J179,3)="推計値",入力・計算補助!M61,IF(OR(LEFT(J179,6)="ジェット燃料",LEFT(J179,5)="航空機燃料"),係数!G$35,IF(J179="ガソリン",係数!G$14,"N/A"))) -> N/A | BN179: 0 | BO179: 0
A180: =IF(入力・計算補助!I62<>"",IF(OR(LEFT(入力・計算補助!D62,5)="航空機燃料",LEFT(入力・計算補助!D62,6)="ジェット燃料"),2,IF(RIGHT(入力・計算補助!D62,3)="推計値",1,IF(入力・計算補助!D62="ガソリン",3,9))),0) -> 0 | I180: （ | J180: =IF(入力・計算補助!D62="","",入力・計算補助!D62) ->  | P180: ） | Q180: =IF(入力・計算補助!K62="","",MID(入力・計算補助!K62,4,LEN(入力・計算補助!K62)-3)) ->  | AD180: =IF(U180=0,"",U180*IF($AD$151="熱量GJ",1,IF($AD$151="熱量TJ",10^(-3),10^(-6)))*入力・計算補助!I62) ->  | AV180: =IF(AM180=0,"",AM180*IF($AV$151="熱量GJ",1,IF($AV$151="熱量TJ",10^(-3),10^(-6)))*入力・計算補助!I62) ->  | BL180: =入力・計算補助!I62 ->  | BM180: =IF(RIGHT(J180,3)="推計値",入力・計算補助!M62,IF(OR(LEFT(J180,6)="ジェット燃料",LEFT(J180,5)="航空機燃料"),係数!G$35,IF(J180="ガソリン",係数!G$14,"N/A"))) -> N/A | BN180: 0 | BO180: 0
A181: =IF(入力・計算補助!I63<>"",IF(OR(LEFT(入力・計算補助!D63,5)="航空機燃料",LEFT(入力・計算補助!D63,6)="ジェット燃料"),2,IF(RIGHT(入力・計算補助!D63,3)="推計値",1,IF(入力・計算補助!D63="ガソリン",3,9))),0) -> 0 | I181: （ | J181: =IF(入力・計算補助!D63="","",入力・計算補助!D63) ->  | P181: ） | Q181: =IF(入力・計算補助!K63="","",MID(入力・計算補助!K63,4,LEN(入力・計算補助!K63)-3)) ->  | AD181: =IF(U181=0,"",U181*IF($AD$151="熱量GJ",1,IF($AD$151="熱量TJ",10^(-3),10^(-6)))*入力・計算補助!I63) ->  | AV181: =IF(AM181=0,"",AM181*IF($AV$151="熱量GJ",1,IF($AV$151="熱量TJ",10^(-3),10^(-6)))*入力・計算補助!I63) ->  | BL181: =入力・計算補助!I63 ->  | BM181: =IF(RIGHT(J181,3)="推計値",入力・計算補助!M63,IF(OR(LEFT(J181,6)="ジェット燃料",LEFT(J181,5)="航空機燃料"),係数!G$35,IF(J181="ガソリン",係数!G$14,"N/A"))) -> N/A | BN181: 0 | BO181: 0
A182: =IF(入力・計算補助!I64<>"",IF(OR(LEFT(入力・計算補助!D64,5)="航空機燃料",LEFT(入力・計算補助!D64,6)="ジェット燃料"),2,IF(RIGHT(入力・計算補助!D64,3)="推計値",1,IF(入力・計算補助!D64="ガソリン",3,9))),0) -> 0 | I182: （ | J182: =IF(入力・計算補助!D64="","",入力・計算補助!D64) ->  | P182: ） | Q182: =IF(入力・計算補助!K64="","",MID(入力・計算補助!K64,4,LEN(入力・計算補助!K64)-3)) ->  | AD182: =IF(U182=0,"",U182*IF($AD$151="熱量GJ",1,IF($AD$151="熱量TJ",10^(-3),10^(-6)))*入力・計算補助!I64) ->  | AV182: =IF(AM182=0,"",AM182*IF($AV$151="熱量GJ",1,IF($AV$151="熱量TJ",10^(-3),10^(-6)))*入力・計算補助!I64) ->  | BL182: =入力・計算補助!I64 ->  | BM182: =IF(RIGHT(J182,3)="推計値",入力・計算補助!M64,IF(OR(LEFT(J182,6)="ジェット燃料",LEFT(J182,5)="航空機燃料"),係数!G$35,IF(J182="ガソリン",係数!G$14,"N/A"))) -> N/A | BN182: 0 | BO182: 0
A183: =IF(入力・計算補助!I65<>"",IF(OR(LEFT(入力・計算補助!D65,5)="航空機燃料",LEFT(入力・計算補助!D65,6)="ジェット燃料"),2,IF(RIGHT(入力・計算補助!D65,3)="推計値",1,IF(入力・計算補助!D65="ガソリン",3,9))),0) -> 0 | I183: （ | J183: =IF(入力・計算補助!D65="","",入力・計算補助!D65) ->  | P183: ） | Q183: =IF(入力・計算補助!K65="","",MID(入力・計算補助!K65,4,LEN(入力・計算補助!K65)-3)) ->  | AD183: =IF(U183=0,"",U183*IF($AD$151="熱量GJ",1,IF($AD$151="熱量TJ",10^(-3),10^(-6)))*入力・計算補助!I65) ->  | AV183: =IF(AM183=0,"",AM183*IF($AV$151="熱量GJ",1,IF($AV$151="熱量TJ",10^(-3),10^(-6)))*入力・計算補助!I65) ->  | BL183: =入力・計算補助!I65 ->  | BM183: =IF(RIGHT(J183,3)="推計値",入力・計算補助!M65,IF(OR(LEFT(J183,6)="ジェット燃料",LEFT(J183,5)="航空機燃料"),係数!G$35,IF(J183="ガソリン",係数!G$14,"N/A"))) -> N/A | BN183: 0 | BO183: 0
A184: =IF(入力・計算補助!I66<>"",IF(OR(LEFT(入力・計算補助!D66,5)="航空機燃料",LEFT(入力・計算補助!D66,6)="ジェット燃料"),2,IF(RIGHT(入力・計算補助!D66,3)="推計値",1,IF(入力・計算補助!D66="ガソリン",3,9))),0) -> 0 | I184: （ | J184: =IF(入力・計算補助!D66="","",入力・計算補助!D66) ->  | P184: ） | Q184: =IF(入力・計算補助!K66="","",MID(入力・計算補助!K66,4,LEN(入力・計算補助!K66)-3)) ->  | AD184: =IF(U184=0,"",U184*IF($AD$151="熱量GJ",1,IF($AD$151="熱量TJ",10^(-3),10^(-6)))*入力・計算補助!I66) ->  | AV184: =IF(AM184=0,"",AM184*IF($AV$151="熱量GJ",1,IF($AV$151="熱量TJ",10^(-3),10^(-6)))*入力・計算補助!I66) ->  | BL184: =入力・計算補助!I66 ->  | BM184: =IF(RIGHT(J184,3)="推計値",入力・計算補助!M66,IF(OR(LEFT(J184,6)="ジェット燃料",LEFT(J184,5)="航空機燃料"),係数!G$35,IF(J184="ガソリン",係数!G$14,"N/A"))) -> N/A | BN184: 0 | BO184: 0
A185: =IF(入力・計算補助!I67<>"",IF(OR(LEFT(入力・計算補助!D67,5)="航空機燃料",LEFT(入力・計算補助!D67,6)="ジェット燃料"),2,IF(RIGHT(入力・計算補助!D67,3)="推計値",1,IF(入力・計算補助!D67="ガソリン",3,9))),0) -> 0 | I185: （ | J185: =IF(入力・計算補助!D67="","",入力・計算補助!D67) ->  | P185: ） | Q185: =IF(入力・計算補助!K67="","",MID(入力・計算補助!K67,4,LEN(入力・計算補助!K67)-3)) ->  | AD185: =IF(U185=0,"",U185*IF($AD$151="熱量GJ",1,IF($AD$151="熱量TJ",10^(-3),10^(-6)))*入力・計算補助!I67) ->  | AV185: =IF(AM185=0,"",AM185*IF($AV$151="熱量GJ",1,IF($AV$151="熱量TJ",10^(-3),10^(-6)))*入力・計算補助!I67) ->  | BL185: =入力・計算補助!I67 ->  | BM185: =IF(RIGHT(J185,3)="推計値",入力・計算補助!M67,IF(OR(LEFT(J185,6)="ジェット燃料",LEFT(J185,5)="航空機燃料"),係数!G$35,IF(J185="ガソリン",係数!G$14,"N/A"))) -> N/A | BN185: 0 | BO185: 0
D186: 産業用蒸気 | Q186: ＧＪ | AD186: =IF(U186=0,"",U186*IF($AD$151="熱量GJ",1,IF($AD$151="熱量TJ",10^(-3),10^(-6)))*VLOOKUP(D186,係数!$D$12:$E$43,2,FALSE)) ->  | AV186: =IF(AM186=0,"",AM186*IF($AV$151="熱量GJ",1,IF($AV$151="熱量TJ",10^(-3),10^(-6)))*VLOOKUP(D186,係数!$D$12:$E$43,2,FALSE)) ->  | BL186: =VLOOKUP(D186,係数!$D$12:$E$43,2,FALSE) -> 1.02 | BM186: =VLOOKUP(D186,係数!$D$12:$G$43,4,FALSE) -> 0.06 | BN186: =IF(ISERROR(U186*BM186),0,U186*BM186) -> 0 | BP186: =ROUND(BN186,1) -> 0 | BS186: 1 | BT186: 1
D187: 産業用以外の蒸気 | Q187: ＧＪ | AD187: =IF(U187=0,"",U187*IF($AD$151="熱量GJ",1,IF($AD$151="熱量TJ",10^(-3),10^(-6)))*VLOOKUP(D187,係数!$D$12:$E$43,2,FALSE)) ->  | AV187: =IF(AM187=0,"",AM187*IF($AV$151="熱量GJ",1,IF($AV$151="熱量TJ",10^(-3),10^(-6)))*VLOOKUP(D187,係数!$D$12:$E$43,2,FALSE)) ->  | BL187: =VLOOKUP(D187,係数!$D$12:$E$43,2,FALSE) -> 1.36 | BM187: =VLOOKUP(D187,係数!$D$12:$G$43,4,FALSE) -> 0.057 | BN187: =IF(ISERROR(U187*BM187),0,U187*BM187) -> 0 | BP187: =ROUND(BN187,1) -> 0 | BS187: 1 | BT187: 1
D188: 温水 | Q188: ＧＪ | AD188: =IF(U188=0,"",U188*IF($AD$151="熱量GJ",1,IF($AD$151="熱量TJ",10^(-3),10^(-6)))*VLOOKUP(D188,係数!$D$12:$E$43,2,FALSE)) ->  | AV188: =IF(AM188=0,"",AM188*IF($AV$151="熱量GJ",1,IF($AV$151="熱量TJ",10^(-3),10^(-6)))*VLOOKUP(D188,係数!$D$12:$E$43,2,FALSE)) ->  | BL188: =VLOOKUP(D188,係数!$D$12:$E$43,2,FALSE) -> 1.36 | BM188: =VLOOKUP(D188,係数!$D$12:$G$43,4,FALSE) -> 0.057 | BN188: =IF(ISERROR(U188*BM188),0,U188*BM188) -> 0 | BP188: =ROUND(BN188,1) -> 0 | BS188: 1 | BT188: 1
D189: 冷水 | Q189: ＧＪ | AD189: =IF(U189=0,"",U189*IF($AD$151="熱量GJ",1,IF($AD$151="熱量TJ",10^(-3),10^(-6)))*VLOOKUP(D189,係数!$D$12:$E$43,2,FALSE)) ->  | AV189: =IF(AM189=0,"",AM189*IF($AV$151="熱量GJ",1,IF($AV$151="熱量TJ",10^(-3),10^(-6)))*VLOOKUP(D189,係数!$D$12:$E$43,2,FALSE)) ->  | BL189: =VLOOKUP(D189,係数!$D$12:$E$43,2,FALSE) -> 1.36 | BM189: =VLOOKUP(D189,係数!$D$12:$G$43,4,FALSE) -> 0.057 | BN189: =IF(ISERROR(U189*BM189),0,U189*BM189) -> 0 | BP189: =ROUND(BN189,1) -> 0 | BS189: 1 | BT189: 1
D190: 小計 | Q190: ＧＪ | AD190: =IF(SUM(AD152:AD189)=0,"",SUM(AD152:AD189)) -> 2445 | AV190: =IF(SUM(AV152:AV189)=0,"",SUM(AV152:AV189)) ->  | BL190: 換算係数 | BM190: 実 排出係数 | BO190: 調整後 排出係数 | BP190: 実排出量 | BR190: 調整後排出量
B191: 電 気 | D191: 電気 事業者 | I191: 昼間買電 | Q191: 千kWh | U191: 7119 | AD191: =IF(OR(U191="",U191=0),"",U191*IF($AD$151="熱量GJ",1,IF(AD$151="熱量TJ",10^(-3),10^(-6)))*VLOOKUP(I191,係数!$D$12:$E$43,2,FALSE)) -> 70976.43 | BL191: =VLOOKUP(I191,係数!$D$12:$E$43,2,FALSE) -> 9.97 | BM191: =入力・計算補助!AG73 -> 0.579 | BN191: =IF(ISERROR(U191*BM191),0,U191*BM191) -> 4121.901 | BO191: =入力・計算補助!AG74 -> N/A | BP191: =ROUND(入力・計算補助!AC120,1) -> 0 | BR191: =ROUND(入力・計算補助!AF120,1) -> 0
J192: 夏期・冬期における 電気需要平準化時間帯 | Q192: 千kWh | U192: （ | V192: 4187 | AC192: ） | AD192: （ | AE192: =IF(OR(V192="",V192=0),"",V192*IF($AD$151="熱量GJ",1,IF(AD$151="熱量TJ",10^(-3),10^(-6)))*VLOOKUP(I191,係数!$D$12:$E$43,2,FALSE)) -> 41744.39 | AL192: ） | BL192: =VLOOKUP(I191,係数!$D$12:$E$43,2,FALSE) -> 9.97 | BM192: =入力・計算補助!AG73 -> 0.579 | BN192: =IF(ISERROR(V192*BM192),0,V192*BM192) -> 2424.273 | BO192: =入力・計算補助!AG74 -> N/A | BP192: =ROUND(入力・計算補助!AD120,1) -> 0 | BR192: =ROUND(入力・計算補助!AG120,1) -> 0
I193: 夜間買電 | Q193: 千kWh | U193: =IF(入力・計算補助!Y121=0,"",入力・計算補助!Y121) ->  | AD193: =IF(OR(U193="",U193=0),"",U193*IF($AD$151="熱量GJ",1,IF(AD$151="熱量TJ",10^(-3),10^(-6)))*VLOOKUP(I193,係数!$D$12:$E$43,2,FALSE)) ->  | BL193: =VLOOKUP(I193,係数!$D$12:$E$43,2,FALSE) -> 9.28 | BM193: =入力・計算補助!AG73 -> 0.579 | BN193: =IF(ISERROR(AD193*BM193),0,AD193*BM193) -> 0 | BO193: =入力・計算補助!AG74 -> N/A | BP193: =ROUND(入力・計算補助!AC121,1) -> 0 | BR193: =ROUND(入力・計算補助!AF121,1) -> 0
D194: その他 | I194: 上記以外の買電 | Q194: 千kWh | U194: =IF(入力・計算補助!T121=0,"",入力・計算補助!T121) ->  | AD194: =IF(OR(U194="",U194=0),"",U194*IF($AD$151="熱量GJ",1,IF(AD$151="熱量TJ",10^(-3),10^(-6)))*VLOOKUP(I194,係数!$D$12:$E$43,2,FALSE)) ->  | BL194: =VLOOKUP(I194,係数!$D$12:$E$43,2,FALSE) -> 9.76 | BM194: =入力・計算補助!Q120 -> 0.579 | BN194: =IF(ISERROR(U194*BM194),0,U194*BM194) -> 0 | BP194: =ROUND(BN194,1) -> 0 | BQ194: 控除量
I195: 自家発電 | Q195: 千kWh | BL195: =IF(OR(AM195="",AM195=0),"N/A",ROUND(AV195/AM195,2)) -> N/A
D196: 小計 | Q196: 千kWh | U196: =IF(SUM(U191,U193,U194,U195)=0,"",SUM(U191,U193,U194,U195)) -> 7119 | AD196: =IF(SUM(AD191,AD193,AD194)=0,"",SUM(AD191,AD193,AD194)) -> 70976.43 | AM196: =IF(SUM(AM191:AU195)=0,"",SUM(AM191:AU195)) ->  | AV196: =IF(SUM(AV191:BD195)=0,"",SUM(AV191:BD195)) -> 
B197: =IF(AD$151="熱量GJ","合 計ＧＪ",IF(AD$151="熱量TJ","合 計ＴＪ","合 計PＪ")) -> 合 計ＧＪ | AD197: =IF(ISERROR(AD190+AD196),IF(AND(AD190="",AD196=""),"",IF(AD190="",ROUND(AD196,0),ROUND(AD190,0))),ROUND(AD190+AD196,0)) -> 73421 | AV197: =IF(ISERROR(AV190+AV196),IF(AND(AV190="",AV196=""),"",IF(AV190="",ROUND(AV196,0),ROUND(AV190,0))),ROUND(AV190+AV196,0)) -> 
B198: 原油換算kl | AD198: Ⓢ | AF198: =IF(ISERROR(AD197*0.0258),"",ROUND(AD197*IF(AD151="熱量GJ",1,IF(AD151="熱量TJ",10^3,10^6))*0.0258,0)) -> 1894 | AV198: Ⓣ | AX198: =IF(ISERROR(AV197*0.0258),"",ROUND(AV197*IF(AV151="熱量GJ",1,IF(AV151="熱量TJ",10^3,10^6))*0.0258,0)) ->  | BL198: 0.0258
B199: 前年度原油換算kl | AD199: =IF(入力・計算補助!D9="","",入力・計算補助!D9) -> 2386
B200: 対前年度比（％） | AD200: =IF(AD199=""," -",(IF(ISERROR(AF198/AD199*100)," -",ROUND(AF198/AD199*100, 1)))) -> 79.4
B201: 備考 「夏期・冬期における電気需要平準化時間帯」については、昼間買電の内数であるため「（ ）」としている。
B202: 「電気」の「小計」で重複計上しないこと。

Sheet 特定-第３表
B1: 特定－第３表 事業者の全体及び事業分類ごとのエネルギーの使用に係る原単位等 の記入について
B3: 生産数量又は建物の延床面積その他のエネルギーの使用量と密接な関係を持つ値Ⓔ について、以下のいずれに該当するか選択して下さい。
C5: TRUE | D5: Ⓔはそれぞれの事業で同じ単位、もしくは共通のⒺに換算可能であり、事業者全体の原単位Ⓦが算出可能である
C7: FALSE | D7: Ⓔは事業ごとに異なり、事業者全体の原単位Ⓦが算出困難である
C9: =IF(AND(C5=FALSE,C7=FALSE),"↑どちらか該当する方にチェックを入れて下さい。",IF(AND(C5=TRUE,C7=TRUE),"↑チェックはいずれか1つのみとして下さい。",IF(C5=TRUE,"事業者全体としてのエネルギーの使用に係る原単位Ⓦを算出してください。","事業ごとに原単位を算出し、事業者のエネルギーの使用に係る原単位の対前年度比Ⓩを算出してください。"))) -> 事業者全体としてのエネルギーの使用に係る原単位Ⓦを算出してください。
B11: 特定－第３表 事業者の全体及び事業分類ごとのエネルギーの使用に係る原単位等及び電気需要平準化評価原単位等
B14: １ エネルギーの使用に係る原単位等
B16: 番 号 | C16: 事業分類 | R16: 事業分類ごとのエネルギーの使用に係る原単位等の計算
R17: エネルギーの使用量 (原油換算ｋｌ) | Y17: 販売した副生エネルギーの量 (原油換算ｋｌ) | AM17: Ⓒの構成割合（％） | AT17: 生産数量又は建物延床面積その他のエネルギー使用量と密接な関係をもつ値 | BA17: エネルギーの使用に係る原単位 | BH17: エネルギーの使用に係る前年度の原単位 | BO17: エネルギーの使用に係る原単位の対前年度比（％） | BV17: エネルギーの使用に係る原単位の対前年度比の寄与度（％） | CM17: 計算用、非表示
R18: Ⓐ | Y18: Ⓑ | AF18: Ⓒ=Ⓐ-Ⓑ | AM18: Ⓓ=Ⓒ/Ⓤ×100 | AT18: Ⓔ | BA18: Ⓕ=Ⓒ/Ⓔ | BH18: Ⓖ | BO18: Ⓗ=Ⓕ/Ⓖ×100 | BV18: Ⓘ=Ⓓ×Ⓗ/100 | CN18: ↓
B19: 1 | C19: 工場等に係る 事業の名称 | J19: ジュエリー製品小売 | R19: 1777 | Y19: 0 | AF19: =IF(R19="","",R19-Y19) -> 1777 | AM19: =IF(AF19="","",IF($CM$379=0,"",IF(CM19="","",ROUND(AF19/$CM$379,3)))) -> 0.938 | AT19: 25411 | BA19: =IF(AT19="","",ROUND(AF19/AT19,3-INT(LOG(AF19/AT19)))) -> 0.06993 | BH19: 0.07193 | BO19: =IF(OR((BH19="-"),(ISNUMBER(BH19)=FALSE)),"-",ROUND(BA19/BH19,3)) -> 0.972 | BV19: ① | CM19: =IF(OR(BH19="",BH19="-"),"",AF19) -> 1777
AT20: (名称： | AW20: 延床面積 | AZ20: ) | BV20: =IF(OR((BO19="-"),(ISNUMBER(BO19)=FALSE)),"-",ROUND(AM19*BO19,3)) -> 0.912 | CD20: =IF(AT19>0,1,0) -> 1
C21: 細分類番号 | J21: 6 | L21: 0 | N21: 9 | P21: 5 | AT21: (単位： | AW21: ｍ2 | AZ21: ) | CD21: =IF(AT380>0,1,0) -> 1
B22: 2 | C22: 工場等に係る 事業の名称 | J22: 主として管理事務を行う事務所 | R22: 117 | Y22: 0 | AF22: =IF(R22="","",R22-Y22) -> 117 | AM22: =IF(AF22="","",IF($CM$379=0,"",IF(CM22="","",ROUND(AF22/$CM$379,3)))) -> 0.062 | AT22: 3824 | BA22: =IF(AT22="","",ROUND(AF22/AT22,3-INT(LOG(AF22/AT22)))) -> 0.0306 | BH22: 0.03923 | BO22: =IF(OR((BH22="-"),(ISNUMBER(BH22)=FALSE)),"-",ROUND(BA22/BH22,3)) -> 0.78 | BV22: ② | CM22: =IF(OR(BH22="",BH22="-"),"",AF22) -> 117
AT23: (名称： | AW23: 延床面積 | AZ23: ) | BV23: =IF(OR((BO22="-"),(ISNUMBER(BO22)=FALSE)),"-",ROUND(AM22*BO22,3)) -> 0.048
C24: 細分類番号 | J24: 6 | L24: 0 | N24: 0 | P24: 0 | AT24: (単位： | AW24: ｍ2 | AZ24: )
B25: 3 | C25: 工場等に係る 事業の名称 | J25: =IF(J27&L27&N27&P27="","",(IF(ISERROR(VLOOKUP(J27&L27&N27&P27,日本標準産業分類!A:B,2,FALSE)),"該当の細分類がありません",VLOOKUP(J27&L27&N27&P27,日本標準産業分類!A:B,2,FALSE)))) ->  | AF25: =IF(R25="","",R25-Y25) ->  | AM25: =IF(AF25="","",IF($CM$379=0,"",IF(CM25="","",ROUND(AF25/$CM$379,3)))) ->  | BA25: =IF(AT25="","",ROUND(AF25/AT25,3-INT(LOG(AF25/AT25)))) ->  | BH25: - | BO25: =IF(OR((BH25="-"),(ISNUMBER(BH25)=FALSE)),"-",ROUND(BA25/BH25,3)) -> - | BV25: ③ | CM25: =IF(OR(BH25="",BH25="-"),"",AF25) -> 
AT26: (名称： | AZ26: ) | BV26: =IF(OR((BO25="-"),(ISNUMBER(BO25)=FALSE)),"-",ROUND(AM25*BO25,3)) -> -
C27: 細分類番号 | AT27: (単位： | AZ27: )
B28: 4 | C28: 工場等に係る 事業の名称 | J28: =IF(J30&L30&N30&P30="","",(IF(ISERROR(VLOOKUP(J30&L30&N30&P30,日本標準産業分類!A:B,2,FALSE)),"該当の細分類がありません",VLOOKUP(J30&L30&N30&P30,日本標準産業分類!A:B,2,FALSE)))) ->  | AF28: =IF(R28="","",R28-Y28) ->  | AM28: =IF(AF28="","",IF($CM$379=0,"",IF(CM28="","",ROUND(AF28/$CM$379,3)))) ->  | BA28: =IF(AT28="","",ROUND(AF28/AT28,3-INT(LOG(AF28/AT28)))) ->  | BH28: - | BO28: =IF(OR((BH28="-"),(ISNUMBER(BH28)=FALSE)),"-",ROUND(BA28/BH28,3)) -> - | BV28: ④ | CM28: =IF(OR(BH28="",BH28="-"),"",AF28) -> 
AT29: (名称： | AZ29: ) | BV29: =IF(OR((BO28="-"),(ISNUMBER(BO28)=FALSE)),"-",ROUND(AM28*BO28,3)) -> -
C30: 細分類番号 | AT30: (単位： | AZ30: )
B31: 5 | C31: 工場等に係る 事業の名称 | J31: =IF(J33&L33&N33&P33="","",(IF(ISERROR(VLOOKUP(J33&L33&N33&P33,日本標準産業分類!A:B,2,FALSE)),"該当の細分類がありません",VLOOKUP(J33&L33&N33&P33,日本標準産業分類!A:B,2,FALSE)))) ->  | AF31: =IF(R31="","",R31-Y31) ->  | AM31: =IF(AF31="","",IF($CM$379=0,"",IF(CM31="","",ROUND(AF31/$CM$379,3)))) ->  | BA31: =IF(AT31="","",ROUND(AF31/AT31,3-INT(LOG(AF31/AT31)))) ->  | BH31: - | BO31: =IF(OR((BH31="-"),(ISNUMBER(BH31)=FALSE)),"-",ROUND(BA31/BH31,3)) -> - | BV31: ⑤ | CM31: =IF(OR(BH31="",BH31="-"),"",AF31) -> 
AT32: (名称： | AZ32: ) | BV32: =IF(OR((BO31="-"),(ISNUMBER(BO31)=FALSE)),"-",ROUND(AM31*BO31,3)) -> -
C33: 細分類番号 | AT33: (単位： | AZ33: )
B34: 6 | C34: 工場等に係る 事業の名称 | J34: =IF(J36&L36&N36&P36="","",(IF(ISERROR(VLOOKUP(J36&L36&N36&P36,日本標準産業分類!A:B,2,FALSE)),"該当の細分類がありません",VLOOKUP(J36&L36&N36&P36,日本標準産業分類!A:B,2,FALSE)))) ->  | AF34: =IF(R34="","",R34-Y34) ->  | AM34: =IF(AF34="","",IF($CM$379=0,"",IF(CM34="","",ROUND(AF34/$CM$379,3)))) ->  | BA34: =IF(AT34="","",ROUND(AF34/AT34,3-INT(LOG(AF34/AT34)))) ->  | BH34: - | BO34: =IF(OR((BH34="-"),(ISNUMBER(BH34)=FALSE)),"-",ROUND(BA34/BH34,3)) -> - | BV34: ⑥ | CM34: =IF(OR(BH34="",BH34="-"),"",AF34) -> 
AT35: (名称： | AZ35: ) | BV35: =IF(OR((BO34="-"),(ISNUMBER(BO34)=FALSE)),"-",ROUND(AM34*BO34,3)) -> -
C36: 細分類番号 | AT36: (単位： | AZ36: )
B37: 7 | C37: 工場等に係る 事業の名称 | J37: =IF(J39&L39&N39&P39="","",(IF(ISERROR(VLOOKUP(J39&L39&N39&P39,日本標準産業分類!A:B,2,FALSE)),"該当の細分類がありません",VLOOKUP(J39&L39&N39&P39,日本標準産業分類!A:B,2,FALSE)))) ->  | AF37: =IF(R37="","",R37-Y37) ->  | AM37: =IF(AF37="","",IF($CM$379=0,"",IF(CM37="","",ROUND(AF37/$CM$379,3)))) ->  | BA37: =IF(AT37="","",ROUND(AF37/AT37,3-INT(LOG(AF37/AT37)))) ->  | BH37: - | BO37: =IF(OR((BH37="-"),(ISNUMBER(BH37)=FALSE)),"-",ROUND(BA37/BH37,3)) -> - | BV37: ⑦ | CM37: =IF(OR(BH37="",BH37="-"),"",AF37) -> 
AT38: (名称： | AZ38: ) | BV38: =IF(OR((BO37="-"),(ISNUMBER(BO37)=FALSE)),"-",ROUND(AM37*BO37,3)) -> -
C39: 細分類番号 | AT39: (単位： | AZ39: )
B40: 8 | C40: 工場等に係る 事業の名称 | J40: =IF(J42&L42&N42&P42="","",(IF(ISERROR(VLOOKUP(J42&L42&N42&P42,日本標準産業分類!A:B,2,FALSE)),"該当の細分類がありません",VLOOKUP(J42&L42&N42&P42,日本標準産業分類!A:B,2,FALSE)))) ->  | AF40: =IF(R40="","",R40-Y40) ->  | AM40: =IF(AF40="","",IF($CM$379=0,"",IF(CM40="","",ROUND(AF40/$CM$379,3)))) ->  | BA40: =IF(AT40="","",ROUND(AF40/AT40,3-INT(LOG(AF40/AT40)))) ->  | BH40: - | BO40: =IF(OR((BH40="-"),(ISNUMBER(BH40)=FALSE)),"-",ROUND(BA40/BH40,3)) -> - | BV40: ⑧ | CM40: =IF(OR(BH40="",BH40="-"),"",AF40) -> 
AT41: (名称： | AZ41: ) | BV41: =IF(OR((BO40="-"),(ISNUMBER(BO40)=FALSE)),"-",ROUND(AM40*BO40,3)) -> -
C42: 細分類番号 | AT42: (単位： | AZ42: )
B43: 9 | C43: 工場等に係る 事業の名称 | J43: =IF(J45&L45&N45&P45="","",(IF(ISERROR(VLOOKUP(J45&L45&N45&P45,日本標準産業分類!A:B,2,FALSE)),"該当の細分類がありません",VLOOKUP(J45&L45&N45&P45,日本標準産業分類!A:B,2,FALSE)))) ->  | AF43: =IF(R43="","",R43-Y43) ->  | AM43: =IF(AF43="","",IF($CM$379=0,"",IF(CM43="","",ROUND(AF43/$CM$379,3)))) ->  | BA43: =IF(AT43="","",ROUND(AF43/AT43,3-INT(LOG(AF43/AT43)))) ->  | BH43: - | BO43: =IF(OR((BH43="-"),(ISNUMBER(BH43)=FALSE)),"-",ROUND(BA43/BH43,3)) -> - | BV43: ⑨ | CM43: =IF(OR(BH43="",BH43="-"),"",AF43) -> 
AT44: (名称： | AZ44: ) | BV44: =IF(OR((BO43="-"),(ISNUMBER(BO43)=FALSE)),"-",ROUND(AM43*BO43,3)) -> -
C45: 細分類番号 | AT45: (単位： | AZ45: )
B46: 10 | C46: 工場等に係る 事業の名称 | J46: =IF(J48&L48&N48&P48="","",(IF(ISERROR(VLOOKUP(J48&L48&N48&P48,日本標準産業分類!A:B,2,FALSE)),"該当の細分類がありません",VLOOKUP(J48&L48&N48&P48,日本標準産業分類!A:B,2,FALSE)))) ->  | AF46: =IF(R46="","",R46-Y46) ->  | AM46: =IF(AF46="","",IF($CM$379=0,"",IF(CM46="","",ROUND(AF46/$CM$379,3)))) ->  | BA46: =IF(AT46="","",ROUND(AF46/AT46,3-INT(LOG(AF46/AT46)))) ->  | BH46: - | BO46: =IF(OR((BH46="-"),(ISNUMBER(BH46)=FALSE)),"-",ROUND(BA46/BH46,3)) -> - | BV46: ⑩ | CM46: =IF(OR(BH46="",BH46="-"),"",AF46) -> 
AT47: (名称： | AZ47: ) | BV47: =IF(OR((BO46="-"),(ISNUMBER(BO46)=FALSE)),"-",ROUND(AM46*BO46,3)) -> -
C48: 細分類番号 | AT48: (単位： | AZ48: )
B49: 11 | C49: 工場等に係る 事業の名称 | J49: =IF(J51&L51&N51&P51="","",(IF(ISERROR(VLOOKUP(J51&L51&N51&P51,日本標準産業分類!A:B,2,FALSE)),"該当の細分類がありません",VLOOKUP(J51&L51&N51&P51,日本標準産業分類!A:B,2,FALSE)))) ->  | AF49: =IF(R49="","",R49-Y49) ->  | AM49: =IF(AF49="","",IF($CM$379=0,"",IF(CM49="","",ROUND(AF49/$CM$379,3)))) ->  | BA49: =IF(AT49="","",ROUND(AF49/AT49,3-INT(LOG(AF49/AT49)))) ->  | BH49: - | BO49: =IF(OR((BH49="-"),(ISNUMBER(BH49)=FALSE)),"-",ROUND(BA49/BH49,3)) -> - | BV49: ⑪ | CM49: =IF(OR(BH49="",BH49="-"),"",AF49) -> 
AT50: (名称： | AZ50: ) | BV50: =IF(OR((BO49="-"),(ISNUMBER(BO49)=FALSE)),"-",ROUND(AM49*BO49,3)) -> -
C51: 細分類番号 | AT51: (単位： | AZ51: )
B52: 12 | C52: 工場等に係る 事業の名称 | J52: =IF(J54&L54&N54&P54="","",(IF(ISERROR(VLOOKUP(J54&L54&N54&P54,日本標準産業分類!A:B,2,FALSE)),"該当の細分類がありません",VLOOKUP(J54&L54&N54&P54,日本標準産業分類!A:B,2,FALSE)))) ->  | AF52: =IF(R52="","",R52-Y52) ->  | AM52: =IF(AF52="","",IF($CM$379=0,"",IF(CM52="","",ROUND(AF52/$CM$379,3)))) ->  | BA52: =IF(AT52="","",ROUND(AF52/AT52,3-INT(LOG(AF52/AT52)))) ->  | BH52: - | BO52: =IF(OR((BH52="-"),(ISNUMBER(BH52)=FALSE)),"-",ROUND(BA52/BH52,3)) -> - | BV52: ⑫ | CM52: =IF(OR(BH52="",BH52="-"),"",AF52) -> 
AT53: (名称： | AZ53: ) | BV53: =IF(OR((BO52="-"),(ISNUMBER(BO52)=FALSE)),"-",ROUND(AM52*BO52,3)) -> -
C54: 細分類番号 | AT54: (単位： | AZ54: )
B55: 13 | C55: 工場等に係る 事業の名称 | J55: =IF(J57&L57&N57&P57="","",(IF(ISERROR(VLOOKUP(J57&L57&N57&P57,日本標準産業分類!A:B,2,FALSE)),"該当の細分類がありません",VLOOKUP(J57&L57&N57&P57,日本標準産業分類!A:B,2,FALSE)))) ->  | AF55: =IF(R55="","",R55-Y55) ->  | AM55: =IF(AF55="","",IF($CM$379=0,"",IF(CM55="","",ROUND(AF55/$CM$379,3)))) ->  | BA55: =IF(AT55="","",ROUND(AF55/AT55,3-INT(LOG(AF55/AT55)))) ->  | BH55: - | BO55: =IF(OR((BH55="-"),(ISNUMBER(BH55)=FALSE)),"-",ROUND(BA55/BH55,3)) -> - | BV55: ⑬ | CM55: =IF(OR(BH55="",BH55="-"),"",AF55) -> 
AT56: (名称： | AZ56: ) | BV56: =IF(OR((BO55="-"),(ISNUMBER(BO55)=FALSE)),"-",ROUND(AM55*BO55,3)) -> -
C57: 細分類番号 | AT57: (単位： | AZ57: )
B58: 14 | C58: 工場等に係る 事業の名称 | J58: =IF(J60&L60&N60&P60="","",(IF(ISERROR(VLOOKUP(J60&L60&N60&P60,日本標準産業分類!A:B,2,FALSE)),"該当の細分類がありません",VLOOKUP(J60&L60&N60&P60,日本標準産業分類!A:B,2,FALSE)))) ->  | AF58: =IF(R58="","",R58-Y58) ->  | AM58: =IF(AF58="","",IF($CM$379=0,"",IF(CM58="","",ROUND(AF58/$CM$379,3)))) ->  | BA58: =IF(AT58="","",ROUND(AF58/AT58,3-INT(LOG(AF58/AT58)))) ->  | BH58: - | BO58: =IF(OR((BH58="-"),(ISNUMBER(BH58)=FALSE)),"-",ROUND(BA58/BH58,3)) -> - | BV58: ⑭ | CM58: =IF(OR(BH58="",BH58="-"),"",AF58) -> 
AT59: (名称： | AZ59: ) | BV59: =IF(OR((BO58="-"),(ISNUMBER(BO58)=FALSE)),"-",ROUND(AM58*BO58,3)) -> -
C60: 細分類番号 | AT60: (単位： | AZ60: )
B61: 15 | C61: 工場等に係る 事業の名称 | J61: =IF(J63&L63&N63&P63="","",(IF(ISERROR(VLOOKUP(J63&L63&N63&P63,日本標準産業分類!A:B,2,FALSE)),"該当の細分類がありません",VLOOKUP(J63&L63&N63&P63,日本標準産業分類!A:B,2,FALSE)))) ->  | AF61: =IF(R61="","",R61-Y61) ->  | AM61: =IF(AF61="","",IF($CM$379=0,"",IF(CM61="","",ROUND(AF61/$CM$379,3)))) ->  | BA61: =IF(AT61="","",ROUND(AF61/AT61,3-INT(LOG(AF61/AT61)))) ->  | BH61: - | BO61: =IF(OR((BH61="-"),(ISNUMBER(BH61)=FALSE)),"-",ROUND(BA61/BH61,3)) -> - | BV61: ⑮ | CM61: =IF(OR(BH61="",BH61="-"),"",AF61) -> 
AT62: (名称： | AZ62: ) | BV62: =IF(OR((BO61="-"),(ISNUMBER(BO61)=FALSE)),"-",ROUND(AM61*BO61,3)) -> -
C63: 細分類番号 | AT63: (単位： | AZ63: )
B64: 16 | C64: 工場等に係る 事業の名称 | J64: =IF(J66&L66&N66&P66="","",(IF(ISERROR(VLOOKUP(J66&L66&N66&P66,日本標準産業分類!A:B,2,FALSE)),"該当の細分類がありません",VLOOKUP(J66&L66&N66&P66,日本標準産業分類!A:B,2,FALSE)))) ->  | AF64: =IF(R64="","",R64-Y64) ->  | AM64: =IF(AF64="","",IF($CM$379=0,"",IF(CM64="","",ROUND(AF64/$CM$379,3)))) ->  | BA64: =IF(AT64="","",ROUND(AF64/AT64,3-INT(LOG(AF64/AT64)))) ->  | BH64: - | BO64: =IF(OR((BH64="-"),(ISNUMBER(BH64)=FALSE)),"-",ROUND(BA64/BH64,3)) -> - | BV64: ⑯ | CM64: =IF(OR(BH64="",BH64="-"),"",AF64) -> 
AT65: (名称： | AZ65: ) | BV65: =IF(OR((BO64="-"),(ISNUMBER(BO64)=FALSE)),"-",ROUND(AM64*BO64,3)) -> -
C66: 細分類番号 | AT66: (単位： | AZ66: )
B67: 17 | C67: 工場等に係る 事業の名称 | J67: =IF(J69&L69&N69&P69="","",(IF(ISERROR(VLOOKUP(J69&L69&N69&P69,日本標準産業分類!A:B,2,FALSE)),"該当の細分類がありません",VLOOKUP(J69&L69&N69&P69,日本標準産業分類!A:B,2,FALSE)))) ->  | AF67: =IF(R67="","",R67-Y67) ->  | AM67: =IF(AF67="","",IF($CM$379=0,"",IF(CM67="","",ROUND(AF67/$CM$379,3)))) ->  | BA67: =IF(AT67="","",ROUND(AF67/AT67,3-INT(LOG(AF67/AT67)))) ->  | BH67: - | BO67: =IF(OR((BH67="-"),(ISNUMBER(BH67)=FALSE)),"-",ROUND(BA67/BH67,3)) -> - | BV67: ⑰ | CM67: =IF(OR(BH67="",BH67="-"),"",AF67) -> 
AT68: (名称： | AZ68: ) | BV68: =IF(OR((BO67="-"),(ISNUMBER(BO67)=FALSE)),"-",ROUND(AM67*BO67,3)) -> -
C69: 細分類番号 | AT69: (単位： | AZ69: )
B70: 18 | C70: 工場等に係る 事業の名称 | J70: =IF(J72&L72&N72&P72="","",(IF(ISERROR(VLOOKUP(J72&L72&N72&P72,日本標準産業分類!A:B,2,FALSE)),"該当の細分類がありません",VLOOKUP(J72&L72&N72&P72,日本標準産業分類!A:B,2,FALSE)))) ->  | AF70: =IF(R70="","",R70-Y70) ->  | AM70: =IF(AF70="","",IF($CM$379=0,"",IF(CM70="","",ROUND(AF70/$CM$379,3)))) ->  | BA70: =IF(AT70="","",ROUND(AF70/AT70,3-INT(LOG(AF70/AT70)))) ->  | BH70: - | BO70: =IF(OR((BH70="-"),(ISNUMBER(BH70)=FALSE)),"-",ROUND(BA70/BH70,3)) -> - | BV70: ⑱ | CM70: =IF(OR(BH70="",BH70="-"),"",AF70) -> 
AT71: (名称： | AZ71: ) | BV71: =IF(OR((BO70="-"),(ISNUMBER(BO70)=FALSE)),"-",ROUND(AM70*BO70,3)) -> -
C72: 細分類番号 | AT72: (単位： | AZ72: )
B73: 19 | C73: 工場等に係る 事業の名称 | J73: =IF(J75&L75&N75&P75="","",(IF(ISERROR(VLOOKUP(J75&L75&N75&P75,日本標準産業分類!A:B,2,FALSE)),"該当の細分類がありません",VLOOKUP(J75&L75&N75&P75,日本標準産業分類!A:B,2,FALSE)))) ->  | AF73: =IF(R73="","",R73-Y73) ->  | AM73: =IF(AF73="","",IF($CM$379=0,"",IF(CM73="","",ROUND(AF73/$CM$379,3)))) ->  | BA73: =IF(AT73="","",ROUND(AF73/AT73,3-INT(LOG(AF73/AT73)))) ->  | BH73: - | BO73: =IF(OR((BH73="-"),(ISNUMBER(BH73)=FALSE)),"-",ROUND(BA73/BH73,3)) -> - | BV73: ⑲ | CM73: =IF(OR(BH73="",BH73="-"),"",AF73) -> 
AT74: (名称： | AZ74: ) | BV74: =IF(OR((BO73="-"),(ISNUMBER(BO73)=FALSE)),"-",ROUND(AM73*BO73,3)) -> -
C75: 細分類番号 | AT75: (単位： | AZ75: )
B76: 20 | C76: 工場等に係る 事業の名称 | J76: =IF(J78&L78&N78&P78="","",(IF(ISERROR(VLOOKUP(J78&L78&N78&P78,日本標準産業分類!A:B,2,FALSE)),"該当の細分類がありません",VLOOKUP(J78&L78&N78&P78,日本標準産業分類!A:B,2,FALSE)))) ->  | AF76: =IF(R76="","",R76-Y76) ->  | AM76: =IF(AF76="","",IF($CM$379=0,"",IF(CM76="","",ROUND(AF76/$CM$379,3)))) ->  | BA76: =IF(AT76="","",ROUND(AF76/AT76,3-INT(LOG(AF76/AT76)))) ->  | BH76: - | BO76: =IF(OR((BH76="-"),(ISNUMBER(BH76)=FALSE)),"-",ROUND(BA76/BH76,3)) -> - | BV76: ⑳ | CM76: =IF(OR(BH76="",BH76="-"),"",AF76) -> 
AT77: (名称： | AZ77: ) | BV77: =IF(OR((BO76="-"),(ISNUMBER(BO76)=FALSE)),"-",ROUND(AM76*BO76,3)) -> -
C78: 細分類番号 | AT78: (単位： | AZ78: )
B79: 21 | C79: 工場等に係る 事業の名称 | J79: =IF(J81&L81&N81&P81="","",(IF(ISERROR(VLOOKUP(J81&L81&N81&P81,日本標準産業分類!A:B,2,FALSE)),"該当の細分類がありません",VLOOKUP(J81&L81&N81&P81,日本標準産業分類!A:B,2,FALSE)))) ->  | AF79: =IF(R79="","",R79-Y79) ->  | AM79: =IF(AF79="","",IF($CM$379=0,"",IF(CM79="","",ROUND(AF79/$CM$379,3)))) ->  | BA79: =IF(AT79="","",ROUND(AF79/AT79,3-INT(LOG(AF79/AT79)))) ->  | BH79: - | BO79: =IF(OR((BH79="-"),(ISNUMBER(BH79)=FALSE)),"-",ROUND(BA79/BH79,3)) -> - | BV79: ㉑ | CM79: =IF(OR(BH79="",BH79="-"),"",AF79) -> 
AT80: (名称： | AZ80: ) | BV80: =IF(OR((BO79="-"),(ISNUMBER(BO79)=FALSE)),"-",ROUND(AM79*BO79,3)) -> -
C81: 細分類番号 | AT81: (単位： | AZ81: )
B82: 22 | C82: 工場等に係る 事業の名称 | J82: =IF(J84&L84&N84&P84="","",(IF(ISERROR(VLOOKUP(J84&L84&N84&P84,日本標準産業分類!A:B,2,FALSE)),"該当の細分類がありません",VLOOKUP(J84&L84&N84&P84,日本標準産業分類!A:B,2,FALSE)))) ->  | AF82: =IF(R82="","",R82-Y82) ->  | AM82: =IF(AF82="","",IF($CM$379=0,"",IF(CM82="","",ROUND(AF82/$CM$379,3)))) ->  | BA82: =IF(AT82="","",ROUND(AF82/AT82,3-INT(LOG(AF82/AT82)))) ->  | BH82: - | BO82: =IF(OR((BH82="-"),(ISNUMBER(BH82)=FALSE)),"-",ROUND(BA82/BH82,3)) -> - | BV82: ㉒ | CM82: =IF(OR(BH82="",BH82="-"),"",AF82) -> 
AT83: (名称： | AZ83: ) | BV83: =IF(OR((BO82="-"),(ISNUMBER(BO82)=FALSE)),"-",ROUND(AM82*BO82,3)) -> -
C84: 細分類番号 | AT84: (単位： | AZ84: )
B85: 23 | C85: 工場等に係る 事業の名称 | J85: =IF(J87&L87&N87&P87="","",(IF(ISERROR(VLOOKUP(J87&L87&N87&P87,日本標準産業分類!A:B,2,FALSE)),"該当の細分類がありません",VLOOKUP(J87&L87&N87&P87,日本標準産業分類!A:B,2,FALSE)))) ->  | AF85: =IF(R85="","",R85-Y85) ->  | AM85: =IF(AF85="","",IF($CM$379=0,"",IF(CM85="","",ROUND(AF85/$CM$379,3)))) ->  | BA85: =IF(AT85="","",ROUND(AF85/AT85,3-INT(LOG(AF85/AT85)))) ->  | BH85: - | BO85: =IF(OR((BH85="-"),(ISNUMBER(BH85)=FALSE)),"-",ROUND(BA85/BH85,3)) -> - | BV85: ㉓ | CM85: =IF(OR(BH85="",BH85="-"),"",AF85) -> 
AT86: (名称： | AZ86: ) | BV86: =IF(OR((BO85="-"),(ISNUMBER(BO85)=FALSE)),"-",ROUND(AM85*BO85,3)) -> -
C87: 細分類番号 | AT87: (単位： | AZ87: )
B88: 24 | C88: 工場等に係る 事業の名称 | J88: =IF(J90&L90&N90&P90="","",(IF(ISERROR(VLOOKUP(J90&L90&N90&P90,日本標準産業分類!A:B,2,FALSE)),"該当の細分類がありません",VLOOKUP(J90&L90&N90&P90,日本標準産業分類!A:B,2,FALSE)))) ->  | AF88: =IF(R88="","",R88-Y88) ->  | AM88: =IF(AF88="","",IF($CM$379=0,"",IF(CM88="","",ROUND(AF88/$CM$379,3)))) ->  | BA88: =IF(AT88="","",ROUND(AF88/AT88,3-INT(LOG(AF88/AT88)))) ->  | BH88: - | BO88: =IF(OR((BH88="-"),(ISNUMBER(BH88)=FALSE)),"-",ROUND(BA88/BH88,3)) -> - | BV88: ㉔ | CM88: =IF(OR(BH88="",BH88="-"),"",AF88) -> 
AT89: (名称： | AZ89: ) | BV89: =IF(OR((BO88="-"),(ISNUMBER(BO88)=FALSE)),"-",ROUND(AM88*BO88,3)) -> -
C90: 細分類番号 | AT90: (単位： | AZ90: )
B91: 25 | C91: 工場等に係る 事業の名称 | J91: =IF(J93&L93&N93&P93="","",(IF(ISERROR(VLOOKUP(J93&L93&N93&P93,日本標準産業分類!A:B,2,FALSE)),"該当の細分類がありません",VLOOKUP(J93&L93&N93&P93,日本標準産業分類!A:B,2,FALSE)))) ->  | AF91: =IF(R91="","",R91-Y91) ->  | AM91: =IF(AF91="","",IF($CM$379=0,"",IF(CM91="","",ROUND(AF91/$CM$379,3)))) ->  | BA91: =IF(AT91="","",ROUND(AF91/AT91,3-INT(LOG(AF91/AT91)))) ->  | BH91: - | BO91: =IF(OR((BH91="-"),(ISNUMBER(BH91)=FALSE)),"-",ROUND(BA91/BH91,3)) -> - | BV91: ㉕ | CM91: =IF(OR(BH91="",BH91="-"),"",AF91) -> 
AT92: (名称： | AZ92: ) | BV92: =IF(OR((BO91="-"),(ISNUMBER(BO91)=FALSE)),"-",ROUND(AM91*BO91,3)) -> -
C93: 細分類番号 | AT93: (単位： | AZ93: )
B94: 26 | C94: 工場等に係る 事業の名称 | J94: =IF(J96&L96&N96&P96="","",(IF(ISERROR(VLOOKUP(J96&L96&N96&P96,日本標準産業分類!A:B,2,FALSE)),"該当の細分類がありません",VLOOKUP(J96&L96&N96&P96,日本標準産業分類!A:B,2,FALSE)))) ->  | AF94: =IF(R94="","",R94-Y94) ->  | AM94: =IF(AF94="","",IF($CM$379=0,"",IF(CM94="","",ROUND(AF94/$CM$379,3)))) ->  | BA94: =IF(AT94="","",ROUND(AF94/AT94,3-INT(LOG(AF94/AT94)))) ->  | BH94: - | BO94: =IF(OR((BH94="-"),(ISNUMBER(BH94)=FALSE)),"-",ROUND(BA94/BH94,3)) -> - | BV94: ㉖ | CM94: =IF(OR(BH94="",BH94="-"),"",AF94) -> 
AT95: (名称： | AZ95: ) | BV95: =IF(OR((BO94="-"),(ISNUMBER(BO94)=FALSE)),"-",ROUND(AM94*BO94,3)) -> -
C96: 細分類番号 | AT96: (単位： | AZ96: )
B97: 27 | C97: 工場等に係る 事業の名称 | J97: =IF(J99&L99&N99&P99="","",(IF(ISERROR(VLOOKUP(J99&L99&N99&P99,日本標準産業分類!A:B,2,FALSE)),"該当の細分類がありません",VLOOKUP(J99&L99&N99&P99,日本標準産業分類!A:B,2,FALSE)))) ->  | AF97: =IF(R97="","",R97-Y97) ->  | AM97: =IF(AF97="","",IF($CM$379=0,"",IF(CM97="","",ROUND(AF97/$CM$379,3)))) ->  | BA97: =IF(AT97="","",ROUND(AF97/AT97,3-INT(LOG(AF97/AT97)))) ->  | BH97: - | BO97: =IF(OR((BH97="-"),(ISNUMBER(BH97)=FALSE)),"-",ROUND(BA97/BH97,3)) -> - | BV97: ㉗ | CM97: =IF(OR(BH97="",BH97="-"),"",AF97) -> 
AT98: (名称： | AZ98: ) | BV98: =IF(OR((BO97="-"),(ISNUMBER(BO97)=FALSE)),"-",ROUND(AM97*BO97,3)) -> -
C99: 細分類番号 | AT99: (単位： | AZ99: )
B100: 28 | C100: 工場等に係る 事業の名称 | J100: =IF(J102&L102&N102&P102="","",(IF(ISERROR(VLOOKUP(J102&L102&N102&P102,日本標準産業分類!A:B,2,FALSE)),"該当の細分類がありません",VLOOKUP(J102&L102&N102&P102,日本標準産業分類!A:B,2,FALSE)))) ->  | AF100: =IF(R100="","",R100-Y100) ->  | AM100: =IF(AF100="","",IF($CM$379=0,"",IF(CM100="","",ROUND(AF100/$CM$379,3)))) ->  | BA100: =IF(AT100="","",ROUND(AF100/AT100,3-INT(LOG(AF100/AT100)))) ->  | BH100: - | BO100: =IF(OR((BH100="-"),(ISNUMBER(BH100)=FALSE)),"-",ROUND(BA100/BH100,3)) -> - | BV100: ㉘ | CM100: =IF(OR(BH100="",BH100="-"),"",AF100) -> 
AT101: (名称： | AZ101: ) | BV101: =IF(OR((BO100="-"),(ISNUMBER(BO100)=FALSE)),"-",ROUND(AM100*BO100,3)) -> -
C102: 細分類番号 | AT102: (単位： | AZ102: )
B103: 29 | C103: 工場等に係る 事業の名称 | J103: =IF(J105&L105&N105&P105="","",(IF(ISERROR(VLOOKUP(J105&L105&N105&P105,日本標準産業分類!A:B,2,FALSE)),"該当の細分類がありません",VLOOKUP(J105&L105&N105&P105,日本標準産業分類!A:B,2,FALSE)))) ->  | AF103: =IF(R103="","",R103-Y103) ->  | AM103: =IF(AF103="","",IF($CM$379=0,"",IF(CM103="","",ROUND(AF103/$CM$379,3)))) ->  | BA103: =IF(AT103="","",ROUND(AF103/AT103,3-INT(LOG(AF103/AT103)))) ->  | BH103: - | BO103: =IF(OR((BH103="-"),(ISNUMBER(BH103)=FALSE)),"-",ROUND(BA103/BH103,3)) -> - | BV103: ㉙ | CM103: =IF(OR(BH103="",BH103="-"),"",AF103) -> 
AT104: (名称： | AZ104: ) | BV104: =IF(OR((BO103="-"),(ISNUMBER(BO103)=FALSE)),"-",ROUND(AM103*BO103,3)) -> -
C105: 細分類番号 | AT105: (単位： | AZ105: )
B106: 30 | C106: 工場等に係る 事業の名称 | J106: =IF(J108&L108&N108&P108="","",(IF(ISERROR(VLOOKUP(J108&L108&N108&P108,日本標準産業分類!A:B,2,FALSE)),"該当の細分類がありません",VLOOKUP(J108&L108&N108&P108,日本標準産業分類!A:B,2,FALSE)))) ->  | AF106: =IF(R106="","",R106-Y106) ->  | AM106: =IF(AF106="","",IF($CM$379=0,"",IF(CM106="","",ROUND(AF106/$CM$379,3)))) ->  | BA106: =IF(AT106="","",ROUND(AF106/AT106,3-INT(LOG(AF106/AT106)))) ->  | BH106: - | BO106: =IF(OR((BH106="-"),(ISNUMBER(BH106)=FALSE)),"-",ROUND(BA106/BH106,3)) -> - | BV106: ㉚ | CM106: =IF(OR(BH106="",BH106="-"),"",AF106) -> 
AT107: (名称： | AZ107: ) | BV107: =IF(OR((BO106="-"),(ISNUMBER(BO106)=FALSE)),"-",ROUND(AM106*BO106,3)) -> -
C108: 細分類番号 | AT108: (単位： | AZ108: )
B109: 31 | C109: 工場等に係る 事業の名称 | J109: =IF(J111&L111&N111&P111="","",(IF(ISERROR(VLOOKUP(J111&L111&N111&P111,日本標準産業分類!A:B,2,FALSE)),"該当の細分類がありません",VLOOKUP(J111&L111&N111&P111,日本標準産業分類!A:B,2,FALSE)))) ->  | AF109: =IF(R109="","",R109-Y109) ->  | AM109: =IF(AF109="","",IF($CM$379=0,"",IF(CM109="","",ROUND(AF109/$CM$379,3)))) ->  | BA109: =IF(AT109="","",ROUND(AF109/AT109,3-INT(LOG(AF109/AT109)))) ->  | BH109: - | BO109: =IF(OR((BH109="-"),(ISNUMBER(BH109)=FALSE)),"-",ROUND(BA109/BH109,3)) -> - | BV109: ㉛ | CM109: =IF(OR(BH109="",BH109="-"),"",AF109) -> 
AT110: (名称： | AZ110: ) | BV110: =IF(OR((BO109="-"),(ISNUMBER(BO109)=FALSE)),"-",ROUND(AM109*BO109,3)) -> -
C111: 細分類番号 | AT111: (単位： | AZ111: )
B112: 32 | C112: 工場等に係る 事業の名称 | J112: =IF(J114&L114&N114&P114="","",(IF(ISERROR(VLOOKUP(J114&L114&N114&P114,日本標準産業分類!A:B,2,FALSE)),"該当の細分類がありません",VLOOKUP(J114&L114&N114&P114,日本標準産業分類!A:B,2,FALSE)))) ->  | AF112: =IF(R112="","",R112-Y112) ->  | AM112: =IF(AF112="","",IF($CM$379=0,"",IF(CM112="","",ROUND(AF112/$CM$379,3)))) ->  | BA112: =IF(AT112="","",ROUND(AF112/AT112,3-INT(LOG(AF112/AT112)))) ->  | BH112: - | BO112: =IF(OR((BH112="-"),(ISNUMBER(BH112)=FALSE)),"-",ROUND(BA112/BH112,3)) -> - | BV112: ㉜ | CM112: =IF(OR(BH112="",BH112="-"),"",AF112) -> 
AT113: (名称： | AZ113: ) | BV113: =IF(OR((BO112="-"),(ISNUMBER(BO112)=FALSE)),"-",ROUND(AM112*BO112,3)) -> -
C114: 細分類番号 | AT114: (単位： | AZ114: )
B115: 33 | C115: 工場等に係る 事業の名称 | J115: =IF(J117&L117&N117&P117="","",(IF(ISERROR(VLOOKUP(J117&L117&N117&P117,日本標準産業分類!A:B,2,FALSE)),"該当の細分類がありません",VLOOKUP(J117&L117&N117&P117,日本標準産業分類!A:B,2,FALSE)))) ->  | AF115: =IF(R115="","",R115-Y115) ->  | AM115: =IF(AF115="","",IF($CM$379=0,"",IF(CM115="","",ROUND(AF115/$CM$379,3)))) ->  | BA115: =IF(AT115="","",ROUND(AF115/AT115,3-INT(LOG(AF115/AT115)))) ->  | BH115: - | BO115: =IF(OR((BH115="-"),(ISNUMBER(BH115)=FALSE)),"-",ROUND(BA115/BH115,3)) -> - | BV115: ㉝ | CM115: =IF(OR(BH115="",BH115="-"),"",AF115) -> 
AT116: (名称： | AZ116: ) | BV116: =IF(OR((BO115="-"),(ISNUMBER(BO115)=FALSE)),"-",ROUND(AM115*BO115,3)) -> -
C117: 細分類番号 | AT117: (単位： | AZ117: )
B118: 34 | C118: 工場等に係る 事業の名称 | J118: =IF(J120&L120&N120&P120="","",(IF(ISERROR(VLOOKUP(J120&L120&N120&P120,日本標準産業分類!A:B,2,FALSE)),"該当の細分類がありません",VLOOKUP(J120&L120&N120&P120,日本標準産業分類!A:B,2,FALSE)))) ->  | AF118: =IF(R118="","",R118-Y118) ->  | AM118: =IF(AF118="","",IF($CM$379=0,"",IF(CM118="","",ROUND(AF118/$CM$379,3)))) ->  | BA118: =IF(AT118="","",ROUND(AF118/AT118,3-INT(LOG(AF118/AT118)))) ->  | BH118: - | BO118: =IF(OR((BH118="-"),(ISNUMBER(BH118)=FALSE)),"-",ROUND(BA118/BH118,3)) -> - | BV118: ㉞ | CM118: =IF(OR(BH118="",BH118="-"),"",AF118) -> 
AT119: (名称： | AZ119: ) | BV119: =IF(OR((BO118="-"),(ISNUMBER(BO118)=FALSE)),"-",ROUND(AM118*BO118,3)) -> -
C120: 細分類番号 | AT120: (単位： | AZ120: )
B121: 35 | C121: 工場等に係る 事業の名称 | J121: =IF(J123&L123&N123&P123="","",(IF(ISERROR(VLOOKUP(J123&L123&N123&P123,日本標準産業分類!A:B,2,FALSE)),"該当の細分類がありません",VLOOKUP(J123&L123&N123&P123,日本標準産業分類!A:B,2,FALSE)))) ->  | AF121: =IF(R121="","",R121-Y121) ->  | AM121: =IF(AF121="","",IF($CM$379=0,"",IF(CM121="","",ROUND(AF121/$CM$379,3)))) ->  | BA121: =IF(AT121="","",ROUND(AF121/AT121,3-INT(LOG(AF121/AT121)))) ->  | BH121: - | BO121: =IF(OR((BH121="-"),(ISNUMBER(BH121)=FALSE)),"-",ROUND(BA121/BH121,3)) -> - | BV121: ㉟ | CM121: =IF(OR(BH121="",BH121="-"),"",AF121) -> 
AT122: (名称： | AZ122: ) | BV122: =IF(OR((BO121="-"),(ISNUMBER(BO121)=FALSE)),"-",ROUND(AM121*BO121,3)) -> -
C123: 細分類番号 | AT123: (単位： | AZ123: )
B124: 36 | C124: 工場等に係る 事業の名称 | J124: =IF(J126&L126&N126&P126="","",(IF(ISERROR(VLOOKUP(J126&L126&N126&P126,日本標準産業分類!A:B,2,FALSE)),"該当の細分類がありません",VLOOKUP(J126&L126&N126&P126,日本標準産業分類!A:B,2,FALSE)))) ->  | AF124: =IF(R124="","",R124-Y124) ->  | AM124: =IF(AF124="","",IF($CM$379=0,"",IF(CM124="","",ROUND(AF124/$CM$379,3)))) ->  | BA124: =IF(AT124="","",ROUND(AF124/AT124,3-INT(LOG(AF124/AT124)))) ->  | BH124: - | BO124: =IF(OR((BH124="-"),(ISNUMBER(BH124)=FALSE)),"-",ROUND(BA124/BH124,3)) -> - | BV124: ㊱ | CM124: =IF(OR(BH124="",BH124="-"),"",AF124) -> 
AT125: (名称： | AZ125: ) | BV125: =IF(OR((BO124="-"),(ISNUMBER(BO124)=FALSE)),"-",ROUND(AM124*BO124,3)) -> -
C126: 細分類番号 | AT126: (単位： | AZ126: )
B127: 37 | C127: 工場等に係る 事業の名称 | J127: =IF(J129&L129&N129&P129="","",(IF(ISERROR(VLOOKUP(J129&L129&N129&P129,日本標準産業分類!A:B,2,FALSE)),"該当の細分類がありません",VLOOKUP(J129&L129&N129&P129,日本標準産業分類!A:B,2,FALSE)))) ->  | AF127: =IF(R127="","",R127-Y127) ->  | AM127: =IF(AF127="","",IF($CM$379=0,"",IF(CM127="","",ROUND(AF127/$CM$379,3)))) ->  | BA127: =IF(AT127="","",ROUND(AF127/AT127,3-INT(LOG(AF127/AT127)))) ->  | BH127: - | BO127: =IF(OR((BH127="-"),(ISNUMBER(BH127)=FALSE)),"-",ROUND(BA127/BH127,3)) -> - | BV127: ㊲ | CM127: =IF(OR(BH127="",BH127="-"),"",AF127) -> 
AT128: (名称： | AZ128: ) | BV128: =IF(OR((BO127="-"),(ISNUMBER(BO127)=FALSE)),"-",ROUND(AM127*BO127,3)) -> -
C129: 細分類番号 | AT129: (単位： | AZ129: )
B130: 38 | C130: 工場等に係る 事業の名称 | J130: =IF(J132&L132&N132&P132="","",(IF(ISERROR(VLOOKUP(J132&L132&N132&P132,日本標準産業分類!A:B,2,FALSE)),"該当の細分類がありません",VLOOKUP(J132&L132&N132&P132,日本標準産業分類!A:B,2,FALSE)))) ->  | AF130: =IF(R130="","",R130-Y130) ->  | AM130: =IF(AF130="","",IF($CM$379=0,"",IF(CM130="","",ROUND(AF130/$CM$379,3)))) ->  | BA130: =IF(AT130="","",ROUND(AF130/AT130,3-INT(LOG(AF130/AT130)))) ->  | BH130: - | BO130: =IF(OR((BH130="-"),(ISNUMBER(BH130)=FALSE)),"-",ROUND(BA130/BH130,3)) -> - | BV130: ㊳ | CM130: =IF(OR(BH130="",BH130="-"),"",AF130) -> 
AT131: (名称： | AZ131: ) | BV131: =IF(OR((BO130="-"),(ISNUMBER(BO130)=FALSE)),"-",ROUND(AM130*BO130,3)) -> -
C132: 細分類番号 | AT132: (単位： | AZ132: )
B133: 39 | C133: 工場等に係る 事業の名称 | J133: =IF(J135&L135&N135&P135="","",(IF(ISERROR(VLOOKUP(J135&L135&N135&P135,日本標準産業分類!A:B,2,FALSE)),"該当の細分類がありません",VLOOKUP(J135&L135&N135&P135,日本標準産業分類!A:B,2,FALSE)))) ->  | AF133: =IF(R133="","",R133-Y133) ->  | AM133: =IF(AF133="","",IF($CM$379=0,"",IF(CM133="","",ROUND(AF133/$CM$379,3)))) ->  | BA133: =IF(AT133="","",ROUND(AF133/AT133,3-INT(LOG(AF133/AT133)))) ->  | BH133: - | BO133: =IF(OR((BH133="-"),(ISNUMBER(BH133)=FALSE)),"-",ROUND(BA133/BH133,3)) -> - | BV133: ㊴ | CM133: =IF(OR(BH133="",BH133="-"),"",AF133) -> 
AT134: (名称： | AZ134: ) | BV134: =IF(OR((BO133="-"),(ISNUMBER(BO133)=FALSE)),"-",ROUND(AM133*BO133,3)) -> -
C135: 細分類番号 | AT135: (単位： | AZ135: )
B136: 40 | C136: 工場等に係る 事業の名称 | J136: =IF(J138&L138&N138&P138="","",(IF(ISERROR(VLOOKUP(J138&L138&N138&P138,日本標準産業分類!A:B,2,FALSE)),"該当の細分類がありません",VLOOKUP(J138&L138&N138&P138,日本標準産業分類!A:B,2,FALSE)))) ->  | AF136: =IF(R136="","",R136-Y136) ->  | AM136: =IF(AF136="","",IF($CM$379=0,"",IF(CM136="","",ROUND(AF136/$CM$379,3)))) ->  | BA136: =IF(AT136="","",ROUND(AF136/AT136,3-INT(LOG(AF136/AT136)))) ->  | BH136: - | BO136: =IF(OR((BH136="-"),(ISNUMBER(BH136)=FALSE)),"-",ROUND(BA136/BH136,3)) -> - | BV136: ㊵ | CM136: =IF(OR(BH136="",BH136="-"),"",AF136) -> 
AT137: (名称： | AZ137: ) | BV137: =IF(OR((BO136="-"),(ISNUMBER(BO136)=FALSE)),"-",ROUND(AM136*BO136,3)) -> -
C138: 細分類番号 | AT138: (単位： | AZ138: )
B139: 41 | C139: 工場等に係る 事業の名称 | J139: =IF(J141&L141&N141&P141="","",(IF(ISERROR(VLOOKUP(J141&L141&N141&P141,日本標準産業分類!A:B,2,FALSE)),"該当の細分類がありません",VLOOKUP(J141&L141&N141&P141,日本標準産業分類!A:B,2,FALSE)))) ->  | AF139: =IF(R139="","",R139-Y139) ->  | AM139: =IF(AF139="","",IF($CM$379=0,"",IF(CM139="","",ROUND(AF139/$CM$379,3)))) ->  | BA139: =IF(AT139="","",ROUND(AF139/AT139,3-INT(LOG(AF139/AT139)))) ->  | BH139: - | BO139: =IF(OR((BH139="-"),(ISNUMBER(BH139)=FALSE)),"-",ROUND(BA139/BH139,3)) -> - | BV139: ㊶ | CM139: =IF(OR(BH139="",BH139="-"),"",AF139) -> 
AT140: (名称： | AZ140: ) | BV140: =IF(OR((BO139="-"),(ISNUMBER(BO139)=FALSE)),"-",ROUND(AM139*BO139,3)) -> -
C141: 細分類番号 | AT141: (単位： | AZ141: )
B142: 42 | C142: 工場等に係る 事業の名称 | J142: =IF(J144&L144&N144&P144="","",(IF(ISERROR(VLOOKUP(J144&L144&N144&P144,日本標準産業分類!A:B,2,FALSE)),"該当の細分類がありません",VLOOKUP(J144&L144&N144&P144,日本標準産業分類!A:B,2,FALSE)))) ->  | AF142: =IF(R142="","",R142-Y142) ->  | AM142: =IF(AF142="","",IF($CM$379=0,"",IF(CM142="","",ROUND(AF142/$CM$379,3)))) ->  | BA142: =IF(AT142="","",ROUND(AF142/AT142,3-INT(LOG(AF142/AT142)))) ->  | BH142: - | BO142: =IF(OR((BH142="-"),(ISNUMBER(BH142)=FALSE)),"-",ROUND(BA142/BH142,3)) -> - | BV142: ㊷ | CM142: =IF(OR(BH142="",BH142="-"),"",AF142) -> 
AT143: (名称： | AZ143: ) | BV143: =IF(OR((BO142="-"),(ISNUMBER(BO142)=FALSE)),"-",ROUND(AM142*BO142,3)) -> -
C144: 細分類番号 | AT144: (単位： | AZ144: )
B145: 43 | C145: 工場等に係る 事業の名称 | J145: =IF(J147&L147&N147&P147="","",(IF(ISERROR(VLOOKUP(J147&L147&N147&P147,日本標準産業分類!A:B,2,FALSE)),"該当の細分類がありません",VLOOKUP(J147&L147&N147&P147,日本標準産業分類!A:B,2,FALSE)))) ->  | AF145: =IF(R145="","",R145-Y145) ->  | AM145: =IF(AF145="","",IF($CM$379=0,"",IF(CM145="","",ROUND(AF145/$CM$379,3)))) ->  | BA145: =IF(AT145="","",ROUND(AF145/AT145,3-INT(LOG(AF145/AT145)))) ->  | BH145: - | BO145: =IF(OR((BH145="-"),(ISNUMBER(BH145)=FALSE)),"-",ROUND(BA145/BH145,3)) -> - | BV145: ㊸ | CM145: =IF(OR(BH145="",BH145="-"),"",AF145) -> 
AT146: (名称： | AZ146: ) | BV146: =IF(OR((BO145="-"),(ISNUMBER(BO145)=FALSE)),"-",ROUND(AM145*BO145,3)) -> -
C147: 細分類番号 | AT147: (単位： | AZ147: )
B148: 44 | C148: 工場等に係る 事業の名称 | J148: =IF(J150&L150&N150&P150="","",(IF(ISERROR(VLOOKUP(J150&L150&N150&P150,日本標準産業分類!A:B,2,FALSE)),"該当の細分類がありません",VLOOKUP(J150&L150&N150&P150,日本標準産業分類!A:B,2,FALSE)))) ->  | AF148: =IF(R148="","",R148-Y148) ->  | AM148: =IF(AF148="","",IF($CM$379=0,"",IF(CM148="","",ROUND(AF148/$CM$379,3)))) ->  | BA148: =IF(AT148="","",ROUND(AF148/AT148,3-INT(LOG(AF148/AT148)))) ->  | BH148: - | BO148: =IF(OR((BH148="-"),(ISNUMBER(BH148)=FALSE)),"-",ROUND(BA148/BH148,3)) -> - | BV148: ㊹ | CM148: =IF(OR(BH148="",BH148="-"),"",AF148) -> 
AT149: (名称： | AZ149: ) | BV149: =IF(OR((BO148="-"),(ISNUMBER(BO148)=FALSE)),"-",ROUND(AM148*BO148,3)) -> -
C150: 細分類番号 | AT150: (単位： | AZ150: )
B151: 45 | C151: 工場等に係る 事業の名称 | J151: =IF(J153&L153&N153&P153="","",(IF(ISERROR(VLOOKUP(J153&L153&N153&P153,日本標準産業分類!A:B,2,FALSE)),"該当の細分類がありません",VLOOKUP(J153&L153&N153&P153,日本標準産業分類!A:B,2,FALSE)))) ->  | AF151: =IF(R151="","",R151-Y151) ->  | AM151: =IF(AF151="","",IF($CM$379=0,"",IF(CM151="","",ROUND(AF151/$CM$379,3)))) ->  | BA151: =IF(AT151="","",ROUND(AF151/AT151,3-INT(LOG(AF151/AT151)))) ->  | BH151: - | BO151: =IF(OR((BH151="-"),(ISNUMBER(BH151)=FALSE)),"-",ROUND(BA151/BH151,3)) -> - | BV151: ㊺ | CM151: =IF(OR(BH151="",BH151="-"),"",AF151) -> 
AT152: (名称： | AZ152: ) | BV152: =IF(OR((BO151="-"),(ISNUMBER(BO151)=FALSE)),"-",ROUND(AM151*BO151,3)) -> -
C153: 細分類番号 | AT153: (単位： | AZ153: )
B154: 46 | C154: 工場等に係る 事業の名称 | J154: =IF(J156&L156&N156&P156="","",(IF(ISERROR(VLOOKUP(J156&L156&N156&P156,日本標準産業分類!A:B,2,FALSE)),"該当の細分類がありません",VLOOKUP(J156&L156&N156&P156,日本標準産業分類!A:B,2,FALSE)))) ->  | AF154: =IF(R154="","",R154-Y154) ->  | AM154: =IF(AF154="","",IF($CM$379=0,"",IF(CM154="","",ROUND(AF154/$CM$379,3)))) ->  | BA154: =IF(AT154="","",ROUND(AF154/AT154,3-INT(LOG(AF154/AT154)))) ->  | BH154: - | BO154: =IF(OR((BH154="-"),(ISNUMBER(BH154)=FALSE)),"-",ROUND(BA154/BH154,3)) -> - | BV154: ㊻ | CM154: =IF(OR(BH154="",BH154="-"),"",AF154) -> 
AT155: (名称： | AZ155: ) | BV155: =IF(OR((BO154="-"),(ISNUMBER(BO154)=FALSE)),"-",ROUND(AM154*BO154,3)) -> -
C156: 細分類番号 | AT156: (単位： | AZ156: )
B157: 47 | C157: 工場等に係る 事業の名称 | J157: =IF(J159&L159&N159&P159="","",(IF(ISERROR(VLOOKUP(J159&L159&N159&P159,日本標準産業分類!A:B,2,FALSE)),"該当の細分類がありません",VLOOKUP(J159&L159&N159&P159,日本標準産業分類!A:B,2,FALSE)))) ->  | AF157: =IF(R157="","",R157-Y157) ->  | AM157: =IF(AF157="","",IF($CM$379=0,"",IF(CM157="","",ROUND(AF157/$CM$379,3)))) ->  | BA157: =IF(AT157="","",ROUND(AF157/AT157,3-INT(LOG(AF157/AT157)))) ->  | BH157: - | BO157: =IF(OR((BH157="-"),(ISNUMBER(BH157)=FALSE)),"-",ROUND(BA157/BH157,3)) -> - | BV157: ㊼ | CM157: =IF(OR(BH157="",BH157="-"),"",AF157) -> 
AT158: (名称： | AZ158: ) | BV158: =IF(OR((BO157="-"),(ISNUMBER(BO157)=FALSE)),"-",ROUND(AM157*BO157,3)) -> -
C159: 細分類番号 | AT159: (単位： | AZ159: )
B160: 48 | C160: 工場等に係る 事業の名称 | J160: =IF(J162&L162&N162&P162="","",(IF(ISERROR(VLOOKUP(J162&L162&N162&P162,日本標準産業分類!A:B,2,FALSE)),"該当の細分類がありません",VLOOKUP(J162&L162&N162&P162,日本標準産業分類!A:B,2,FALSE)))) ->  | AF160: =IF(R160="","",R160-Y160) ->  | AM160: =IF(AF160="","",IF($CM$379=0,"",IF(CM160="","",ROUND(AF160/$CM$379,3)))) ->  | BA160: =IF(AT160="","",ROUND(AF160/AT160,3-INT(LOG(AF160/AT160)))) ->  | BH160: - | BO160: =IF(OR((BH160="-"),(ISNUMBER(BH160)=FALSE)),"-",ROUND(BA160/BH160,3)) -> - | BV160: ㊽ | CM160: =IF(OR(BH160="",BH160="-"),"",AF160) -> 
AT161: (名称： | AZ161: ) | BV161: =IF(OR((BO160="-"),(ISNUMBER(BO160)=FALSE)),"-",ROUND(AM160*BO160,3)) -> -
C162: 細分類番号 | AT162: (単位： | AZ162: )
B163: 49 | C163: 工場等に係る 事業の名称 | J163: =IF(J165&L165&N165&P165="","",(IF(ISERROR(VLOOKUP(J165&L165&N165&P165,日本標準産業分類!A:B,2,FALSE)),"該当の細分類がありません",VLOOKUP(J165&L165&N165&P165,日本標準産業分類!A:B,2,FALSE)))) ->  | AF163: =IF(R163="","",R163-Y163) ->  | AM163: =IF(AF163="","",IF($CM$379=0,"",IF(CM163="","",ROUND(AF163/$CM$379,3)))) ->  | BA163: =IF(AT163="","",ROUND(AF163/AT163,3-INT(LOG(AF163/AT163)))) ->  | BH163: - | BO163: =IF(OR((BH163="-"),(ISNUMBER(BH163)=FALSE)),"-",ROUND(BA163/BH163,3)) -> - | BV163: ㊾ | CM163: =IF(OR(BH163="",BH163="-"),"",AF163) -> 
AT164: (名称： | AZ164: ) | BV164: =IF(OR((BO163="-"),(ISNUMBER(BO163)=FALSE)),"-",ROUND(AM163*BO163,3)) -> -
C165: 細分類番号 | AT165: (単位： | AZ165: )
B166: 50 | C166: 工場等に係る 事業の名称 | J166: =IF(J168&L168&N168&P168="","",(IF(ISERROR(VLOOKUP(J168&L168&N168&P168,日本標準産業分類!A:B,2,FALSE)),"該当の細分類がありません",VLOOKUP(J168&L168&N168&P168,日本標準産業分類!A:B,2,FALSE)))) ->  | AF166: =IF(R166="","",R166-Y166) ->  | AM166: =IF(AF166="","",IF($CM$379=0,"",IF(CM166="","",ROUND(AF166/$CM$379,3)))) ->  | BA166: =IF(AT166="","",ROUND(AF166/AT166,3-INT(LOG(AF166/AT166)))) ->  | BH166: - | BO166: =IF(OR((BH166="-"),(ISNUMBER(BH166)=FALSE)),"-",ROUND(BA166/BH166,3)) -> - | BV166: ㊿ | CM166: =IF(OR(BH166="",BH166="-"),"",AF166) -> 
AT167: (名称： | AZ167: ) | BV167: =IF(OR((BO166="-"),(ISNUMBER(BO166)=FALSE)),"-",ROUND(AM166*BO166,3)) -> -
C168: 細分類番号 | AT168: (単位： | AZ168: )
B169: 51 | C169: 工場等に係る 事業の名称 | J169: =IF(J171&L171&N171&P171="","",(IF(ISERROR(VLOOKUP(J171&L171&N171&P171,日本標準産業分類!A:B,2,FALSE)),"該当の細分類がありません",VLOOKUP(J171&L171&N171&P171,日本標準産業分類!A:B,2,FALSE)))) ->  | AF169: =IF(R169="","",R169-Y169) ->  | AM169: =IF(AF169="","",IF($CM$379=0,"",IF(CM169="","",ROUND(AF169/$CM$379,3)))) ->  | BA169: =IF(AT169="","",ROUND(AF169/AT169,3-INT(LOG(AF169/AT169)))) ->  | BH169: - | BO169: =IF(OR((BH169="-"),(ISNUMBER(BH169)=FALSE)),"-",ROUND(BA169/BH169,3)) -> - | CM169: =IF(OR(BH169="",BH169="-"),"",AF169) -> 
AT170: (名称： | AZ170: ) | BV170: =IF(OR((BO169="-"),(ISNUMBER(BO169)=FALSE)),"-",ROUND(AM169*BO169,3)) -> -
C171: 細分類番号 | AT171: (単位： | AZ171: )
B172: 52 | C172: 工場等に係る 事業の名称 | J172: =IF(J174&L174&N174&P174="","",(IF(ISERROR(VLOOKUP(J174&L174&N174&P174,日本標準産業分類!A:B,2,FALSE)),"該当の細分類がありません",VLOOKUP(J174&L174&N174&P174,日本標準産業分類!A:B,2,FALSE)))) ->  | AF172: =IF(R172="","",R172-Y172) ->  | AM172: =IF(AF172="","",IF($CM$379=0,"",IF(CM172="","",ROUND(AF172/$CM$379,3)))) ->  | BA172: =IF(AT172="","",ROUND(AF172/AT172,3-INT(LOG(AF172/AT172)))) ->  | BH172: - | BO172: =IF(OR((BH172="-"),(ISNUMBER(BH172)=FALSE)),"-",ROUND(BA172/BH172,3)) -> - | CM172: =IF(OR(BH172="",BH172="-"),"",AF172) -> 
AT173: (名称： | AZ173: ) | BV173: =IF(OR((BO172="-"),(ISNUMBER(BO172)=FALSE)),"-",ROUND(AM172*BO172,3)) -> -
C174: 細分類番号 | AT174: (単位： | AZ174: )
B175: 53 | C175: 工場等に係る 事業の名称 | J175: =IF(J177&L177&N177&P177="","",(IF(ISERROR(VLOOKUP(J177&L177&N177&P177,日本標準産業分類!A:B,2,FALSE)),"該当の細分類がありません",VLOOKUP(J177&L177&N177&P177,日本標準産業分類!A:B,2,FALSE)))) ->  | AF175: =IF(R175="","",R175-Y175) ->  | AM175: =IF(AF175="","",IF($CM$379=0,"",IF(CM175="","",ROUND(AF175/$CM$379,3)))) ->  | BA175: =IF(AT175="","",ROUND(AF175/AT175,3-INT(LOG(AF175/AT175)))) ->  | BH175: - | BO175: =IF(OR((BH175="-"),(ISNUMBER(BH175)=FALSE)),"-",ROUND(BA175/BH175,3)) -> - | CM175: =IF(OR(BH175="",BH175="-"),"",AF175) -> 
AT176: (名称： | AZ176: ) | BV176: =IF(OR((BO175="-"),(ISNUMBER(BO175)=FALSE)),"-",ROUND(AM175*BO175,3)) -> -
C177: 細分類番号 | AT177: (単位： | AZ177: )
B178: 54 | C178: 工場等に係る 事業の名称 | J178: =IF(J180&L180&N180&P180="","",(IF(ISERROR(VLOOKUP(J180&L180&N180&P180,日本標準産業分類!A:B,2,FALSE)),"該当の細分類がありません",VLOOKUP(J180&L180&N180&P180,日本標準産業分類!A:B,2,FALSE)))) ->  | AF178: =IF(R178="","",R178-Y178) ->  | AM178: =IF(AF178="","",IF($CM$379=0,"",IF(CM178="","",ROUND(AF178/$CM$379,3)))) ->  | BA178: =IF(AT178="","",ROUND(AF178/AT178,3-INT(LOG(AF178/AT178)))) ->  | BH178: - | BO178: =IF(OR((BH178="-"),(ISNUMBER(BH178)=FALSE)),"-",ROUND(BA178/BH178,3)) -> - | CM178: =IF(OR(BH178="",BH178="-"),"",AF178) -> 
AT179: (名称： | AZ179: ) | BV179: =IF(OR((BO178="-"),(ISNUMBER(BO178)=FALSE)),"-",ROUND(AM178*BO178,3)) -> -
C180: 細分類番号 | AT180: (単位： | AZ180: )
B181: 55 | C181: 工場等に係る 事業の名称 | J181: =IF(J183&L183&N183&P183="","",(IF(ISERROR(VLOOKUP(J183&L183&N183&P183,日本標準産業分類!A:B,2,FALSE)),"該当の細分類がありません",VLOOKUP(J183&L183&N183&P183,日本標準産業分類!A:B,2,FALSE)))) ->  | AF181: =IF(R181="","",R181-Y181) ->  | AM181: =IF(AF181="","",IF($CM$379=0,"",IF(CM181="","",ROUND(AF181/$CM$379,3)))) ->  | BA181: =IF(AT181="","",ROUND(AF181/AT181,3-INT(LOG(AF181/AT181)))) ->  | BH181: - | BO181: =IF(OR((BH181="-"),(ISNUMBER(BH181)=FALSE)),"-",ROUND(BA181/BH181,3)) -> - | CM181: =IF(OR(BH181="",BH181="-"),"",AF181) -> 
AT182: (名称： | AZ182: ) | BV182: =IF(OR((BO181="-"),(ISNUMBER(BO181)=FALSE)),"-",ROUND(AM181*BO181,3)) -> -
C183: 細分類番号 | AT183: (単位： | AZ183: )
B184: 56 | C184: 工場等に係る 事業の名称 | J184: =IF(J186&L186&N186&P186="","",(IF(ISERROR(VLOOKUP(J186&L186&N186&P186,日本標準産業分類!A:B,2,FALSE)),"該当の細分類がありません",VLOOKUP(J186&L186&N186&P186,日本標準産業分類!A:B,2,FALSE)))) ->  | AF184: =IF(R184="","",R184-Y184) ->  | AM184: =IF(AF184="","",IF($CM$379=0,"",IF(CM184="","",ROUND(AF184/$CM$379,3)))) ->  | BA184: =IF(AT184="","",ROUND(AF184/AT184,3-INT(LOG(AF184/AT184)))) ->  | BH184: - | BO184: =IF(OR((BH184="-"),(ISNUMBER(BH184)=FALSE)),"-",ROUND(BA184/BH184,3)) -> - | CM184: =IF(OR(BH184="",BH184="-"),"",AF184) -> 
AT185: (名称： | AZ185: ) | BV185: =IF(OR((BO184="-"),(ISNUMBER(BO184)=FALSE)),"-",ROUND(AM184*BO184,3)) -> -
C186: 細分類番号 | AT186: (単位： | AZ186: )
B187: 57 | C187: 工場等に係る 事業の名称 | J187: =IF(J189&L189&N189&P189="","",(IF(ISERROR(VLOOKUP(J189&L189&N189&P189,日本標準産業分類!A:B,2,FALSE)),"該当の細分類がありません",VLOOKUP(J189&L189&N189&P189,日本標準産業分類!A:B,2,FALSE)))) ->  | AF187: =IF(R187="","",R187-Y187) ->  | AM187: =IF(AF187="","",IF($CM$379=0,"",IF(CM187="","",ROUND(AF187/$CM$379,3)))) ->  | BA187: =IF(AT187="","",ROUND(AF187/AT187,3-INT(LOG(AF187/AT187)))) ->  | BH187: - | BO187: =IF(OR((BH187="-"),(ISNUMBER(BH187)=FALSE)),"-",ROUND(BA187/BH187,3)) -> - | CM187: =IF(OR(BH187="",BH187="-"),"",AF187) -> 
AT188: (名称： | AZ188: ) | BV188: =IF(OR((BO187="-"),(ISNUMBER(BO187)=FALSE)),"-",ROUND(AM187*BO187,3)) -> -
C189: 細分類番号 | AT189: (単位： | AZ189: )
B190: 58 | C190: 工場等に係る 事業の名称 | J190: =IF(J192&L192&N192&P192="","",(IF(ISERROR(VLOOKUP(J192&L192&N192&P192,日本標準産業分類!A:B,2,FALSE)),"該当の細分類がありません",VLOOKUP(J192&L192&N192&P192,日本標準産業分類!A:B,2,FALSE)))) ->  | AF190: =IF(R190="","",R190-Y190) ->  | AM190: =IF(AF190="","",IF($CM$379=0,"",IF(CM190="","",ROUND(AF190/$CM$379,3)))) ->  | BA190: =IF(AT190="","",ROUND(AF190/AT190,3-INT(LOG(AF190/AT190)))) ->  | BH190: - | BO190: =IF(OR((BH190="-"),(ISNUMBER(BH190)=FALSE)),"-",ROUND(BA190/BH190,3)) -> - | CM190: =IF(OR(BH190="",BH190="-"),"",AF190) -> 
AT191: (名称： | AZ191: ) | BV191: =IF(OR((BO190="-"),(ISNUMBER(BO190)=FALSE)),"-",ROUND(AM190*BO190,3)) -> -
C192: 細分類番号 | AT192: (単位： | AZ192: )
B193: 59 | C193: 工場等に係る 事業の名称 | J193: =IF(J195&L195&N195&P195="","",(IF(ISERROR(VLOOKUP(J195&L195&N195&P195,日本標準産業分類!A:B,2,FALSE)),"該当の細分類がありません",VLOOKUP(J195&L195&N195&P195,日本標準産業分類!A:B,2,FALSE)))) ->  | AF193: =IF(R193="","",R193-Y193) ->  | AM193: =IF(AF193="","",IF($CM$379=0,"",IF(CM193="","",ROUND(AF193/$CM$379,3)))) ->  | BA193: =IF(AT193="","",ROUND(AF193/AT193,3-INT(LOG(AF193/AT193)))) ->  | BH193: - | BO193: =IF(OR((BH193="-"),(ISNUMBER(BH193)=FALSE)),"-",ROUND(BA193/BH193,3)) -> - | CM193: =IF(OR(BH193="",BH193="-"),"",AF193) -> 
AT194: (名称： | AZ194: ) | BV194: =IF(OR((BO193="-"),(ISNUMBER(BO193)=FALSE)),"-",ROUND(AM193*BO193,3)) -> -
C195: 細分類番号 | AT195: (単位： | AZ195: )
B196: 60 | C196: 工場等に係る 事業の名称 | J196: =IF(J198&L198&N198&P198="","",(IF(ISERROR(VLOOKUP(J198&L198&N198&P198,日本標準産業分類!A:B,2,FALSE)),"該当の細分類がありません",VLOOKUP(J198&L198&N198&P198,日本標準産業分類!A:B,2,FALSE)))) ->  | AF196: =IF(R196="","",R196-Y196) ->  | AM196: =IF(AF196="","",IF($CM$379=0,"",IF(CM196="","",ROUND(AF196/$CM$379,3)))) ->  | BA196: =IF(AT196="","",ROUND(AF196/AT196,3-INT(LOG(AF196/AT196)))) ->  | BH196: - | BO196: =IF(OR((BH196="-"),(ISNUMBER(BH196)=FALSE)),"-",ROUND(BA196/BH196,3)) -> - | CM196: =IF(OR(BH196="",BH196="-"),"",AF196) -> 
AT197: (名称： | AZ197: ) | BV197: =IF(OR((BO196="-"),(ISNUMBER(BO196)=FALSE)),"-",ROUND(AM196*BO196,3)) -> -
C198: 細分類番号 | AT198: (単位： | AZ198: )
B199: 61 | C199: 工場等に係る 事業の名称 | J199: =IF(J201&L201&N201&P201="","",(IF(ISERROR(VLOOKUP(J201&L201&N201&P201,日本標準産業分類!A:B,2,FALSE)),"該当の細分類がありません",VLOOKUP(J201&L201&N201&P201,日本標準産業分類!A:B,2,FALSE)))) ->  | AF199: =IF(R199="","",R199-Y199) ->  | AM199: =IF(AF199="","",IF($CM$379=0,"",IF(CM199="","",ROUND(AF199/$CM$379,3)))) ->  | BA199: =IF(AT199="","",ROUND(AF199/AT199,3-INT(LOG(AF199/AT199)))) ->  | BH199: - | BO199: =IF(OR((BH199="-"),(ISNUMBER(BH199)=FALSE)),"-",ROUND(BA199/BH199,3)) -> - | CM199: =IF(OR(BH199="",BH199="-"),"",AF199) -> 
AT200: (名称： | AZ200: ) | BV200: =IF(OR((BO199="-"),(ISNUMBER(BO199)=FALSE)),"-",ROUND(AM199*BO199,3)) -> -
C201: 細分類番号 | AT201: (単位： | AZ201: )
B202: 62 | C202: 工場等に係る 事業の名称 | J202: =IF(J204&L204&N204&P204="","",(IF(ISERROR(VLOOKUP(J204&L204&N204&P204,日本標準産業分類!A:B,2,FALSE)),"該当の細分類がありません",VLOOKUP(J204&L204&N204&P204,日本標準産業分類!A:B,2,FALSE)))) ->  | AF202: =IF(R202="","",R202-Y202) ->  | AM202: =IF(AF202="","",IF($CM$379=0,"",IF(CM202="","",ROUND(AF202/$CM$379,3)))) ->  | BA202: =IF(AT202="","",ROUND(AF202/AT202,3-INT(LOG(AF202/AT202)))) ->  | BH202: - | BO202: =IF(OR((BH202="-"),(ISNUMBER(BH202)=FALSE)),"-",ROUND(BA202/BH202,3)) -> - | CM202: =IF(OR(BH202="",BH202="-"),"",AF202) -> 
AT203: (名称： | AZ203: ) | BV203: =IF(OR((BO202="-"),(ISNUMBER(BO202)=FALSE)),"-",ROUND(AM202*BO202,3)) -> -
C204: 細分類番号 | AT204: (単位： | AZ204: )
B205: 63 | C205: 工場等に係る 事業の名称 | J205: =IF(J207&L207&N207&P207="","",(IF(ISERROR(VLOOKUP(J207&L207&N207&P207,日本標準産業分類!A:B,2,FALSE)),"該当の細分類がありません",VLOOKUP(J207&L207&N207&P207,日本標準産業分類!A:B,2,FALSE)))) ->  | AF205: =IF(R205="","",R205-Y205) ->  | AM205: =IF(AF205="","",IF($CM$379=0,"",IF(CM205="","",ROUND(AF205/$CM$379,3)))) ->  | BA205: =IF(AT205="","",ROUND(AF205/AT205,3-INT(LOG(AF205/AT205)))) ->  | BH205: - | BO205: =IF(OR((BH205="-"),(ISNUMBER(BH205)=FALSE)),"-",ROUND(BA205/BH205,3)) -> - | CM205: =IF(OR(BH205="",BH205="-"),"",AF205) -> 
AT206: (名称： | AZ206: ) | BV206: =IF(OR((BO205="-"),(ISNUMBER(BO205)=FALSE)),"-",ROUND(AM205*BO205,3)) -> -
C207: 細分類番号 | AT207: (単位： | AZ207: )
B208: 64 | C208: 工場等に係る 事業の名称 | J208: =IF(J210&L210&N210&P210="","",(IF(ISERROR(VLOOKUP(J210&L210&N210&P210,日本標準産業分類!A:B,2,FALSE)),"該当の細分類がありません",VLOOKUP(J210&L210&N210&P210,日本標準産業分類!A:B,2,FALSE)))) ->  | AF208: =IF(R208="","",R208-Y208) ->  | AM208: =IF(AF208="","",IF($CM$379=0,"",IF(CM208="","",ROUND(AF208/$CM$379,3)))) ->  | BA208: =IF(AT208="","",ROUND(AF208/AT208,3-INT(LOG(AF208/AT208)))) ->  | BH208: - | BO208: =IF(OR((BH208="-"),(ISNUMBER(BH208)=FALSE)),"-",ROUND(BA208/BH208,3)) -> - | CM208: =IF(OR(BH208="",BH208="-"),"",AF208) -> 
... 562 more rows

Sheet 特定-第４表～
B1: 特定－第４表 事業者の過去５年度間のエネルギーの使用に係る原単位及び電気需要平準化評価原単位の変化状況
B4: １ エネルギーの使用に係る原単位
M6: =IF(AU6="","","平成"&(AU6-4)) -> 平成23 | Q6: 年度 | U6: =IF(AU6="","","平成"&(AU6-3)) -> 平成24 | Y6: 年度 | AB6: =IF(AU6="","","平成"&(AU6-2)) -> 平成25 | AG6: 年度 | AJ6: =IF(AU6="","","平成"&(AU6-1)) -> 平成26 | AO6: 年度 | AR6: 平成 | AU6: =IF('特定-第１・２表'!BK152=0,"",('特定-第１・２表'!BK152)) -> 27 | AW6: 年度 | AZ6: ５年度間 平均原単位変化
B7: エネルギーの使用に係る原単位 | M7: =IF(BO8=FALSE,IF(入力・計算補助!D17="","",入力・計算補助!D17),"") -> 0.1078 | U7: =IF(BO8=FALSE,IF(入力・計算補助!G17="","",入力・計算補助!G17),"") -> 0.1003 | AB7: =IF(BO8=FALSE,IF(入力・計算補助!J17="","",入力・計算補助!J17),"") -> 0.0826 | AJ7: =IF(BO8=FALSE,IF(入力・計算補助!M17="","",入力・計算補助!M17),"") -> 0.0678 | AR7: =IF('特定-第３表'!BA380="","",'特定-第３表'!BA380) -> 0.06479
C8: 対前年度比（％） | U8: Ⓙ | W8: =IF(ISERROR(U7/M7),"",U7/M7*100) -> 93.04267161 | AB8: Ⓚ | AE8: =IF(ISERROR(AB7/U7),"",AB7/U7 *100) -> 82.35294118 | AJ8: Ⓛ | AL8: =IF(ISERROR(AJ7/AB7),"",AJ7/AB7 *100) -> 82.08232446 | AR8: Ⓜ | AT8: =IF(OR(('特定-第３表'!BO381="-"),(ISNUMBER('特定-第３表'!BO381)=FALSE)),IF(OR(('特定-第３表'!BO384="-"),(ISNUMBER('特定-第３表'!BO384)=FALSE)),"-",'特定-第３表'!BO384*100),'特定-第３表'!BO381*100) -> 95.6 | AZ8: =IF(ISERROR(W8*AE8*AL8*AT8)^(1/4),"-",(W8*AE8*AL8*AT8)^(1/4)) -> 88.05767334 | BL8: ='特定-第３表'!BO384:BU384 ->  | BN8: =IF(AZ8="-",0,AZ8) -> 88.05767334 | BO8: ='特定-第３表'!C7 -> FALSE
B9: 備考 | E9: 特定－第３表１において事業分類ごとのエネルギーの使用に係る原単位の対前年度比の寄与度から | BN9: =IF(AT8="-",0,AT8) -> 95.6
E10: 「事業者全体のエネルギーの使用に係る原単位の対前年度比（％）Ⓩ」を求めた場合は、対前年度 | BL10: =IF('特定-第３表'!BO384<>"",'特定-第３表'!BO384,'特定-第３表'!BO381) -> 0.96
E11: 比(％）のみ記入する。
BL12: =IF(ISERROR(AR7/AJ7),"-",AR7/AJ7*100) -> 95.56047198 | BM12: ←保存用
B14: ２ 電気需要平準化評価原単位
M16: =IF(AU16="","","平成"&(AU16-4)) -> 平成23 | Q16: 年度 | U16: =IF(AU16="","","平成"&(AU16-3)) -> 平成24 | Y16: 年度 | AB16: =IF(AU16="","","平成"&(AU16-2)) -> 平成25 | AG16: 年度 | AJ16: =IF(AU16="","","平成"&(AU16-1)) -> 平成26 | AO16: 年度 | AR16: 平成 | AU16: =IF('特定-第１・２表'!BK152=0,"",('特定-第１・２表'!BK152)) -> 27 | AW16: 年度 | AZ16: ５年度間 平均原単位変化
B17: 電気需要平準化評価原単位 | M17: =IF(BO18=FALSE,IF(入力・計算補助!D22="","",入力・計算補助!D22),"") ->  | U17: =IF(BO18=FALSE,IF(入力・計算補助!G22="","",入力・計算補助!G22),"") ->  | AB17: =IF(BO18=FALSE,IF(入力・計算補助!J22="","",入力・計算補助!J22),"") ->  | AJ17: =IF(BO18=FALSE,IF(入力・計算補助!M22="","",入力・計算補助!M22),"") -> 0.0800 | AR17: =IF('特定-第３表'!BH761="","",'特定-第３表'!BH761) -> 0.07628
C18: 対前年度比（％） | U18: Ⓙ' | W18: =IF(ISERROR(U17/M17),"",U17/M17*100) ->  | AB18: Ⓚ' | AE18: =IF(ISERROR(AB17/U17),"",AB17/U17 *100) ->  | AJ18: Ⓛ' | AL18: =IF(ISERROR(AJ17/AB17),"",AJ17/AB17 *100) ->  | AR18: Ⓜ' | AT18: =IF(OR(('特定-第３表'!BV762="-"),(ISNUMBER('特定-第３表'!BV762)=FALSE)),IF(OR(('特定-第３表'!BV765="-"),(ISNUMBER('特定-第３表'!BV765)=FALSE)),"-",'特定-第３表'!BV765*100),'特定-第３表'!BV762*100) -> 95.4 | AZ18: =IF(ISERROR(W18*AE18*AL18*AT18)^(1/4),"-",(W18*AE18*AL18*AT18)^(1/4)) -> - | BL18: ='特定-第３表'!BV765:CB765 ->  | BN18: =IF(AZ18="-",0,AZ18) -> 0 | BO18: ='特定-第３表'!C7 -> FALSE
B19: 備考 | E19: 特定－第３表２において事業分類ごとの電気需要平準化評価原単位の対前年度比の寄与度から「事業 | BN19: =IF(AT18="-",0,AT18) -> 95.4
E20: 者全体の電気需要平準化評価原単位の対前年度比（％）Ⓩ'」を求めた場合は、対前年度比(％）のみ | BL20: =IF('特定-第３表'!BV765<>"",'特定-第３表'!BV765,'特定-第３表'!BV762) -> 0.956
E21: 記入する。
BL22: =IF(ISERROR(AR17/AJ17),"-",AR17/AJ17*100) -> 95.35 | BM22: ←保存用
B24: 特定‐第５表 エネルギーの使用に係る原単位及び電気需要平準化評価原単位が改善できなかった場合の理由
B27: １ 事業者の過去５年度間のエネルギーの使用に係る原単位が年平均１％以上改善できなかった場合（イ） 又は事業者のエネルギーの使用に係る原単位が前年度に比べ改善できなかった場合（ロ）の理由
B29: （イ）の理由
B60: （ロ）の理由
B91: 備考 | E91: （イ）及び（ロ）共に該当する場合、双方記載すること。
B94: ２ 事業者の過去５年度間の電気需要平準化評価原単位が年平均１％以上改善できなかった場合（ハ）又は 事業者の電気需要平準化原単位が前年度に比べ改善できなかった場合（ニ）の理由
B96: （ハ）の理由
B127: （ニ）の理由
B158: 備考 | E158: （ハ）及び（ニ）共に該当する場合、双方記載すること。
B160: 特定－第６表 ベンチマーク指標の状況（該当する事業者のみ記入）
B161: 区分 | E161: 対象となる事業の名称 （セクター） | U161: ベンチマーク指標の状況 （単位） | AN161: 対象事業のエネルギー使用量 （原油換算ｋｌ）
B172: 備考 | E172: 「区分」の欄には、工場等におけるエネルギーの使用の合理化に関する事業者の判断の基準（平成２１年３月３１日経済産業省告示弟６６号）の別表弟６に規定する区分（１Ａから６Ｂまで）のいずれかを記入すること。
B174: 特定－第７表 判断基準のベンチマークの状況に関し、参考となる情報
B206: 特定－第８表 事業者のエネルギーの使用の合理化に関する判断の基準の遵守状況
B207: ア． | D207: エネルギーの使用の合理化を図るための管理体制の整備状況 | AS207: =IF(COUNTIF(BK208:BK209,"true")=0,"いずれかのチェックボックスにレ印を記入して下さい","") -> 
AS208: =IF(COUNTIF(BK208:BK209,"true")>=2,"レ印は一つだけ選択して下さい","") ->  | BK208: TRUE
AR209: （整備完了予定年 | BE209: 年度） | BK209: FALSE
AS211: =IF(AND(COUNTIF(BK209,"true"),BC209<=0),"整備予定年を記入して下さい","") -> 
B212: イ． | D212: エネルギー管理に係る責任者の配置状況 | AS212: =IF(COUNTIF(BK213:BK214,"true")=0,"いずれかのチェックボックスにレ印を記入して下さい","") -> 
AS213: =IF(COUNTIF(BK213:BK214,"true")>=2,"レ印は一つだけ選択して下さい","") ->  | BK213: TRUE
BK214: FALSE
B217: ウ． | D217: 設置している工場等又は加盟している工場等におけるエネルギーの使用の合理化の取組方針（エネルギーの使用の合理化に関する目標、設備の新設及び更新に対する方針）（以下「取組方針」という。）の整備状況 | AS217: =IF(COUNTIF(BK218:BK220,"true")=0,"いずれかのチェックボックスにレ印を記入して下さい","") -> 
AS218: =IF(COUNTIF(BK218:BK220,"true")>=2,"レ印は一つだけ選択して下さい","") ->  | BK218: TRUE
AS219: =IF(AND(COUNTIF(BK220,"true"),BC220<=0),"整備予定年を記入して下さい","") ->  | BK219: FALSE
AR220: （整備完了予定年 | BE220: 年度） | BK220: FALSE
B222: エ． | D222: 設置している工場等又は加盟している工場等における取組方針の遵守確認及び評価状況（評価結果が不十分である場合には、その改善の状況） | AS222: =IF(COUNTIF(BK223:BK225,"true")=0,"いずれかのチェックボックスにレ印を記入して下さい","") -> 
AS223: =IF(COUNTIF(BK223:BK225,"true")>=2,"レ印は一つだけ選択して下さい","") ->  | BK223: FALSE
BK224: TRUE
BK225: FALSE
B227: オ． | D227: 取組方針及び遵守状況の評価手法の精査、必要に応じた変更の状況 | AS227: =IF(COUNTIF(BK228:BK230,"true")=0,"いずれかのチェックボックスにレ印を記入して下さい","") -> 
AS228: =IF(COUNTIF(BK228:BK230,"true")>=2,"レ印は一つだけ選択して下さい","") ->  | BK228: FALSE
BK229: FALSE
BK230: TRUE
B232: カ． | D232: エネルギーの使用の合理化を図るために必要な資金・人材の確保の実施状況 | AS232: =IF(COUNTIF(BK233:BK235,"true")=0,"いずれかのチェックボックスにレ印を記入して下さい","") -> 
AS233: =IF(COUNTIF(BK233:BK235,"true")>=2,"レ印は一つだけ選択して下さい","") ->  | BK233: FALSE
BK234: TRUE
BK235: FALSE
B237: キ． | D237: 設置している工場等又は加盟している工場等における従業員への取組方針の周知の実施状況及びエネルギーの使用の合理化に関する教育の実施状況 | AS237: =IF(COUNTIF(BK238:BK240,"true")=0,"いずれかのチェックボックスにレ印を記入して下さい","") -> 
AS238: =IF(COUNTIF(BK238:BK240,"true")>=2,"レ印は一つだけ選択して下さい","") ->  | BK238: FALSE
BK239: TRUE
BK240: FALSE
B242: ク． | D242: 設置している工場等又は加盟している工場等に係る名称、所在地及びエネルギー使用量を記載した書面並びにア．の管理体制、ウ．の取組方針及びエ．の遵守状況・評価結果を記載した書面の作成、更新、保管状況 | AS242: =IF(COUNTIF(BK243:BK245,"true")=0,"いずれかのチェックボックスにレ印を記入して下さい","") -> 
AS243: =IF(COUNTIF(BK243:BK245,"true")>=2,"レ印は一つだけ選択して下さい","") ->  | BK243: FALSE
AS244: =IF(AND(COUNTIF(BK245,"true"),BC245<=0),"整備予定年を記入して下さい","") ->  | BK244: TRUE
AR245: （整備完了予定年 | BE245: 年度） | BK245: FALSE
B249: 特定－第９表 その他事業者が実施した措置
B251: １ エネルギーの使用の合理化に関する事項
B252: 措置の概要
C253: 平成２６年度は、１３店舗の電灯を高効率電灯（LED）に変更を実施した。
C254: 管理事務所を含む８事務所に関しては、夏季２８℃、冬季２５℃の空調温度にするよう指導した。
B284: ２ 電気の需要の平準化に資する措置に関する事項
B285: 措置の概要
C286: 平成２６年度は、１３店舗の電灯を高効率電灯（LED）に変更を実施した。
C287: 管理事務所を含む８事務所に関しては、夏季２８℃、冬季２５℃の空調温度にするよう指導した。
B318: 特定‐第１０表 事業者の設置する工場等のうちエネルギー管理指定工場等の一覧
B322: 現在の指定区分 （指定区分に変更がある場合には、 □を■とする） | P322: エネルギー管理 指定工場等番号 | W322: 工場等の名称 | AG322: 工場等の所在地 | AU322: 日本標準産業分類に おける細分類番号 | BC322: 工場等に係る 事業の名称
B325: 第 | J325: 種 | AG325: 〒 | BC325: =IF(AU325&AW325&AY325&BA325="","",(IF(ISERROR(VLOOKUP(AU325&AW325&AY325&BA325,日本標準産業分類!A:B,2,FALSE)),"該当の細分類がありません",VLOOKUP(AU325&AW325&AY325&BA325,日本標準産業分類!A:B,2,FALSE)))) -> 
B326: （ 指定区分の変更手続きが必要 □ ）
BC327: =IF(BC329&BE329&BG329&BI329="","",(IF(ISERROR(VLOOKUP(BC329&BE329&BG329&BI329,日本標準産業分類!AT:AU,2,FALSE)),"該当の細分類がありません",VLOOKUP(BC329&BE329&BG329&BI329,日本標準産業分類!AT:AU,2,FALSE)))) ->  | BK327: FALSE
B329: 第 | J329: 種 | AG329: 〒 | BC329: =IF(AU329&AW329&AY329&BA329="","",(IF(ISERROR(VLOOKUP(AU329&AW329&AY329&BA329,日本標準産業分類!A:B,2,FALSE)),"該当の細分類がありません",VLOOKUP(AU329&AW329&AY329&BA329,日本標準産業分類!A:B,2,FALSE)))) -> 
B330: （ 指定区分の変更手続きが必要 □ ）
BC331: =IF(BC333&BE333&BG333&BI333="","",(IF(ISERROR(VLOOKUP(BC333&BE333&BG333&BI333,日本標準産業分類!AT:AU,2,FALSE)),"該当の細分類がありません",VLOOKUP(BC333&BE333&BG333&BI333,日本標準産業分類!AT:AU,2,FALSE)))) ->  | BK331: FALSE
B333: 第 | J333: 種 | AG333: 〒 | BC333: =IF(AU333&AW333&AY333&BA333="","",(IF(ISERROR(VLOOKUP(AU333&AW333&AY333&BA333,日本標準産業分類!A:B,2,FALSE)),"該当の細分類がありません",VLOOKUP(AU333&AW333&AY333&BA333,日本標準産業分類!A:B,2,FALSE)))) -> 
B334: （ 指定区分の変更手続きが必要 □ ）
BC335: =IF(BC337&BE337&BG337&BI337="","",(IF(ISERROR(VLOOKUP(BC337&BE337&BG337&BI337,日本標準産業分類!AT:AU,2,FALSE)),"該当の細分類がありません",VLOOKUP(BC337&BE337&BG337&BI337,日本標準産業分類!AT:AU,2,FALSE)))) ->  | BK335: FALSE
B337: 第 | J337: 種 | AG337: 〒 | BC337: =IF(AU337&AW337&AY337&BA337="","",(IF(ISERROR(VLOOKUP(AU337&AW337&AY337&BA337,日本標準産業分類!A:B,2,FALSE)),"該当の細分類がありません",VLOOKUP(AU337&AW337&AY337&BA337,日本標準産業分類!A:B,2,FALSE)))) -> 
B338: （ 指定区分の変更手続きが必要 □ ）
BC339: =IF(BC341&BE341&BG341&BI341="","",(IF(ISERROR(VLOOKUP(BC341&BE341&BG341&BI341,日本標準産業分類!AT:AU,2,FALSE)),"該当の細分類がありません",VLOOKUP(BC341&BE341&BG341&BI341,日本標準産業分類!AT:AU,2,FALSE)))) ->  | BK339: FALSE
B341: 第 | J341: 種 | AG341: 〒 | BC341: =IF(AU341&AW341&AY341&BA341="","",(IF(ISERROR(VLOOKUP(AU341&AW341&AY341&BA341,日本標準産業分類!A:B,2,FALSE)),"該当の細分類がありません",VLOOKUP(AU341&AW341&AY341&BA341,日本標準産業分類!A:B,2,FALSE)))) -> 
B342: （ 指定区分の変更手続きが必要 □ ）
BC343: =IF(BC345&BE345&BG345&BI345="","",(IF(ISERROR(VLOOKUP(BC345&BE345&BG345&BI345,日本標準産業分類!AT:AU,2,FALSE)),"該当の細分類がありません",VLOOKUP(BC345&BE345&BG345&BI345,日本標準産業分類!AT:AU,2,FALSE)))) ->  | BK343: FALSE
B345: 第 | J345: 種 | AG345: 〒 | BC345: =IF(AU345&AW345&AY345&BA345="","",(IF(ISERROR(VLOOKUP(AU345&AW345&AY345&BA345,日本標準産業分類!A:B,2,FALSE)),"該当の細分類がありません",VLOOKUP(AU345&AW345&AY345&BA345,日本標準産業分類!A:B,2,FALSE)))) -> 
B346: （ 指定区分の変更手続きが必要 □ ）
BC347: =IF(BC349&BE349&BG349&BI349="","",(IF(ISERROR(VLOOKUP(BC349&BE349&BG349&BI349,日本標準産業分類!AT:AU,2,FALSE)),"該当の細分類がありません",VLOOKUP(BC349&BE349&BG349&BI349,日本標準産業分類!AT:AU,2,FALSE)))) ->  | BK347: FALSE
B349: 第 | J349: 種 | AG349: 〒 | BC349: =IF(AU349&AW349&AY349&BA349="","",(IF(ISERROR(VLOOKUP(AU349&AW349&AY349&BA349,日本標準産業分類!A:B,2,FALSE)),"該当の細分類がありません",VLOOKUP(AU349&AW349&AY349&BA349,日本標準産業分類!A:B,2,FALSE)))) -> 
B350: （ 指定区分の変更手続きが必要 □ ）
BC351: =IF(BC353&BE353&BG353&BI353="","",(IF(ISERROR(VLOOKUP(BC353&BE353&BG353&BI353,日本標準産業分類!AT:AU,2,FALSE)),"該当の細分類がありません",VLOOKUP(BC353&BE353&BG353&BI353,日本標準産業分類!AT:AU,2,FALSE)))) ->  | BK351: FALSE
B353: 第 | J353: 種 | AG353: 〒 | BC353: =IF(AU353&AW353&AY353&BA353="","",(IF(ISERROR(VLOOKUP(AU353&AW353&AY353&BA353,日本標準産業分類!A:B,2,FALSE)),"該当の細分類がありません",VLOOKUP(AU353&AW353&AY353&BA353,日本標準産業分類!A:B,2,FALSE)))) -> 
B354: （ 指定区分の変更手続きが必要 □ ）
BC355: =IF(BC357&BE357&BG357&BI357="","",(IF(ISERROR(VLOOKUP(BC357&BE357&BG357&BI357,日本標準産業分類!AT:AU,2,FALSE)),"該当の細分類がありません",VLOOKUP(BC357&BE357&BG357&BI357,日本標準産業分類!AT:AU,2,FALSE)))) ->  | BK355: FALSE
B357: 第 | J357: 種 | AG357: 〒 | BC357: =IF(AU357&AW357&AY357&BA357="","",(IF(ISERROR(VLOOKUP(AU357&AW357&AY357&BA357,日本標準産業分類!A:B,2,FALSE)),"該当の細分類がありません",VLOOKUP(AU357&AW357&AY357&BA357,日本標準産業分類!A:B,2,FALSE)))) -> 
B358: （ 指定区分の変更手続きが必要 □ ）
BC359: =IF(BC361&BE361&BG361&BI361="","",(IF(ISERROR(VLOOKUP(BC361&BE361&BG361&BI361,日本標準産業分類!AT:AU,2,FALSE)),"該当の細分類がありません",VLOOKUP(BC361&BE361&BG361&BI361,日本標準産業分類!AT:AU,2,FALSE)))) ->  | BK359: FALSE
B361: 第 | J361: 種 | AG361: 〒 | BC361: =IF(AU361&AW361&AY361&BA361="","",(IF(ISERROR(VLOOKUP(AU361&AW361&AY361&BA361,日本標準産業分類!A:B,2,FALSE)),"該当の細分類がありません",VLOOKUP(AU361&AW361&AY361&BA361,日本標準産業分類!A:B,2,FALSE)))) -> 
B362: （ 指定区分の変更手続きが必要 □ ）
BC363: =IF(BC365&BE365&BG365&BI365="","",(IF(ISERROR(VLOOKUP(BC365&BE365&BG365&BI365,日本標準産業分類!AT:AU,2,FALSE)),"該当の細分類がありません",VLOOKUP(BC365&BE365&BG365&BI365,日本標準産業分類!AT:AU,2,FALSE)))) ->  | BK363: FALSE
B365: 第 | J365: 種 | AG365: 〒 | BC365: =IF(AU365&AW365&AY365&BA365="","",(IF(ISERROR(VLOOKUP(AU365&AW365&AY365&BA365,日本標準産業分類!A:B,2,FALSE)),"該当の細分類がありません",VLOOKUP(AU365&AW365&AY365&BA365,日本標準産業分類!A:B,2,FALSE)))) -> 
B366: （ 指定区分の変更手続きが必要 □ ）
BC367: =IF(BC369&BE369&BG369&BI369="","",(IF(ISERROR(VLOOKUP(BC369&BE369&BG369&BI369,日本標準産業分類!AT:AU,2,FALSE)),"該当の細分類がありません",VLOOKUP(BC369&BE369&BG369&BI369,日本標準産業分類!AT:AU,2,FALSE)))) ->  | BK367: FALSE
B369: 第 | J369: 種 | AG369: 〒 | BC369: =IF(AU369&AW369&AY369&BA369="","",(IF(ISERROR(VLOOKUP(AU369&AW369&AY369&BA369,日本標準産業分類!A:B,2,FALSE)),"該当の細分類がありません",VLOOKUP(AU369&AW369&AY369&BA369,日本標準産業分類!A:B,2,FALSE)))) -> 
B370: （ 指定区分の変更手続きが必要 □ ）
BC371: =IF(BC373&BE373&BG373&BI373="","",(IF(ISERROR(VLOOKUP(BC373&BE373&BG373&BI373,日本標準産業分類!AT:AU,2,FALSE)),"該当の細分類がありません",VLOOKUP(BC373&BE373&BG373&BI373,日本標準産業分類!AT:AU,2,FALSE)))) ->  | BK371: FALSE
B373: 第 | J373: 種 | AG373: 〒 | BC373: =IF(AU373&AW373&AY373&BA373="","",(IF(ISERROR(VLOOKUP(AU373&AW373&AY373&BA373,日本標準産業分類!A:B,2,FALSE)),"該当の細分類がありません",VLOOKUP(AU373&AW373&AY373&BA373,日本標準産業分類!A:B,2,FALSE)))) -> 
B374: （ 指定区分の変更手続きが必要 □ ）
BC375: =IF(BC377&BE377&BG377&BI377="","",(IF(ISERROR(VLOOKUP(BC377&BE377&BG377&BI377,日本標準産業分類!AT:AU,2,FALSE)),"該当の細分類がありません",VLOOKUP(BC377&BE377&BG377&BI377,日本標準産業分類!AT:AU,2,FALSE)))) ->  | BK375: FALSE
B377: 第 | J377: 種 | AG377: 〒 | BC377: =IF(AU377&AW377&AY377&BA377="","",(IF(ISERROR(VLOOKUP(AU377&AW377&AY377&BA377,日本標準産業分類!A:B,2,FALSE)),"該当の細分類がありません",VLOOKUP(AU377&AW377&AY377&BA377,日本標準産業分類!A:B,2,FALSE)))) -> 
B378: （ 指定区分の変更手続きが必要 □ ）
BC379: =IF(BC381&BE381&BG381&BI381="","",(IF(ISERROR(VLOOKUP(BC381&BE381&BG381&BI381,日本標準産業分類!AT:AU,2,FALSE)),"該当の細分類がありません",VLOOKUP(BC381&BE381&BG381&BI381,日本標準産業分類!AT:AU,2,FALSE)))) ->  | BK379: FALSE
B381: 第 | J381: 種 | AG381: 〒 | BC381: =IF(AU381&AW381&AY381&BA381="","",(IF(ISERROR(VLOOKUP(AU381&AW381&AY381&BA381,日本標準産業分類!A:B,2,FALSE)),"該当の細分類がありません",VLOOKUP(AU381&AW381&AY381&BA381,日本標準産業分類!A:B,2,FALSE)))) -> 
B382: （ 指定区分の変更手続きが必要 □ ）
BC383: =IF(BC385&BE385&BG385&BI385="","",(IF(ISERROR(VLOOKUP(BC385&BE385&BG385&BI385,日本標準産業分類!AT:AU,2,FALSE)),"該当の細分類がありません",VLOOKUP(BC385&BE385&BG385&BI385,日本標準産業分類!AT:AU,2,FALSE)))) ->  | BK383: FALSE
B385: 第 | J385: 種 | AG385: 〒 | BC385: =IF(AU385&AW385&AY385&BA385="","",(IF(ISERROR(VLOOKUP(AU385&AW385&AY385&BA385,日本標準産業分類!A:B,2,FALSE)),"該当の細分類がありません",VLOOKUP(AU385&AW385&AY385&BA385,日本標準産業分類!A:B,2,FALSE)))) -> 
B386: （ 指定区分の変更手続きが必要 □ ）
BC387: =IF(BC389&BE389&BG389&BI389="","",(IF(ISERROR(VLOOKUP(BC389&BE389&BG389&BI389,日本標準産業分類!AT:AU,2,FALSE)),"該当の細分類がありません",VLOOKUP(BC389&BE389&BG389&BI389,日本標準産業分類!AT:AU,2,FALSE)))) ->  | BK387: FALSE
B389: 第 | J389: 種 | AG389: 〒 | BC389: =IF(AU389&AW389&AY389&BA389="","",(IF(ISERROR(VLOOKUP(AU389&AW389&AY389&BA389,日本標準産業分類!A:B,2,FALSE)),"該当の細分類がありません",VLOOKUP(AU389&AW389&AY389&BA389,日本標準産業分類!A:B,2,FALSE)))) -> 
B390: （ 指定区分の変更手続きが必要 □ ）
BC391: =IF(BC393&BE393&BG393&BI393="","",(IF(ISERROR(VLOOKUP(BC393&BE393&BG393&BI393,日本標準産業分類!AT:AU,2,FALSE)),"該当の細分類がありません",VLOOKUP(BC393&BE393&BG393&BI393,日本標準産業分類!AT:AU,2,FALSE)))) ->  | BK391: FALSE
B393: 第 | J393: 種 | AG393: 〒 | BC393: =IF(AU393&AW393&AY393&BA393="","",(IF(ISERROR(VLOOKUP(AU393&AW393&AY393&BA393,日本標準産業分類!A:B,2,FALSE)),"該当の細分類がありません",VLOOKUP(AU393&AW393&AY393&BA393,日本標準産業分類!A:B,2,FALSE)))) -> 
B394: （ 指定区分の変更手続きが必要 □ ）
BC395: =IF(BC397&BE397&BG397&BI397="","",(IF(ISERROR(VLOOKUP(BC397&BE397&BG397&BI397,日本標準産業分類!AT:AU,2,FALSE)),"該当の細分類がありません",VLOOKUP(BC397&BE397&BG397&BI397,日本標準産業分類!AT:AU,2,FALSE)))) ->  | BK395: FALSE
B397: 第 | J397: 種 | AG397: 〒 | BC397: =IF(AU397&AW397&AY397&BA397="","",(IF(ISERROR(VLOOKUP(AU397&AW397&AY397&BA397,日本標準産業分類!A:B,2,FALSE)),"該当の細分類がありません",VLOOKUP(AU397&AW397&AY397&BA397,日本標準産業分類!A:B,2,FALSE)))) -> 
B398: （ 指定区分の変更手続きが必要 □ ）
BC399: =IF(BC401&BE401&BG401&BI401="","",(IF(ISERROR(VLOOKUP(BC401&BE401&BG401&BI401,日本標準産業分類!AT:AU,2,FALSE)),"該当の細分類がありません",VLOOKUP(BC401&BE401&BG401&BI401,日本標準産業分類!AT:AU,2,FALSE)))) ->  | BK399: TRUE
B401: 第 | J401: 種 | AG401: 〒 | BC401: =IF(AU401&AW401&AY401&BA401="","",(IF(ISERROR(VLOOKUP(AU401&AW401&AY401&BA401,日本標準産業分類!A:B,2,FALSE)),"該当の細分類がありません",VLOOKUP(AU401&AW401&AY401&BA401,日本標準産業分類!A:B,2,FALSE)))) -> 
B402: （ 指定区分の変更手続きが必要 □ ）
BC403: =IF(BC405&BE405&BG405&BI405="","",(IF(ISERROR(VLOOKUP(BC405&BE405&BG405&BI405,日本標準産業分類!AT:AU,2,FALSE)),"該当の細分類がありません",VLOOKUP(BC405&BE405&BG405&BI405,日本標準産業分類!AT:AU,2,FALSE)))) ->  | BK403: FALSE
B405: 第 | J405: 種 | AG405: 〒 | BC405: =IF(AU405&AW405&AY405&BA405="","",(IF(ISERROR(VLOOKUP(AU405&AW405&AY405&BA405,日本標準産業分類!A:B,2,FALSE)),"該当の細分類がありません",VLOOKUP(AU405&AW405&AY405&BA405,日本標準産業分類!A:B,2,FALSE)))) -> 
B406: （ 指定区分の変更手続きが必要 □ ）
BC407: =IF(BC409&BE409&BG409&BI409="","",(IF(ISERROR(VLOOKUP(BC409&BE409&BG409&BI409,日本標準産業分類!AT:AU,2,FALSE)),"該当の細分類がありません",VLOOKUP(BC409&BE409&BG409&BI409,日本標準産業分類!AT:AU,2,FALSE)))) ->  | BK407: FALSE
B409: 第 | J409: 種 | AG409: 〒 | BC409: =IF(AU409&AW409&AY409&BA409="","",(IF(ISERROR(VLOOKUP(AU409&AW409&AY409&BA409,日本標準産業分類!A:B,2,FALSE)),"該当の細分類がありません",VLOOKUP(AU409&AW409&AY409&BA409,日本標準産業分類!A:B,2,FALSE)))) -> 
B410: （ 指定区分の変更手続きが必要 □ ）
BC411: =IF(BC413&BE413&BG413&BI413="","",(IF(ISERROR(VLOOKUP(BC413&BE413&BG413&BI413,日本標準産業分類!AT:AU,2,FALSE)),"該当の細分類がありません",VLOOKUP(BC413&BE413&BG413&BI413,日本標準産業分類!AT:AU,2,FALSE)))) ->  | BK411: FALSE
B413: 第 | J413: 種 | AG413: 〒 | BC413: =IF(AU413&AW413&AY413&BA413="","",(IF(ISERROR(VLOOKUP(AU413&AW413&AY413&BA413,日本標準産業分類!A:B,2,FALSE)),"該当の細分類がありません",VLOOKUP(AU413&AW413&AY413&BA413,日本標準産業分類!A:B,2,FALSE)))) -> 
B414: （ 指定区分の変更手続きが必要 □ ）
BC415: =IF(BC417&BE417&BG417&BI417="","",(IF(ISERROR(VLOOKUP(BC417&BE417&BG417&BI417,日本標準産業分類!AT:AU,2,FALSE)),"該当の細分類がありません",VLOOKUP(BC417&BE417&BG417&BI417,日本標準産業分類!AT:AU,2,FALSE)))) ->  | BK415: FALSE
B417: 第 | J417: 種 | AG417: 〒 | BC417: =IF(AU417&AW417&AY417&BA417="","",(IF(ISERROR(VLOOKUP(AU417&AW417&AY417&BA417,日本標準産業分類!A:B,2,FALSE)),"該当の細分類がありません",VLOOKUP(AU417&AW417&AY417&BA417,日本標準産業分類!A:B,2,FALSE)))) -> 
B418: （ 指定区分の変更手続きが必要 □ ）
BC419: =IF(BC421&BE421&BG421&BI421="","",(IF(ISERROR(VLOOKUP(BC421&BE421&BG421&BI421,日本標準産業分類!AT:AU,2,FALSE)),"該当の細分類がありません",VLOOKUP(BC421&BE421&BG421&BI421,日本標準産業分類!AT:AU,2,FALSE)))) ->  | BK419: FALSE
B421: 第 | J421: 種 | AG421: 〒 | BC421: =IF(AU421&AW421&AY421&BA421="","",(IF(ISERROR(VLOOKUP(AU421&AW421&AY421&BA421,日本標準産業分類!A:B,2,FALSE)),"該当の細分類がありません",VLOOKUP(AU421&AW421&AY421&BA421,日本標準産業分類!A:B,2,FALSE)))) -> 
B422: （ 指定区分の変更手続きが必要 □ ）
BC423: =IF(BC425&BE425&BG425&BI425="","",(IF(ISERROR(VLOOKUP(BC425&BE425&BG425&BI425,日本標準産業分類!AT:AU,2,FALSE)),"該当の細分類がありません",VLOOKUP(BC425&BE425&BG425&BI425,日本標準産業分類!AT:AU,2,FALSE)))) ->  | BK423: FALSE
B425: 第 | J425: 種 | AG425: 〒 | BC425: =IF(AU425&AW425&AY425&BA425="","",(IF(ISERROR(VLOOKUP(AU425&AW425&AY425&BA425,日本標準産業分類!A:B,2,FALSE)),"該当の細分類がありません",VLOOKUP(AU425&AW425&AY425&BA425,日本標準産業分類!A:B,2,FALSE)))) -> 
B426: （ 指定区分の変更手続きが必要 □ ）
BC427: =IF(BC429&BE429&BG429&BI429="","",(IF(ISERROR(VLOOKUP(BC429&BE429&BG429&BI429,日本標準産業分類!AT:AU,2,FALSE)),"該当の細分類がありません",VLOOKUP(BC429&BE429&BG429&BI429,日本標準産業分類!AT:AU,2,FALSE)))) ->  | BK427: FALSE
B429: 第 | J429: 種 | AG429: 〒 | BC429: =IF(AU429&AW429&AY429&BA429="","",(IF(ISERROR(VLOOKUP(AU429&AW429&AY429&BA429,日本標準産業分類!A:B,2,FALSE)),"該当の細分類がありません",VLOOKUP(AU429&AW429&AY429&BA429,日本標準産業分類!A:B,2,FALSE)))) -> 
B430: （ 指定区分の変更手続きが必要 □ ）
BC431: =IF(BC433&BE433&BG433&BI433="","",(IF(ISERROR(VLOOKUP(BC433&BE433&BG433&BI433,日本標準産業分類!AT:AU,2,FALSE)),"該当の細分類がありません",VLOOKUP(BC433&BE433&BG433&BI433,日本標準産業分類!AT:AU,2,FALSE)))) ->  | BK431: FALSE
B433: 第 | J433: 種 | AG433: 〒 | BC433: =IF(AU433&AW433&AY433&BA433="","",(IF(ISERROR(VLOOKUP(AU433&AW433&AY433&BA433,日本標準産業分類!A:B,2,FALSE)),"該当の細分類がありません",VLOOKUP(AU433&AW433&AY433&BA433,日本標準産業分類!A:B,2,FALSE)))) -> 
B434: （ 指定区分の変更手続きが必要 □ ）
BC435: =IF(BC437&BE437&BG437&BI437="","",(IF(ISERROR(VLOOKUP(BC437&BE437&BG437&BI437,日本標準産業分類!AT:AU,2,FALSE)),"該当の細分類がありません",VLOOKUP(BC437&BE437&BG437&BI437,日本標準産業分類!AT:AU,2,FALSE)))) ->  | BK435: FALSE
B437: 第 | J437: 種 | AG437: 〒 | BC437: =IF(AU437&AW437&AY437&BA437="","",(IF(ISERROR(VLOOKUP(AU437&AW437&AY437&BA437,日本標準産業分類!A:B,2,FALSE)),"該当の細分類がありません",VLOOKUP(AU437&AW437&AY437&BA437,日本標準産業分類!A:B,2,FALSE)))) -> 
B438: （ 指定区分の変更手続きが必要 □ ）
BC439: =IF(BC441&BE441&BG441&BI441="","",(IF(ISERROR(VLOOKUP(BC441&BE441&BG441&BI441,日本標準産業分類!AT:AU,2,FALSE)),"該当の細分類がありません",VLOOKUP(BC441&BE441&BG441&BI441,日本標準産業分類!AT:AU,2,FALSE)))) ->  | BK439: FALSE
B441: 第 | J441: 種 | AG441: 〒 | BC441: =IF(AU441&AW441&AY441&BA441="","",(IF(ISERROR(VLOOKUP(AU441&AW441&AY441&BA441,日本標準産業分類!A:B,2,FALSE)),"該当の細分類がありません",VLOOKUP(AU441&AW441&AY441&BA441,日本標準産業分類!A:B,2,FALSE)))) -> 
B442: （ 指定区分の変更手続きが必要 □ ）
BC443: =IF(BC445&BE445&BG445&BI445="","",(IF(ISERROR(VLOOKUP(BC445&BE445&BG445&BI445,日本標準産業分類!AT:AU,2,FALSE)),"該当の細分類がありません",VLOOKUP(BC445&BE445&BG445&BI445,日本標準産業分類!AT:AU,2,FALSE)))) ->  | BK443: FALSE
B445: 第 | J445: 種 | AG445: 〒 | BC445: =IF(AU445&AW445&AY445&BA445="","",(IF(ISERROR(VLOOKUP(AU445&AW445&AY445&BA445,日本標準産業分類!A:B,2,FALSE)),"該当の細分類がありません",VLOOKUP(AU445&AW445&AY445&BA445,日本標準産業分類!A:B,2,FALSE)))) -> 
B446: （ 指定区分の変更手続きが必要 □ ）
BC447: =IF(BC449&BE449&BG449&BI449="","",(IF(ISERROR(VLOOKUP(BC449&BE449&BG449&BI449,日本標準産業分類!AT:AU,2,FALSE)),"該当の細分類がありません",VLOOKUP(BC449&BE449&BG449&BI449,日本標準産業分類!AT:AU,2,FALSE)))) ->  | BK447: FALSE
B449: 第 | J449: 種 | AG449: 〒 | BC449: =IF(AU449&AW449&AY449&BA449="","",(IF(ISERROR(VLOOKUP(AU449&AW449&AY449&BA449,日本標準産業分類!A:B,2,FALSE)),"該当の細分類がありません",VLOOKUP(AU449&AW449&AY449&BA449,日本標準産業分類!A:B,2,FALSE)))) -> 
B450: （ 指定区分の変更手続きが必要 □ ）
BC451: =IF(BC453&BE453&BG453&BI453="","",(IF(ISERROR(VLOOKUP(BC453&BE453&BG453&BI453,日本標準産業分類!AT:AU,2,FALSE)),"該当の細分類がありません",VLOOKUP(BC453&BE453&BG453&BI453,日本標準産業分類!AT:AU,2,FALSE)))) ->  | BK451: FALSE
B453: 第 | J453: 種 | AG453: 〒 | BC453: =IF(AU453&AW453&AY453&BA453="","",(IF(ISERROR(VLOOKUP(AU453&AW453&AY453&BA453,日本標準産業分類!A:B,2,FALSE)),"該当の細分類がありません",VLOOKUP(AU453&AW453&AY453&BA453,日本標準産業分類!A:B,2,FALSE)))) -> 
B454: （ 指定区分の変更手続きが必要 □ ）
BC455: =IF(BC457&BE457&BG457&BI457="","",(IF(ISERROR(VLOOKUP(BC457&BE457&BG457&BI457,日本標準産業分類!AT:AU,2,FALSE)),"該当の細分類がありません",VLOOKUP(BC457&BE457&BG457&BI457,日本標準産業分類!AT:AU,2,FALSE)))) ->  | BK455: FALSE
B457: 第 | J457: 種 | AG457: 〒 | BC457: =IF(AU457&AW457&AY457&BA457="","",(IF(ISERROR(VLOOKUP(AU457&AW457&AY457&BA457,日本標準産業分類!A:B,2,FALSE)),"該当の細分類がありません",VLOOKUP(AU457&AW457&AY457&BA457,日本標準産業分類!A:B,2,FALSE)))) -> 
B458: （ 指定区分の変更手続きが必要 □ ）
BC459: =IF(BC461&BE461&BG461&BI461="","",(IF(ISERROR(VLOOKUP(BC461&BE461&BG461&BI461,日本標準産業分類!AT:AU,2,FALSE)),"該当の細分類がありません",VLOOKUP(BC461&BE461&BG461&BI461,日本標準産業分類!AT:AU,2,FALSE)))) ->  | BK459: FALSE
B461: 第 | J461: 種 | AG461: 〒 | BC461: =IF(AU461&AW461&AY461&BA461="","",(IF(ISERROR(VLOOKUP(AU461&AW461&AY461&BA461,日本標準産業分類!A:B,2,FALSE)),"該当の細分類がありません",VLOOKUP(AU461&AW461&AY461&BA461,日本標準産業分類!A:B,2,FALSE)))) -> 
B462: （ 指定区分の変更手続きが必要 □ ）
BC463: =IF(BC465&BE465&BG465&BI465="","",(IF(ISERROR(VLOOKUP(BC465&BE465&BG465&BI465,日本標準産業分類!AT:AU,2,FALSE)),"該当の細分類がありません",VLOOKUP(BC465&BE465&BG465&BI465,日本標準産業分類!AT:AU,2,FALSE)))) ->  | BK463: FALSE
B465: 第 | J465: 種 | AG465: 〒 | BC465: =IF(AU465&AW465&AY465&BA465="","",(IF(ISERROR(VLOOKUP(AU465&AW465&AY465&BA465,日本標準産業分類!A:B,2,FALSE)),"該当の細分類がありません",VLOOKUP(AU465&AW465&AY465&BA465,日本標準産業分類!A:B,2,FALSE)))) -> 
B466: （ 指定区分の変更手続きが必要 □ ）
BC467: =IF(BC469&BE469&BG469&BI469="","",(IF(ISERROR(VLOOKUP(BC469&BE469&BG469&BI469,日本標準産業分類!AT:AU,2,FALSE)),"該当の細分類がありません",VLOOKUP(BC469&BE469&BG469&BI469,日本標準産業分類!AT:AU,2,FALSE)))) ->  | BK467: FALSE
B469: 第 | J469: 種 | AG469: 〒 | BC469: =IF(AU469&AW469&AY469&BA469="","",(IF(ISERROR(VLOOKUP(AU469&AW469&AY469&BA469,日本標準産業分類!A:B,2,FALSE)),"該当の細分類がありません",VLOOKUP(AU469&AW469&AY469&BA469,日本標準産業分類!A:B,2,FALSE)))) -> 
B470: （ 指定区分の変更手続きが必要 □ ）
BC471: =IF(BC473&BE473&BG473&BI473="","",(IF(ISERROR(VLOOKUP(BC473&BE473&BG473&BI473,日本標準産業分類!AT:AU,2,FALSE)),"該当の細分類がありません",VLOOKUP(BC473&BE473&BG473&BI473,日本標準産業分類!AT:AU,2,FALSE)))) ->  | BK471: FALSE
B473: 第 | J473: 種 | AG473: 〒 | BC473: =IF(AU473&AW473&AY473&BA473="","",(IF(ISERROR(VLOOKUP(AU473&AW473&AY473&BA473,日本標準産業分類!A:B,2,FALSE)),"該当の細分類がありません",VLOOKUP(AU473&AW473&AY473&BA473,日本標準産業分類!A:B,2,FALSE)))) -> 
B474: （ 指定区分の変更手続きが必要 □ ）
BC475: =IF(BC477&BE477&BG477&BI477="","",(IF(ISERROR(VLOOKUP(BC477&BE477&BG477&BI477,日本標準産業分類!AT:AU,2,FALSE)),"該当の細分類がありません",VLOOKUP(BC477&BE477&BG477&BI477,日本標準産業分類!AT:AU,2,FALSE)))) ->  | BK475: FALSE
B477: 第 | J477: 種 | AG477: 〒 | BC477: =IF(AU477&AW477&AY477&BA477="","",(IF(ISERROR(VLOOKUP(AU477&AW477&AY477&BA477,日本標準産業分類!A:B,2,FALSE)),"該当の細分類がありません",VLOOKUP(AU477&AW477&AY477&BA477,日本標準産業分類!A:B,2,FALSE)))) -> 
B478: （ 指定区分の変更手続きが必要 □ ）
BC479: =IF(BC481&BE481&BG481&BI481="","",(IF(ISERROR(VLOOKUP(BC481&BE481&BG481&BI481,日本標準産業分類!AT:AU,2,FALSE)),"該当の細分類がありません",VLOOKUP(BC481&BE481&BG481&BI481,日本標準産業分類!AT:AU,2,FALSE)))) ->  | BK479: FALSE
B481: 第 | J481: 種 | AG481: 〒 | BC481: =IF(AU481&AW481&AY481&BA481="","",(IF(ISERROR(VLOOKUP(AU481&AW481&AY481&BA481,日本標準産業分類!A:B,2,FALSE)),"該当の細分類がありません",VLOOKUP(AU481&AW481&AY481&BA481,日本標準産業分類!A:B,2,FALSE)))) -> 
B482: （ 指定区分の変更手続きが必要 □ ）
BC483: =IF(BC485&BE485&BG485&BI485="","",(IF(ISERROR(VLOOKUP(BC485&BE485&BG485&BI485,日本標準産業分類!AT:AU,2,FALSE)),"該当の細分類がありません",VLOOKUP(BC485&BE485&BG485&BI485,日本標準産業分類!AT:AU,2,FALSE)))) ->  | BK483: FALSE
B485: 第 | J485: 種 | AG485: 〒 | BC485: =IF(AU485&AW485&AY485&BA485="","",(IF(ISERROR(VLOOKUP(AU485&AW485&AY485&BA485,日本標準産業分類!A:B,2,FALSE)),"該当の細分類がありません",VLOOKUP(AU485&AW485&AY485&BA485,日本標準産業分類!A:B,2,FALSE)))) -> 
B486: （ 指定区分の変更手続きが必要 □ ）
BC487: =IF(BC489&BE489&BG489&BI489="","",(IF(ISERROR(VLOOKUP(BC489&BE489&BG489&BI489,日本標準産業分類!AT:AU,2,FALSE)),"該当の細分類がありません",VLOOKUP(BC489&BE489&BG489&BI489,日本標準産業分類!AT:AU,2,FALSE)))) ->  | BK487: FALSE
B489: 第 | J489: 種 | AG489: 〒 | BC489: =IF(AU489&AW489&AY489&BA489="","",(IF(ISERROR(VLOOKUP(AU489&AW489&AY489&BA489,日本標準産業分類!A:B,2,FALSE)),"該当の細分類がありません",VLOOKUP(AU489&AW489&AY489&BA489,日本標準産業分類!A:B,2,FALSE)))) -> 
B490: （ 指定区分の変更手続きが必要 □ ）
BC491: =IF(BC493&BE493&BG493&BI493="","",(IF(ISERROR(VLOOKUP(BC493&BE493&BG493&BI493,日本標準産業分類!AT:AU,2,FALSE)),"該当の細分類がありません",VLOOKUP(BC493&BE493&BG493&BI493,日本標準産業分類!AT:AU,2,FALSE)))) ->  | BK491: FALSE
B493: 第 | J493: 種 | AG493: 〒 | BC493: =IF(AU493&AW493&AY493&BA493="","",(IF(ISERROR(VLOOKUP(AU493&AW493&AY493&BA493,日本標準産業分類!A:B,2,FALSE)),"該当の細分類がありません",VLOOKUP(AU493&AW493&AY493&BA493,日本標準産業分類!A:B,2,FALSE)))) -> 
... 1228 more rows

Sheet 係数 (hidden)
B3: 使用・供給エネルギー | E3: 第7表 チェック
B4: 都市ガス | F4: レ
B5: 昼間買電
B6: 夜間買電
B7: 上記以外の買電
B11: エネルギーの種類 | E11: 省エネ法の換算係数 | G11: 温対法の換算係数
B12: 燃 料 | D12: 原油(コンデンセートを除く。) | E12: 38.2 | F12: GＪ/ｋｌ | G12: 0.0187 | H12: tC/GJ
D13: 原油のうちコンデンセート(NGL) | E13: 35.3 | F13: GＪ/ｋｌ | G13: 0.0184 | H13: tC/GJ
D14: 揮発油 | E14: 34.6 | F14: GＪ/ｋｌ | G14: 0.0183 | H14: tC/GJ
D15: ナフサ | E15: 33.6 | F15: GＪ/ｋｌ | G15: 0.0182 | H15: tC/GJ
D16: 灯油 | E16: 36.7 | F16: GＪ/ｋｌ | G16: 0.0185 | H16: tC/GJ
D17: 軽油 | E17: 37.7 | F17: GＪ/ｋｌ | G17: 0.0187 | H17: tC/GJ
D18: Ａ重油 | E18: 39.1 | F18: GＪ/ｋｌ | G18: 0.0189 | H18: tC/GJ
D19: Ｂ・Ｃ重油 | E19: 41.9 | F19: GＪ/ｋｌ | G19: 0.0195 | H19: tC/GJ
D20: 石油アスファルト | E20: 40.9 | F20: GＪ/ｔ | G20: 0.0208 | H20: tC/GJ
D21: 石油コークス | E21: 29.9 | F21: GＪ/ｔ | G21: 0.0254 | H21: tC/GJ
C22: 石油ガス | D22: 液化石油ガス （ＬＰＧ） | E22: 50.8 | F22: GＪ/ｔ | G22: 0.0161 | H22: tC/GJ
D23: 石油系炭化水素 ガス | E23: 44.9 | F23: GＪ/千ｍ３ | G23: 0.0142 | H23: tC/GJ
C24: 可 燃 性 天然ガス | D24: 液化天然ガス （ＬＮＧ） | E24: 54.6 | F24: GＪ/ｔ | G24: 0.0135 | H24: tC/GJ
D25: その他可燃性 天然ガス | E25: 43.5 | F25: GＪ/千ｍ３ | G25: 0.0139 | H25: tC/GJ
C26: 石炭 | D26: 原料炭 | E26: 29 | F26: GＪ/ｔ | G26: 0.0245 | H26: tC/GJ
D27: 一般炭 | E27: 25.7 | F27: GＪ/ｔ | G27: 0.0247 | H27: tC/GJ
D28: 無煙炭 | E28: 26.9 | F28: GＪ/ｔ | G28: 0.0255 | H28: tC/GJ
D29: 石炭コークス | E29: 29.4 | F29: GＪ/ｔ | G29: 0.0294 | H29: tC/GJ
D30: コールタール | E30: 37.3 | F30: GＪ/ｔ | G30: 0.0209 | H30: tC/GJ
D31: コークス炉ガス | E31: 21.1 | F31: GＪ/千ｍ３ | G31: 0.011 | H31: tC/GJ
D32: 高炉ガス | E32: 3.41 | F32: GＪ/千ｍ３ | G32: 0.0263 | H32: tC/GJ
D33: 転炉ガス | E33: 8.41 | F33: GＪ/千ｍ３ | G33: 0.0384 | H33: tC/GJ
C34: その他の 燃 料 | D34: 都市ガス | F34: GＪ/千ｍ３ | G34: 0.0136 | H34: tC/GJ
D35: ジェット燃料油 | E35: 36.7 | F35: GＪ/ｋｌ | G35: 0.0183 | H35: tC/GJ
B36: 熱 | D36: 産業用蒸気 | E36: 1.02 | F36: GＪ/GＪ | G36: 0.06 | H36: tCO2/GJ
D37: 産業用以外の蒸気 | E37: 1.36 | F37: GＪ/GＪ | G37: 0.057 | H37: tCO2/GJ
D38: 温水 | E38: 1.36 | F38: GＪ/GＪ | G38: 0.057 | H38: tCO2/GJ
D39: 冷水 | E39: 1.36 | F39: GＪ/GＪ | G39: 0.057 | H39: tCO2/GJ
B40: 電 気 | C40: 電気 事業者 | D40: 昼間買電 | E40: 9.97 | F40: GJ/千ｋWh | G40: - | H40: tCO2/千kWh
D41: 夜間買電 | E41: 9.28 | F41: GJ/千ｋWh | G41: - | H41: tCO2/千kWh
C42: その他 | D42: 上記以外の買電 | E42: 9.76 | F42: GJ/千ｋWh | G42: - | H42: tCO2/千kWh
D43: 自家発電 | E43: 9.76 | F43: GJ/千ｋWh | H43: tCO2/千kWh
B45: 参考 | C45: 実排出係数 | D45: 調整後排出係数 | F45: 係数の適用範囲
B46: 北海道電力（株） | C46: 0.683 | D46: 0.688 | E46: tCO2/千kWh | F46: 電気事業者：昼間買電
B47: 東北電力（株） | C47: 0.571 | D47: 0.573 | E47: tCO2/千kWh | F47: 電気事業者：夜間買電
B48: 東京電力（株） | C48: 0.505 | D48: 0.496 | E48: tCO2/千kWh | F48: その他：上記以外の買電
B49: 中部電力（株） | C49: 0.497 | D49: 0.494 | E49: tCO2/千kWh
B50: 北陸電力（株） | C50: 0.647 | D50: 0.64 | E50: tCO2/千kWh
B51: 関西電力（株） | C51: 0.531 | D51: 0.523 | E51: tCO2/千kWh
B52: 中国電力（株） | C52: 0.706 | D52: 0.709 | E52: tCO2/千kWh | G52: 元号
B53: 四国電力（株） | C53: 0.676 | D53: 0.688 | E53: tCO2/千kWh | G53: 平成
B54: 九州電力（株） | C54: 0.584 | D54: 0.598 | E54: tCO2/千kWh
B55: 沖縄電力（株） | C55: 0.816 | D55: 0.816 | E55: tCO2/千kWh
B56: アーバンエナジー株式会社 | C56: 0.41 | D56: 0.337 | E56: tCO2/千kWh
B57: アストモスエネルギー株式会社 | C57: 0.19 | D57: 0.183 | E57: tCO2/千kWh | G57: その他の燃料単位
B58: イーレックス株式会社 | C58: 0.662 | D58: 0.469 | E58: tCO2/千kWh | G58: GＪ/千ｍ３
B59: 一般財団法人中之条電力 | C59: 0.316 | D59: 0.55 | E59: tCO2/千kWh | G59: GJ/GJ
B60: 一般社団法人電力託送代行機構 | C60: 0.316 | D60: 0.561 | E60: tCO2/千kWh | G60: GJ/千ｋWh
B61: 出光グリーンパワー株式会社 | C61: 0.253 | D61: 0.739 | E61: tCO2/千kWh | G61: GJ/kl
B62: 伊藤忠エネクス株式会社 | C62: 0.568 | D62: 0.294 | E62: tCO2/千kWh | G62: GJ/t
B63: ＳＢパワー株式会社 | C63: 0.259 | D63: 0.342 | E63: tCO2/千kWh
B64: エネサーブ株式会社 | C64: 0.634 | D64: 0.206 | E64: tCO2/千kWh
B65: 荏原環境プラント株式会社 | C65: 0.266 | D65: 0.624 | E65: tCO2/千kWh
B66: 王子製紙株式会社 | C66: 0.438 | D66: 0.419 | E66: tCO2/千kWh | G66: その他の燃料名称
B67: オリックス株式会社 | C67: 0.498 | D67: 0.393 | E67: tCO2/千kWh | G67: テナント空調等推計値
B68: 株式会社イーセル | C68: 0.511 | D68: 0.494 | E68: tCO2/千kWh | G68: ジェット燃料油
B69: 株式会社岩手ウッドパワー | C69: 0.044 | D69: 0.042 | E69: tCO2/千kWh | G69: メタノール
B70: 株式会社うなかみの大地 | C70: 0.106 | D70: 0.744 | E70: tCO2/千kWh | G70: アセチレン
B71: 株式会社ＳＥウイングズ | C71: 0.462 | D71: 0.447 | E71: tCO2/千kWh | G71: FCCコークス
B72: 株式会社エヌパワー | C72: 0.415 | D72: 0.553 | E72: tCO2/千kWh | G72: 副生物（ガス、油等）
B73: 株式会社エネット | C73: 0.454 | D73: 0.462 | E73: tCO2/千kWh
B74: 株式会社Ｆ－Ｐｏｗｅｒ | C74: 0.454 | D74: 0.398 | E74: tCO2/千kWh
B75: 株式会社関電エネルギーソリューション | C75: 0.541 | D75: 0.528 | E75: tCO2/千kWh
B76: 株式会社クールトラスト | C76: 0.492 | D76: 0.475 | E76: tCO2/千kWh | G76: 指定区分の変更有無
B77: 株式会社グローバルエンジニアリング | C77: 0.472 | D77: 0.568 | E77: tCO2/千kWh | G77: （ 指定区分の変更手続きが必要 □ ）
B78: ケーキュービック | C78: 0.153 | D78: 0.598 | E78: tCO2/千kWh | G78: （ 指定区分の変更手続きが必要 ■ ）
B79: 株式会社洸陽電機 | C79: 0.348 | D79: 0.468 | E79: tCO2/千kWh
B80: 株式会社サイサン | C80: 0.373 | D80: 0.36 | E80: tCO2/千kWh
B81: 株式会社サニックス | C81: 0.009 | D81: 0.009 | E81: tCO2/千kWh
B82: 株式会社ＣＮＯパワーソリューションズ | C82: 0.537 | D82: 0.524 | E82: tCO2/千kWh | G82: １２表６の１
B83: 株式会社Ｇ－Ｐｏｗｅｒ | C83: 0.17 | D83: 0 | E83: tCO2/千kWh | G83: 京都メカニズムクレジット
B84: 株式会社新出光 | C84: 0.487 | D84: 0.728 | E84: tCO2/千kWh
B85: 株式会社トヨタタービンアンドシステム | C85: 0.492 | D85: 0.477 | E85: tCO2/千kWh
B86: 株式会社とんでん | C86: 0.495 | D86: 0.479 | E86: tCO2/千kWh
B87: 株式会社ナンワエナジー | C87: 0.602 | D87: 0.601 | E87: tCO2/千kWh
B88: 株式会社日本セレモニー | C88: 0.61 | D88: 0.696 | E88: tCO2/千kWh
B89: 株式会社Ｖ－Ｐｏｗｅｒ | C89: 0.254 | D89: 0.561 | E89: tCO2/千kWh
B90: 株式会社フォレストパワー | C90: 0.19 | D90: 0.699 | E90: tCO2/千kWh
B91: 株式会社ベイサイドエナジー | C91: 0.581 | D91: 0.562 | E91: tCO2/千kWh
B92: 京葉瓦斯株式会社 | C92: 0.494 | D92: 0.478 | E92: tCO2/千kWh
B93: サミットエナジー株式会社 | C93: 0.413 | D93: 0.503 | E93: tCO2/千kWh
B94: ＪＸ日鉱日石エネルギー株式会社 | C94: 0.325 | D94: 0.306 | E94: tCO2/千kWh
B95: ＪＬエナジー株式会社 | C95: 0.553 | D95: 0.534 | E95: tCO2/千kWh
B96: 志賀高原リゾート開発株式会社 | C96: 0.036 | D96: 0.576 | E96: tCO2/千kWh
B97: シナネン株式会社 | C97: 0.416 | D97: 0.563 | E97: tCO2/千kWh
B98: 昭和シェル石油株式会社 | C98: 0.372 | D98: 0.353 | E98: tCO2/千kWh
B99: 新日鉄住金エンジニアリング株式会社 | C99: 0.56 | D99: 0.57 | E99: tCO2/千kWh
B100: 鈴与商事株式会社 | C100: 0.488 | D100: 0.348 | E100: tCO2/千kWh
B101: 泉北天然ガス発電株式会社 | C101: 0.329 | D101: 0.31 | E101: tCO2/千kWh
B102: 総合エネルギー株式会社 | C102: 0.636 | D102: 0.615 | E102: tCO2/千kWh
B103: 大東エナジー株式会社 | C103: 0.566 | D103: 0.547 | E103: tCO2/千kWh
B104: ダイヤモンドパワー株式会社 | C104: 0.339 | D104: 0.323 | E104: tCO2/千kWh
B105: 大和ハウス工業株式会社 | C105: 0.519 | D105: 0.501 | E105: tCO2/千kWh
B106: 中央電力エナジー株式会社 | C106: 0.56 | D106: 0.541 | E106: tCO2/千kWh
B107: テス・エンジニアリング株式会社 | C107: 0.599 | D107: 0.925 | E107: tCO2/千kWh
B108: テプコカスタマーサービス株式会社 | C108: 0.487 | D108: 0.327 | E108: tCO2/千kWh
B109: 東京エコサービス株式会社 | C109: 0.071 | D109: 0.149 | E109: tCO2/千kWh
B110: にちほクラウド電力株式会社 | C110: 0.539 | D110: 0.521 | E110: tCO2/千kWh
B111: 日産トレーデイング株式会社 | C111: 0.365 | D111: 0.41 | E111: tCO2/千kWh
B112: 日本アルファ電力株式会社 | C112: 0 | D112: 1.479 | E112: tCO2/千kWh
B113: 日本テクノ株式会社 | C113: 0.532 | D113: 0.588 | E113: tCO2/千kWh
B114: 日本ロジテック協同組合 | C114: 0.386 | D114: 0.552 | E114: tCO2/千kWh
B115: パナソニック株式会社 | C115: 0.622 | D115: 0.611 | E115: tCO2/千kWh
B116: プレミアムグリーンパワー株式会社 | C116: 0.011 | D116: 0.265 | E116: tCO2/千kWh
B117: 本田技研工業株式会社 | C117: 0.58 | D117: 0.56 | E117: tCO2/千kWh
B118: 丸紅株式会社 | C118: 0.482 | D118: 0.487 | E118: tCO2/千kWh
B119: ミサワホーム株式会社 | C119: 0.311 | D119: 0.301 | E119: tCO2/千kWh
B120: 三井物産株式会社 | C120: 0 | D120: 0 | E120: tCO2/千kWh
B121: ミツウロコグリーンエネルギー株式会社 | C121: 0.466 | D121: 0.498 | E121: tCO2/千kWh
B122: リエスパワー株式会社 | C122: 0.582 | D122: 0 | E122: tCO2/千kWh
B123: ワタミファーム＆エナジー株式会社 | C123: 0.454 | D123: 0.439 | E123: tCO2/千kWh
B124: 代替値 | C124: 0.579 | D124: 0.579 | E124: tCO2/千kWh
B125: （平成２7年11月30日公表）

Sheet CO2計算
R1: ＣＯ２計算式
B2: エネルギーの種類 | Q2: 使 用 量 | S2: 販 売 さ れ た 量 | U2: 省エネ法の | W2: 温対法の
P3: 単位 | Q3: 数値 | R3: ＣＯ２量 | S3: 数値 | T3: ＣＯ２量 | U3: 換算係数 | W3: 排出係数
B4: 燃 料 | D4: 原油(コンデンセートを除く。) | P4: ＫＬ | Q4: =IF('特定-第１・２表'!U152=0,"",'特定-第１・２表'!U152) ->  | R4: =IF(Q4="","",Q4*U4*W4*44/12) ->  | S4: =IF('特定-第１・２表'!AM152=0,"",'特定-第１・２表'!AM152) ->  | T4: =IF(S4="","",S4*U4*W4*44/12) ->  | U4: =VLOOKUP(D4,係数,2,FALSE) -> 38.2 | V4: GＪ/ｋｌ | W4: =VLOOKUP(D4,係数,4,FALSE) -> 0.0187 | X4: tC/GJ
D5: 原油のうちコンデンセート(NGL) | P5: ＫＬ | Q5: =IF('特定-第１・２表'!U153=0,"",'特定-第１・２表'!U153) ->  | S5: =IF('特定-第１・２表'!AM153=0,"",'特定-第１・２表'!AM153) ->  | U5: 35.3 | V5: GＪ/ｋｌ | W5: 0.0184 | X5: tC/GJ
D6: 揮発油 | P6: ＫＬ | Q6: =IF('特定-第１・２表'!U154=0,"",'特定-第１・２表'!U154) ->  | S6: =IF('特定-第１・２表'!AM154=0,"",'特定-第１・２表'!AM154) ->  | U6: 34.6 | V6: GＪ/ｋｌ | W6: 0.0183 | X6: tC/GJ
D7: ナフサ | P7: ＫＬ | Q7: =IF('特定-第１・２表'!U155=0,"",'特定-第１・２表'!U155) ->  | S7: =IF('特定-第１・２表'!AM155=0,"",'特定-第１・２表'!AM155) ->  | U7: 33.6 | V7: GＪ/ｋｌ | W7: 0.0182 | X7: tC/GJ
D8: 灯油 | P8: ＫＬ | Q8: =IF('特定-第１・２表'!U156=0,"",'特定-第１・２表'!U156) ->  | S8: =IF('特定-第１・２表'!AM156=0,"",'特定-第１・２表'!AM156) ->  | U8: 36.7 | V8: GＪ/ｋｌ | W8: 0.0185 | X8: tC/GJ
D9: 軽油 | P9: ＫＬ | Q9: =IF('特定-第１・２表'!U157=0,"",'特定-第１・２表'!U157) ->  | S9: =IF('特定-第１・２表'!AM157=0,"",'特定-第１・２表'!AM157) ->  | U9: 37.7 | V9: GＪ/ｋｌ | W9: 0.0187 | X9: tC/GJ
D10: Ａ重油 | P10: ＫＬ | Q10: =IF('特定-第１・２表'!U158=0,"",'特定-第１・２表'!U158) ->  | S10: =IF('特定-第１・２表'!AM158=0,"",'特定-第１・２表'!AM158) ->  | U10: 39.1 | V10: GＪ/ｋｌ | W10: 0.0189 | X10: tC/GJ
D11: Ｂ・Ｃ重油 | P11: ＫＬ | Q11: =IF('特定-第１・２表'!U159=0,"",'特定-第１・２表'!U159) ->  | S11: =IF('特定-第１・２表'!AM159=0,"",'特定-第１・２表'!AM159) ->  | U11: 41.9 | V11: GＪ/ｋｌ | W11: 0.0195 | X11: tC/GJ
D12: 石油アスファルト | P12: ｔ | Q12: =IF('特定-第１・２表'!U160=0,"",'特定-第１・２表'!U160) ->  | S12: =IF('特定-第１・２表'!AM160=0,"",'特定-第１・２表'!AM160) ->  | U12: 40.9 | V12: GＪ/ｔ | W12: 0.0208 | X12: tC/GJ
D13: 石油コークス | P13: ｔ | Q13: =IF('特定-第１・２表'!U161=0,"",'特定-第１・２表'!U161) ->  | S13: =IF('特定-第１・２表'!AM161=0,"",'特定-第１・２表'!AM161) ->  | U13: 29.9 | V13: GＪ/ｔ | W13: 0.0254 | X13: tC/GJ
D14: 石油ガス | I14: 液化石油ガス （ＬＰＧ） | P14: ｔ | Q14: =IF('特定-第１・２表'!U162=0,"",'特定-第１・２表'!U162) ->  | S14: =IF('特定-第１・２表'!AM162=0,"",'特定-第１・２表'!AM162) ->  | U14: =VLOOKUP(I14,係数,2,FALSE) -> 50.8 | V14: GＪ/ｔ | W14: =VLOOKUP(I14,係数,4,FALSE) -> 0.0161 | X14: tC/GJ
I15: 石油系炭化水素 ガス | P15: 千m3 | Q15: =IF('特定-第１・２表'!U163=0,"",'特定-第１・２表'!U163) ->  | S15: =IF('特定-第１・２表'!AM163=0,"",'特定-第１・２表'!AM163) ->  | U15: 44.9 | V15: GＪ/千ｍ３ | W15: 0.0142 | X15: tC/GJ
D16: 可 燃 性 天然ガス | I16: 液化天然ガス （ＬＮＧ） | P16: ｔ | Q16: =IF('特定-第１・２表'!U164=0,"",'特定-第１・２表'!U164) ->  | S16: =IF('特定-第１・２表'!AM164=0,"",'特定-第１・２表'!AM164) ->  | U16: 54.6 | V16: GＪ/ｔ | W16: 0.0135 | X16: tC/GJ
I17: その他可燃性 天然ガス | P17: 千m3 | Q17: =IF('特定-第１・２表'!U165=0,"",'特定-第１・２表'!U165) ->  | S17: =IF('特定-第１・２表'!AM165=0,"",'特定-第１・２表'!AM165) ->  | U17: 43.5 | V17: GＪ/千ｍ３ | W17: 0.0139 | X17: tC/GJ
D18: 石炭 | I18: 原料炭 | P18: ｔ | Q18: =IF('特定-第１・２表'!U166=0,"",'特定-第１・２表'!U166) ->  | S18: =IF('特定-第１・２表'!AM166=0,"",'特定-第１・２表'!AM166) ->  | U18: 29 | V18: GＪ/ｔ | W18: 0.0245 | X18: tC/GJ
I19: 一般炭 | P19: ｔ | Q19: =IF('特定-第１・２表'!U167=0,"",'特定-第１・２表'!U167) ->  | S19: =IF('特定-第１・２表'!AM167=0,"",'特定-第１・２表'!AM167) ->  | U19: 25.7 | V19: GＪ/ｔ | W19: 0.0247 | X19: tC/GJ
I20: 無煙炭 | P20: ｔ | Q20: =IF('特定-第１・２表'!U168=0,"",'特定-第１・２表'!U168) ->  | S20: =IF('特定-第１・２表'!AM168=0,"",'特定-第１・２表'!AM168) ->  | U20: 26.9 | V20: GＪ/ｔ | W20: 0.0255 | X20: tC/GJ
D21: 石炭コークス | P21: ｔ | Q21: =IF('特定-第１・２表'!U169=0,"",'特定-第１・２表'!U169) ->  | S21: =IF('特定-第１・２表'!AM169=0,"",'特定-第１・２表'!AM169) ->  | U21: =VLOOKUP(D21,係数,2,FALSE) -> 29.4 | V21: GＪ/ｔ | W21: =VLOOKUP(D21,係数,4,FALSE) -> 0.0294 | X21: tC/GJ
D22: コールタール | P22: ｔ | Q22: =IF('特定-第１・２表'!U170=0,"",'特定-第１・２表'!U170) ->  | S22: =IF('特定-第１・２表'!AM170=0,"",'特定-第１・２表'!AM170) ->  | U22: =VLOOKUP(D22,係数,2,FALSE) -> 37.3 | V22: GＪ/ｔ | W22: =VLOOKUP(D22,係数,4,FALSE) -> 0.0209 | X22: tC/GJ
D23: コークス炉ガス | P23: 千m3 | Q23: =IF('特定-第１・２表'!U171=0,"",'特定-第１・２表'!U171) ->  | S23: =IF('特定-第１・２表'!AM171=0,"",'特定-第１・２表'!AM171) ->  | U23: =VLOOKUP(D23,係数,2,FALSE) -> 21.1 | V23: GＪ/千ｍ３ | W23: =VLOOKUP(D23,係数,4,FALSE) -> 0.011 | X23: tC/GJ
D24: 高炉ガス | P24: 千m3 | Q24: =IF('特定-第１・２表'!U172=0,"",'特定-第１・２表'!U172) ->  | S24: =IF('特定-第１・２表'!AM172=0,"",'特定-第１・２表'!AM172) ->  | U24: =VLOOKUP(D24,係数,2,FALSE) -> 3.41 | V24: GＪ/千ｍ３ | W24: =VLOOKUP(D24,係数,4,FALSE) -> 0.0263 | X24: tC/GJ
D25: 転炉ガス | P25: 千m3 | Q25: =IF('特定-第１・２表'!U173=0,"",'特定-第１・２表'!U173) ->  | S25: =IF('特定-第１・２表'!AM173=0,"",'特定-第１・２表'!AM173) ->  | U25: =VLOOKUP(D25,係数,2,FALSE) -> 8.41 | V25: GＪ/千ｍ３ | W25: =VLOOKUP(D25,係数,4,FALSE) -> 0.0384 | X25: tC/GJ
D26: その他の 燃 料 | I26: 都市ガス | P26: 千ｍ３ | Q26: =IF('特定-第１・２表'!U174=0,"",'特定-第１・２表'!U174) ->  | R26: =IF(入力・計算補助!AC55=0,"",入力・計算補助!AC55) ->  | S26: =IF('特定-第１・２表'!AM174=0,"",'特定-第１・２表'!AM174) ->  | T26: =IF(入力・計算補助!AD55=0,"",入力・計算補助!AD55) ->  | U26: =入力・計算補助!AD28 -> N/A | V26: 千ｍ３ | W26: =入力・計算補助!AD29 -> 0.0136 | X26: tC/GJ
I27: 推計値 | P27: =IF(I27="","","GJ") -> GJ | Q27: =IF(ISERROR(VLOOKUP(1,'特定-第１・２表'!A175:AU185,21,FALSE)),"",VLOOKUP(1,'特定-第１・２表'!A175:AU185,21,FALSE)) ->  | R27: =IF(Q27="","",Q27*U27*W27) ->  | S27: =IF(ISERROR(VLOOKUP(1,'特定-第１・２表'!A175:AU185,39,FALSE)),"",VLOOKUP(1,'特定-第１・２表'!A175:AU185,39,FALSE)) ->  | T27: =IF(Q27="","",S27*U27*W27) ->  | U27: 1 | V27: GＪ/GＪ | W27: =IF(ISERROR(VLOOKUP(1,'特定-第１・２表'!A175:BM185,65,FALSE)),0.057,VLOOKUP(1,'特定-第１・２表'!A175:BM185,65,FALSE)) -> 0.057 | X27: tCO2/GJ
I28: ジェット燃料油 | P28: ＫＬ | Q28: =IF(ISERROR(VLOOKUP(2,'特定-第１・２表'!A175:AU185,21,FALSE)),"",VLOOKUP(2,'特定-第１・２表'!A175:AU185,21,FALSE)) ->  | R28: =IF(Q28="","",Q28*U28*W28*44/12) ->  | S28: =IF(ISERROR(VLOOKUP(2,'特定-第１・２表'!A175:AU185,39,FALSE)),"",VLOOKUP(2,'特定-第１・２表'!A175:AU185,39,FALSE)) ->  | T28: =IF(Q28="","",S28*U28*W28*44/12) ->  | U28: =VLOOKUP(I28,係数,2,FALSE) -> 36.7 | V28: GＪ/ｋｌ | W28: =VLOOKUP(I28,係数,4,FALSE) -> 0.0183 | X28: tC/GJ
I29: ガソリン | P29: ＫＬ | Q29: =IF(ISERROR(VLOOKUP(3,'特定-第１・２表'!A175:AU185,21,FALSE)),"",VLOOKUP(3,'特定-第１・２表'!A175:AU185,21,FALSE)) ->  | R29: =IF(Q29="","",Q29*U29*W29*44/12) ->  | S29: =IF(ISERROR(VLOOKUP(3,'特定-第１・２表'!A175:AU185,39,FALSE)),"",VLOOKUP(3,'特定-第１・２表'!A175:AU185,39,FALSE)) ->  | T29: =IF(Q29="","",S29*U29*W29*44/12) ->  | U29: =VLOOKUP(D6,係数,2,FALSE) -> 34.6 | V29: GＪ/ｋｌ | W29: =VLOOKUP(D6,係数,4,FALSE) -> 0.0183 | X29: tC/GJ
D30: 小計 | Q30: =SUM(Q4:Q29) -> 0 | R30: =SUM(R4:R29) -> 0 | S30: =SUM(S4:S29) -> 0 | T30: =SUM(T4:T29) -> 0 | Y30: デフォルト
B31: 熱 | D31: 産業用蒸気 | P31: ＧＪ | Q31: ='特定-第１・２表'!U186 -> 0 | R31: =IF('特定-第１・２表'!U186="","",Q31*W31) ->  | S31: ='特定-第１・２表'!AM186 -> 0 | T31: =IF('特定-第１・２表'!AM186="","",S31*W31) ->  | U31: =IF(入力・計算補助!S135=0,VLOOKUP(D31,係数,2,FALSE),OFFSET(入力・計算補助!I135,(入力・計算補助!F$129-1)*18,0)) -> 1.02 | V31: GＪ/GＪ | W31: =IF(AND(入力・計算補助!F$129<3,入力・計算補助!T135>0),OFFSET(入力・計算補助!M135,(入力・計算補助!F$129-1)*18,0),VLOOKUP(D31,係数,4,FALSE)) -> 0.06 | X31: tCO2/GJ | Y31: =VLOOKUP(D31,係数,4,FALSE) -> 0.06
D32: 産業用以外の蒸気 | P32: ＧＪ | Q32: ='特定-第１・２表'!U187 -> 0 | R32: =IF('特定-第１・２表'!U187="","",Q32*W32) ->  | S32: ='特定-第１・２表'!AM187 -> 0 | T32: =IF('特定-第１・２表'!AM187="","",S32*W32) ->  | U32: =IF(入力・計算補助!S136=0,VLOOKUP(D32,係数,2,FALSE),OFFSET(入力・計算補助!I136,(入力・計算補助!F$129-1)*18,0)) -> 1.36 | V32: GＪ/GＪ | W32: =IF(AND(入力・計算補助!F$129<3,入力・計算補助!T136>0),OFFSET(入力・計算補助!M136,(入力・計算補助!F$129-1)*18,0),VLOOKUP(D32,係数,4,FALSE)) -> 0.057 | X32: tCO2/GJ | Y32: =VLOOKUP(D32,係数,4,FALSE) -> 0.057
D33: 温水 | P33: ＧＪ | Q33: ='特定-第１・２表'!U188 -> 0 | R33: =IF('特定-第１・２表'!U188="","",Q33*W33) ->  | S33: ='特定-第１・２表'!AM188 -> 0 | T33: =IF('特定-第１・２表'!AM188="","",S33*W33) ->  | U33: =IF(入力・計算補助!S137=0,VLOOKUP(D33,係数,2,FALSE),OFFSET(入力・計算補助!I137,(入力・計算補助!F$129-1)*18,0)) -> 1.36 | V33: GＪ/GＪ | W33: =IF(AND(入力・計算補助!F$129<3,入力・計算補助!T137>0),OFFSET(入力・計算補助!M137,(入力・計算補助!F$129-1)*18,0),VLOOKUP(D33,係数,4,FALSE)) -> 0.057 | X33: tCO2/GJ | Y33: =VLOOKUP(D33,係数,4,FALSE) -> 0.057
D34: 冷水 | P34: ＧＪ | Q34: ='特定-第１・２表'!U189 -> 0 | R34: =IF('特定-第１・２表'!U189="","",Q34*W34) ->  | S34: ='特定-第１・２表'!AM189 -> 0 | T34: =IF('特定-第１・２表'!AM189="","",S34*W34) ->  | U34: =IF(入力・計算補助!S138=0,VLOOKUP(D34,係数,2,FALSE),OFFSET(入力・計算補助!I138,(入力・計算補助!F$129-1)*18,0)) -> 1.36 | V34: GＪ/GＪ | W34: =IF(AND(入力・計算補助!F$129<3,入力・計算補助!T138>0),OFFSET(入力・計算補助!M138,(入力・計算補助!F$129-1)*18,0),VLOOKUP(D34,係数,4,FALSE)) -> 0.057 | X34: tCO2/GJ | Y34: =VLOOKUP(D34,係数,4,FALSE) -> 0.057
D35: 小計 | P35: ＧＪ | Q35: =SUM(Q31:Q34) -> 0 | R35: =SUM(R31:R34) -> 0 | S35: =SUM(S31:S34) -> 0 | T35: =SUM(T31:T34) -> 0
B36: 電 気 | D36: 電気 事業者 | I36: 昼間買電 | P36: 千KWh | Q36: ='特定-第１・２表'!U191 -> 7119 | R36: =IF(入力・計算補助!AC120=0,"",入力・計算補助!AC120) ->  | U36: 9.97 | V36: GJ/千ｋWh | W36: =入力・計算補助!AG73 -> 0.579 | X36: tCO2/千kWh | Z36: うち電気需要平準化時間帯 | AC36: ='特定-第１・２表'!V192 -> 4187 | AD36: =IF(入力・計算補助!AD120=0,"",入力・計算補助!AD120) -> 
I37: 夜間買電 | P37: 千KWh | Q37: ='特定-第１・２表'!U193 ->  | R37: =IF(入力・計算補助!AC121=0,"",入力・計算補助!AC121) ->  | U37: 9.28 | V37: GJ/千ｋWh | W37: =入力・計算補助!AG73 -> 0.579 | X37: tCO2/千kWh
D38: その他 | I38: 上記以外の買電 | P38: 千KWh | Q38: ='特定-第１・２表'!U194 ->  | R38: =IF(入力・計算補助!T123=0,"",入力・計算補助!T123) ->  | U38: 9.76 | V38: GJ/千ｋWh | W38: =入力・計算補助!Q120 -> 0.579 | X38: tCO2/千kWh
I39: 自家発電 | P39: 千KWh | Q39: ='特定-第１・２表'!U195 -> 0 | S39: ='特定-第１・２表'!AM195 -> 0 | T39: =IF('特定-第１・２表'!AM195="","",S39*W39) ->  | U39: 9.76 | V39: GJ/千ｋWh | W39: 0 | X39: tCO2/千kWh
D40: 小計 | Q40: =SUM(Q36:Q38) -> 7119 | R40: =SUM(R36:R38) -> 0 | S40: =S39 -> 0 | T40: =SUM(T36:T39) -> 0
B41: 燃料＋熱＋電気＝合計量 | R41: =R30+R35+R40 -> 0 | T41: =T30+T35+T40 -> 0 | U41: 0.0258 | V41: Kl/GJ
B42: 二酸化炭素排出量（tCO2) | R42: =R41-T41 -> 0
B46: 二酸化炭素排出量計算
D47: （ⓐ－ⓑ） 小数点以下切り捨て ） | R47: =IF(R42=0,0,ROUNDDOWN(R42,0)) -> 0
Q48: ⓐ | R48: =R41 -> 0
Q49: ⓑ | R49: =T30+T35+T40 -> 0
D54: （ⓒ－ⓓ） 小数点以下切り捨て ） | R54: =IF((R30-T30)>0,ROUNDDOWN((R30-T30),0),0) -> 0 | T54: =IF(R54="","",ROUND(R54,2-INT(LOG(R54)))) -> 
Q55: ⓒ | R55: =R30 -> 0
Q56: ⓓ | R56: =T30 -> 0
M59: 販売量 | Q59: 排出係数 | R59: ＣＯ２排出量
B60: 販売電気量（自家発電による販売量含む） | I60: 千KWh | M60: =入力・計算補助!I156 -> 0 | Q60: =入力・計算補助!M156 -> 0 | R60: =M60*Q60 -> 0 | S60: tCO2/千kWh
B61: 販売熱量 | I61: ＧＪ | M61: =入力・計算補助!I173 -> 0 | Q61: =入力・計算補助!M173 -> 0 | R61: =M61*Q61 -> 0 | S61: tCO2/GJ
B62: 小計 | R62: =SUM(R60:R61) -> 0
D64: （ⓐ－ⓔ 小数点以下切り捨て ） | R64: =IF(T66=0,0,ROUNDDOWN(T66,0)) -> 0 | T64: =IF(R62="","",ROUND(R62,2-INT(LOG(R62)))) -> 
Q65: ⓐ | R65: =R41 -> 0
Q66: ⓔ | R66: =R62 -> 0 | T66: =R65-R66 -> 0
U93: 入力順番
U94: ４番目
U122: 入力順番
U127: ５番目
V176: 入力順番
V177: ６番目
T227: 入力順番
T229: ７番目

Sheet 保存用 (hidden)
A1: 年度 | B1: 2009 | C1: =YEAR(C3) -> 2009 | D1: =YEAR(D3) -> 2010 | E1: 2011 | F1: 2012 | G1: 2013 | H1: 2014 | I1: 2015 | J1: 2016 | K1: 2017 | L1: 2018 | M1: 2019 | N1: 2020 | O1: 2021 | P1: 2022 | Q1: 2023 | R1: 2024 | S1: 2025 | T1: 2026 | U1: 2027 | V1: 2028
A2: ■保存データ
C3: =DATEVALUE($B$1+COLUMN(C3)-3 & "/1/1") -> 39814 | D3: =DATEVALUE($B$1+COLUMN(D3)-3 & "/1/1") -> 40179 | E3: 40544 | F3: 40909 | G3: 41275 | H3: 41640 | I3: 42005 | J3: 42370 | K3: 42736 | L3: 43101 | M3: 43466 | N3: 43831 | O3: 44197 | P3: 44562 | Q3: 44927 | R3: 45292 | S3: 45658 | T3: 46023 | U3: 46388 | V3: 46753
B4: 特定－第２表 原油換算（Kl）
B5: 特定－第３表 使用量と密接な関係をもつ値（名称）
B6: 特定－第３表 使用量と密接な関係をもつ値（単位）
B7: 特定－第３表 使用量と密接な関係をもつ値（数値）
B8: 特定－第４表１ エネルギーの使用に係る原単位
B9: 特定－第４表２ 電気需要平準化評価原単位

Sheet 日本標準産業分類 (hidden)
A1: 小分類 | B1: 名称 | D1: 第１表 | E1: 分類番号 | F1: ='特定-第１・２表'!T37&'特定-第１・２表'!X37&'特定-第１・２表'!AB37&'特定-第１・２表'!AF37 -> 6095
A2: 0100 | B2: 主として管理事務を行う本社等 | E2: 分類項目名 | F2: =IF(F1="","",(IF(ISERROR(VLOOKUP(F1,日本標準産業分類!A:B,2,FALSE)),"該当の細分類がありません",VLOOKUP(F1,日本標準産業分類!A:B,2,FALSE)))) -> ジュエリー製品小売業
A3: 0109 | B3: その他の管理，補助的経済活動を行う事業所
A4: 0111 | B4: 米作農業
A5: 0112 | B5: 米作以外の穀作農業
A6: 0113 | B6: 野菜作農業（きのこ類の栽培を含む）
A7: 0114 | B7: 果樹作農業
A8: 0115 | B8: 花き作農業
A9: 0116 | B9: 工芸農作物農業
A10: 0117 | B10: ばれいしょ・かんしょ作農業
A11: 0119 | B11: その他の耕種農業
A12: 0121 | B12: 酪農業
A13: 0122 | B13: 肉用牛生産業
A14: 0123 | B14: 養豚業
A15: 0124 | B15: 養鶏業
A16: 0125 | B16: 畜産類似業
A17: 0126 | B17: 養蚕農業
A18: 0129 | B18: その他の畜産農業
A19: 0131 | B19: 穀作サービス業
A20: 0132 | B20: 野菜作・果樹作サービス業
A21: 0133 | B21: 穀作，野菜作・果樹作以外の耕種サービス業
A22: 0134 | B22: 畜産サービス業（獣医業を除く）
A23: 0141 | B23: 園芸サービス業
A24: 0200 | B24: 主として管理事務を行う本社等
A25: 0209 | B25: その他の管理，補助的経済活動を行う事業所
A26: 0211 | B26: 育林業
A27: 0221 | B27: 素材生産業
A28: 0231 | B28: 製薪炭業
A29: 0239 | B29: その他の特用林産物生産業（きのこ類の栽培を除く）
A30: 0241 | B30: 育林サービス業
A31: 0242 | B31: 素材生産サービス業
A32: 0243 | B32: 山林種苗生産サービス業
A33: 0249 | B33: その他の林業サービス業
A34: 0299 | B34: その他の林業
A35: 0300 | B35: 主として管理事務を行う本社等
A36: 0309 | B36: その他の管理，補助的経済活動を行う事業所
A37: 0311 | B37: 底びき網漁業
A38: 0312 | B38: まき網漁業
A39: 0313 | B39: 刺網漁業
A40: 0314 | B40: 釣・はえ縄漁業
A41: 0315 | B41: 定置網漁業
A42: 0316 | B42: 地びき網・船びき網漁業
A43: 0317 | B43: 採貝・採藻業
A44: 0318 | B44: 捕鯨業
A45: 0319 | B45: その他の海面漁業
A46: 0321 | B46: 内水面漁業
A47: 0400 | B47: 主として管理事務を行う本社等
A48: 0409 | B48: その他の管理，補助的経済活動を行う事業所
A49: 0411 | B49: 魚類養殖業
A50: 0412 | B50: 貝類養殖業
A51: 0413 | B51: 藻類養殖業
A52: 0414 | B52: 真珠養殖業
A53: 0415 | B53: 種苗養殖業
A54: 0419 | B54: その他の海面養殖業
A55: 0421 | B55: 内水面養殖業
A56: 0500 | B56: 主として管理事務を行う本社等
A57: 0509 | B57: その他の管理，補助的経済活動を行う事業所
A58: 0511 | B58: 金・銀鉱業
A59: 0512 | B59: 鉛・亜鉛鉱業
A60: 0513 | B60: 鉄鉱業
A61: 0519 | B61: その他の金属鉱業
A62: 0521 | B62: 石炭鉱業（石炭選別業を含む）
A63: 0522 | B63: 亜炭鉱業
A64: 0531 | B64: 原油鉱業
A65: 0532 | B65: 天然ガス鉱業
A66: 0541 | B66: 花こう岩・同類似岩石採石業
A67: 0542 | B67: 石英粗面岩・同類似岩石採石業
A68: 0543 | B68: 安山岩・同類似岩石採石業
A69: 0544 | B69: 大理石採石業
A70: 0545 | B70: ぎょう灰岩採石業
A71: 0546 | B71: 砂岩採石業
A72: 0547 | B72: 粘板岩採石業
A73: 0548 | B73: 砂・砂利・玉石採取業
A74: 0549 | B74: その他の採石業，砂・砂利・玉石採取業
A75: 0551 | B75: 耐火粘土鉱業
A76: 0552 | B76: ろう石鉱業
A77: 0553 | B77: ドロマイト鉱業
A78: 0554 | B78: 長石鉱業
A79: 0555 | B79: けい石鉱業
A80: 0556 | B80: 天然けい砂鉱業
A81: 0557 | B81: 石灰石鉱業
A82: 0559 | B82: その他の窯業原料用鉱物鉱業
A83: 0591 | B83: 酸性白土鉱業
A84: 0592 | B84: ベントナイト鉱業
A85: 0593 | B85: けいそう土鉱業
A86: 0594 | B86: 滑石鉱業
A87: 0599 | B87: 他に分類されない鉱業
A88: 0600 | B88: 主として管理事務を行う本社等
A89: 0609 | B89: その他の管理，補助的経済活動を行う事業所
A90: 0611 | B90: 一般土木建築工事業
A91: 0621 | B91: 土木工事業(別掲を除く)
A92: 0622 | B92: 造園工事業
A93: 0623 | B93: しゅんせつ工事業
A94: 0631 | B94: 舗装工事業
A95: 0641 | B95: 建築工事業(木造建築工事業を除く)
A96: 0651 | B96: 木造建築工事業
A97: 0661 | B97: 建築リフォーム工事業
A98: 0700 | B98: 主として管理事務を行う本社等
A99: 0709 | B99: その他の管理，補助的経済活動を行う事業所
A100: 0711 | B100: 大工工事業(型枠大工工事業を除く)
A101: 0712 | B101: 型枠大工工事業
A102: 0721 | B102: とび工事業
A103: 0722 | B103: 土工・コンクリート工事業
A104: 0723 | B104: 特殊コンクリート工事業
A105: 0731 | B105: 鉄骨工事業
A106: 0732 | B106: 鉄筋工事業
A107: 0741 | B107: 石工工事業
A108: 0742 | B108: れんが工事業
A109: 0743 | B109: タイル工事業
A110: 0744 | B110: コンクリートブロック工事業
A111: 0751 | B111: 左官工事業
A112: 0761 | B112: 金属製屋根工事業
A113: 0762 | B113: 板金工事業
A114: 0763 | B114: 建築金物工事業
A115: 0771 | B115: 塗装工事業（道路標示・区画線工事業を除く）
A116: 0772 | B116: 道路標示・区画線工事業
A117: 0781 | B117: 床工事業
A118: 0782 | B118: 内装工事業
A119: 0791 | B119: ガラス工事業
A120: 0792 | B120: 金属製建具工事業
A121: 0793 | B121: 木製建具工事業
A122: 0794 | B122: 屋根工事業（金属製屋根工事業を除く）
A123: 0795 | B123: 防水工事業
A124: 0796 | B124: はつり・解体工事業
A125: 0799 | B125: 他に分類されない職別工事業
A126: 0800 | B126: 主として管理事務を行う本社等
A127: 0809 | B127: その他の管理，補助的経済活動を行う事業所
A128: 0811 | B128: 一般電気工事業
A129: 0812 | B129: 電気配線工事業
A130: 0821 | B130: 電気通信工事業（有線テレビジョン放送設備設置工事業を除く）
A131: 0822 | B131: 有線テレビジョン放送設備設置工事業
A132: 0823 | B132: 信号装置工事業
A133: 0831 | B133: 一般管工事業
A134: 0832 | B134: 冷暖房設備工事業
A135: 0833 | B135: 給排水・衛生設備工事業
A136: 0839 | B136: その他の管工事業
A137: 0841 | B137: 機械器具設置工事業（昇降設備工事業を除く）
A138: 0842 | B138: 昇降設備工事業
A139: 0891 | B139: 築炉工事業
A140: 0892 | B140: 熱絶縁工事業
A141: 0893 | B141: 道路標識設置工事業
A142: 0894 | B142: さく井工事業
A143: 0900 | B143: 主として管理事務を行う本社等
A144: 0909 | B144: その他の管理，補助的経済活動を行う事業所
A145: 0911 | B145: 部分肉・冷凍肉製造業
A146: 0912 | B146: 肉加工品製造業
A147: 0913 | B147: 処理牛乳・乳飲料製造業
A148: 0914 | B148: 乳製品製造業（処理牛乳，乳飲料を除く）
A149: 0919 | B149: その他の畜産食料品製造業
A150: 0921 | B150: 水産缶詰・瓶詰製造業
A151: 0922 | B151: 海藻加工業
A152: 0923 | B152: 水産練製品製造業
A153: 0924 | B153: 塩干・塩蔵品製造業
A154: 0925 | B154: 冷凍水産物製造業
A155: 0926 | B155: 冷凍水産食品製造業
A156: 0929 | B156: その他の水産食料品製造業
A157: 0931 | B157: 野菜缶詰・果実缶詰・農産保存食料品製造業（野菜漬物を除く）
A158: 0932 | B158: 野菜漬物製造業（缶詰，瓶詰，つぼ詰を除く）
A159: 0941 | B159: 味そ製造業
A160: 0942 | B160: しょう油・食用アミノ酸製造業
A161: 0943 | B161: ソース製造業
A162: 0944 | B162: 食酢製造業
A163: 0949 | B163: その他の調味料製造業
A164: 0951 | B164: 砂糖製造業（砂糖精製業を除く）
A165: 0952 | B165: 砂糖精製業
A166: 0953 | B166: ぶどう糖・水あめ・異性化糖製造業
A167: 0961 | B167: 精米・精麦業
A168: 0962 | B168: 小麦粉製造業
A169: 0969 | B169: その他の精穀・製粉業
A170: 0971 | B170: パン製造業
A171: 0972 | B171: 生菓子製造業
A172: 0973 | B172: ビスケット類・干菓子製造業
A173: 0974 | B173: 米菓製造業
A174: 0979 | B174: その他のパン・菓子製造業
A175: 0981 | B175: 動植物油脂製造業（食用油脂加工業を除く）
A176: 0982 | B176: 食用油脂加工業
A177: 0991 | B177: でんぷん製造業
A178: 0992 | B178: めん類製造業
A179: 0993 | B179: 豆腐・油揚製造業
A180: 0994 | B180: あん類製造業
A181: 0995 | B181: 冷凍調理食品製造業
A182: 0996 | B182: そう（惣）菜製造業
A183: 0997 | B183: すし・弁当・調理パン製造業
A184: 0998 | B184: レトルト食品製造業
A185: 0999 | B185: 他に分類されない食料品製造業
A186: 1000 | B186: 主として管理事務を行う本社等
A187: 1009 | B187: その他の管理，補助的経済活動を行う事業所
A188: 1011 | B188: 清涼飲料製造業
A189: 1021 | B189: 果実酒製造業
A190: 1022 | B190: ビール類製造業
A191: 1023 | B191: 清酒製造業
A192: 1024 | B192: 蒸留酒・混成酒製造業
A193: 1031 | B193: 製茶業
A194: 1032 | B194: コーヒー製造業
A195: 1041 | B195: 製氷業
A196: 1051 | B196: たばこ製造業（葉たばこ処理業を除く)
A197: 1052 | B197: 葉たばこ処理業
A198: 1061 | B198: 配合飼料製造業
A199: 1062 | B199: 単体飼料製造業
A200: 1063 | B200: 有機質肥料製造業
... 1260 more rows
